Workbook

Sheet About EI2
B1: EI2 - WIND
B3: Economic Impacts of Electrification Initiatives (EI2) Model
B6: Release Number: w-2021-03-31
B8: The Economic Impacts of Electrification Initiatives (EI2) Model use the same structure as the Jobs and Economic Development Impact (JEDI) Model that was developed in 2002 to demonstrate the economic benefits associated with developing land-based wind power plants in the United States. The primary goal in developing the provincial / territorial level model is to provide a tool for wind developers, renewable energy advocates, government officials, decision makers and other potential users, to easily identify the local economic impacts associated with constructing and operating wind power plants. The second goal was to facilitate broad access and usage of the model.
B13: Consistent with these goals, a strong emphasis was placed on designing the model in a user-friendly format that could be easily modified - reflecting different
B14: levels of project specific information and user skill. This insures the greatest flexibility for inexperienced spreadsheet users, those unfamiliar with economic impact
B15: analysis, and more experienced and knowledgeable users who have a need for this specific type of analysis.
B17: The EI2 models were adapted by Éloïse Edom, research associate at the Institut de l'énergie Trottier, as part of the NRCAN-supported Energy Modelling Initiative.
B18: Institut de l'énergie Trottier
B19: Énergy Modelling Initiative
B21: For more information about the EI2 models contact: info@emi-ime.ca or eloise.edom@polymtl.ca

Sheet FAQ
B2: EI2 - WIND
B4: Economic Impacts of Electrification Initiatives (EI2) Model
B6: Frequently Asked Questions (FAQ)
B9: How do I know if I have the most current version of the EI2 model?
B10: The most current version of the EI2 model is available on the Energy Modelling initiative web site at https://emi-ime.ca/.
B12: How can I determine which version of the EI2 model I have?
B13: The version (release number) of the model you are currently using is listed in the "About EI2" worksheet contained in this model.
B15: When I open up the model I receive a security alert message stating "the macros in the file have been disabled," how do I change the security setting so I
B16: can run the model with the macros enabled?
B17: The message you are receiving is related to the level of security you have chosen in your Excel™ set up. To change the setting for opening files, open Excel™, on the
B18: top toolbar, click on "tools," then "macros" then "security." Reset the security level to "medium," this will enable you to choose to enable or disable macros each
B19: time you open a file. Alternately, the model can be successfully run with the macros disabled.
B22: How do I run a regional level analysis?
B23: Running a regional level analysis is similar to running a state level analysis, although there are two key differences users must keep in mind. First, the model
B24: does not contain regional level multipliers, thus users must obtain these and add them into the model. (See FAQ on obtaining regional level
B25: multipliers and how to add in the data) Second, to run a regional level analysis users must enter the regional population in the Project Description
B26: area. The population provides a reference for the model to automatically insert 'local share" defaults for the analysis.
B28: Where can I get regional level data to add-in to the model to run a region specific analysis?
B29: Regional level multipliers and personal consumption expenditure patterns are available from a number of sources. Users familiar with input-output modeling can
B30: purchase the raw regional level data and derive the multipliers themselves, purchase them from someone familiar with input-output modeling, purchase them directly from
B31: IMPLAN (www.implan.com), or contact MRG & Associates (mrgassociates@earthlink.net), the model developer.
B33: How do I add in regional level multipliers and the personal consumption expenditure data?
B34: Adding-in regional level multipliers and personal consumtption expenditure data involves going to the "User Add-in Location" worksheet in this model and
B35: cutting and pasting the data into their respective locations. With the data installed it is also necessary to insert the region name, the year of the data, and
B36: the name of the province or territory.
B38: What does the "local share" refer to?
B39: The "local share" refers to the percentage of each expenditure that is actually spent locally (i.e., in the province, territory, region being analyzed). For example, if $1 million
B40: is going to be spent on construction materials and half ($500,000) of this total will be purchased from local suppliers, we say the "local share" is 50 percent.
B42: What does the term "full-time equivalent for a period of one year" refer to in the jobs results?
B43: The term refers to a job that is held (and wages paid) for a period of one year. This is based on 2,080 hours (52 weeks times 40 hours per week). For example, if the
B44: analysis indicates there are 100 construction jobs, there will be the equivalent of 100 workers, working full-time, for the entire year. If the construction period is two
B45: years, the job impacts (100 jobs) are spread over the two year construction period. In this example, there will be an average of 50 full-time jobs (100 jobs divided by 2
B46: years) during each of the years. Similarly, if the construction period is less than one year, for example, 9 months (75 percent of a full year), then the number of persons
B47: actually employed and working full-time during that period will be greater since they will not be employed and working for an entire year. In this example, there will be
B48: an average of 133 full-time workers (100 jobs divided by .75 percent of the year) during the 9 month construction period.
B50: I want to make my analysis as accurate as possible, where can I get information to adjust the default "local share" values (in the ProjectData worksheet)
B51: for my province, territory or region?
B52: Since the "local share" is directly related to the availability of local businesses and services and their ability to meet the construction and annual operating demands
B53: of the project, it is important to have an accurate picture of these local resources. This can be obtained in a number of ways: contacting experienced and knowlegeable
B54: persons in the area, contacting local business and contractor organizations and/or the local chamber of commerce, among others.
B56: I want to make changes to the default labour construction and/or O&M costs, wage rates or employer payroll overhead but when I do I receive a pop up
B57: instructing me to only make changes if I change other wage and/or salary related cells. Why is this?
B58: The model uses the total labour costs and the average wages per hour to calculate the number of construction workers and O&M workers. Therefore, if a User chooses
B59: to modify the default values, they override the default ratios programed into the model. Thus, if the User increases (or decreases) the total labour costs without changing
B60: the wage per hour, the results will show more workers. Similarly, if the average wage per hour is increased (or decreased), without a subsequent increase in the
B61: total labour costs, the results will show fewer workers.
B63: When I change the construction ($ per kW) or O&M ($ per kW) cost in the Project Description area, the labour costs remain the same but the other project costs
B64: change. Why don't all the project costs change?
B65: The model is designed to allocate labour costs based on default wage and overhead costs and employment (job) ratios, unless the costs are modified by the user.
B66: Therefore, any changes in the total construction or O&M costs in the Project Description area do not impact labour costs. See also FAQ related to User changes to labour
B67: costs.
B69: I am interested in viewing and possibly editting internal formulas within the model, how do I access them?
B70: The EI2 model contains several intermediate worksheets that are an integral part of the model analysis. These worksheets are not designed to be changed by users.
B71: Several of these worksheets, including default data, calculations, and deflators may be viewed by merely clicking on the respective worksheet and scrolling to the right.
B72: Although these sheets may be viewed by users they are protected and can not be edited.
B75: Where can I get more information on input-output modeling and using the EI2 model?
B76: More information on how to use the EI2 models can be found at https://emi-ime.ca/ei2/
B77: EI2 use the same structure as the JEDI models developped by NREL. To view and/or download JEDI related publications go to the Department of Energy's web site
B78: at www.windpoweringamerica.gov. Click on "Economic Development" on the left side of the page (under Program Areas). Additional information on these topics and access to
B79: publications is available by then clicking on "Jobs and Economic Impact (JEDI) Model. Once there, scroll down to "Publications" and click on any of the links.
B80: (See also, Is additional technical support available, in FAQ.)

Sheet START
B3: EI2 - WIND
B4: Economic Impacts of Electrification Initiatives (EI2) Model

Sheet ProjectData
A1: Wind Farm Project Data
A3: INSTRUCTIONS: - Begin by entering Project Location (from pull-down list) and other Descriptive Data. - After inserting required data press enter (or cursor to the next cell) to continue. - Once Descriptive Data is complete, choose "Y" or "N" on Line 20 to continue. - Choose "Y" to accept Project Cost and Local Share defaults or "N" to review/modify values. - Once all values are entered, click the "Go to Summary Impacts" button. To utilize new values in analysis you must choose an "N" in "Utilize Model Default Values (below)?" - Line 20 Additional information is available by pointing to the red triangles located in cell corners and in the FAQ tab. Only those cells with a white background can be changed (accept new values).
A6: Project Descriptive Data
A7: Project Description
A8: Project Name | B8: Project 1 | C8: =IF(B9="MYREGION",IF('User Add-in Location'!E22=0," Error - No Regional multiplier data in User Add-in Location",""),"") -> 
A9: Project Location | B9: Alberta | C9: =IF(B9="MYREGION",IF('User Add-in Location'!E22=0,""," Enter Region Population"),"") ->  | AA9: =IF(B9="MYREGION",IF(B10="",2,1),0) -> 0
A10: =IF(B9="MYREGION","Population (only required for Region analysis)","") ->  | C10: =IF($C9="","",IF($B10<1," **Error - Population Data Missing**","")) -> 
A11: Total Project Size (MW) | B11: 100
A12: Turbine Size (kW) | B12: 2500
A13: Number of Turbines | B13: =DefaultData!D5 -> 40
A14: Construction information
A15: Year of Construction | B15: 2022
A16: Money Value (Dollar Year) | B16: 2020
A17: Costs information
A18: Installed Project Cost ($/kW) | B18: =DefaultData!F5 -> 2020
A19: Operations and Maintenance Cost ($/kW) | B19: =DefaultData!G9 -> 25 | D19: =IF(B$19<DefaultData!AT$56," **Costs may be below industry standards.**","") -> 
A20: Utilize Project Cost Data default values in analysis? Choose "Y" to accept default values below or "N" to over-ride default | B20: Y | D20: =IF($B$20="y","Press 'Go To Summary Impacts' Button",IF($B$20="N","Modify Project Cost Data (below)","Error - Re-enter 'Y' or 'N'")) -> Press 'Go To Summary Impacts' Button
A21: values and utilize new user defined values as entered below. See FAQ for related topics.
A23: If desired, default values (in cells below - based on Project Descriptive Data entered above) may be restored by pressing the 'Restore Default Values' button. Note: it is not necessary to restore defaults to incorporate default Project Cost Data in system analysis - simply choose "Y" in cell B24 above.
A24: Project cost Data
A25: Construction Costs | AH25: Default Values
B26: Cost | C26: Cost Per kW | D26: Percent of Total Cost | E26: Local Share | AH26: Cost | AI26: Local Share
A27: Equipment Costs | AA27: Local share according to selected state or user defined region
A28: Turbines and other equipment (excluding blades and towers) | B28: =DefaultData!$D32 -> 89992395.96 | C28: =B28/(B$11*1000) -> 899.9239596 | D28: =B28/B$59 -> 0.445451686 | E28: =$AA28 -> 0 | AA28: =IF($AA$9=0,DefaultData!$G32,IF($AA$9=2,"Pop. Data Missing",IF($B$10<DefaultData!$H$13,DefaultData!$H32,IF($B$10<DefaultData!$I$13,DefaultData!$O32,IF($B$10<DefaultData!$J$13,DefaultData!$R32,DefaultData!$U32))))) -> 0 | AH28: =DefaultData!$D32 -> 89992395.96 | AI28: =$AA28 -> 0
A29: Blades | B29: =DefaultData!$D33 -> 21068453.9 | C29: =B29/(B$11*1000) -> 210.684539 | D29: =B29/B$59 -> 0.1042863479 | E29: =$AA29 -> 0 | AA29: =IF($AA$9=0,DefaultData!$G33,IF($AA$9=2,"Pop. Data Missing",IF($B$10<DefaultData!$H$13,DefaultData!$H33,IF($B$10<DefaultData!$I$13,DefaultData!$O33,IF($B$10<DefaultData!$J$13,DefaultData!$R33,DefaultData!$U33))))) -> 0 | AH29: =DefaultData!$D33 -> 21068453.9 | AI29: =$AA29 -> 0
A30: Towers | B30: =DefaultData!$D34 -> 23325788.25 | C30: =B30/(B$11*1000) -> 233.2578825 | D30: =B30/B$59 -> 0.1154598852 | E30: =$AA30 -> 0 | AA30: =IF($AA$9=0,DefaultData!$G34,IF($AA$9=2,"Pop. Data Missing",IF($B$10<DefaultData!$H$13,DefaultData!$H34,IF($B$10<DefaultData!$I$13,DefaultData!$O34,IF($B$10<DefaultData!$J$13,DefaultData!$R34,DefaultData!$U34))))) -> 0 | AH30: =DefaultData!$D34 -> 23325788.25 | AI30: =$AA30 -> 0
A31: Transportation | B31: =DefaultData!$D35 -> 16102318.34 | C31: =B31/(B$11*1000) -> 161.0231834 | D31: =B31/B$59 -> 0.0797045659 | E31: =$AA31 -> 0 | AA31: =IF($AA$9=0,DefaultData!$G35,IF($AA$9=2,"Pop. Data Missing",IF($B$10<DefaultData!$H$13,DefaultData!$H35,IF($B$10<DefaultData!$I$13,DefaultData!$O35,IF($B$10<DefaultData!$J$13,DefaultData!$R35,DefaultData!$U35))))) -> 0 | AH31: =DefaultData!$D35 -> 16102318.34 | AI31: =$AA31 -> 0
A32: Equipment Total | B32: =SUM(B28:B31) -> 150488956.5 | C32: =SUM(C28:C31) -> 1504.889565 | D32: =SUM(D28:D31) -> 0.744902485 | AH32: =SUM(AH28:AH31) -> 150488956.5
A33: Balance of Plant
A34: Materials
A35: Construction (concrete, rebar, equip, roads and site prep) | B35: =DefaultData!$D18 -> 21745654.5 | C35: =B35/(B$11*1000) -> 217.456545 | D35: =B35/B$59 -> 0.1076384105 | E35: =$AA35 -> 0.9 | AA35: =IF($AA$9=0,DefaultData!$G18,IF($AA$9=2,"Pop. Data Missing",IF($B$10<DefaultData!$H$13,DefaultData!$H18,IF($B$10<DefaultData!$I$13,DefaultData!$O18,IF($B$10<DefaultData!$J$13,DefaultData!$R18,DefaultData!$U18))))) -> 0.9 | AH35: =DefaultData!$D18 -> 21745654.5 | AI35: =$AA35 -> 0.9
A36: Transformer | B36: =DefaultData!$D19 -> 2459884.348 | C36: =B36/(B$11*1000) -> 24.59884348 | D36: =B36/B$59 -> 0.01217613576 | E36: =$AA36 -> 0 | AA36: =IF($AA$9=0,DefaultData!$G19,IF($AA$9=2,"Pop. Data Missing",IF($B$10<DefaultData!$H$13,DefaultData!$H19,IF($B$10<DefaultData!$I$13,DefaultData!$O19,IF($B$10<DefaultData!$J$13,DefaultData!$R19,DefaultData!$U19))))) -> 0 | AH36: =DefaultData!$D19 -> 2459884.348 | AI36: =$AA36 -> 0
A37: Electrical (drop cable, wire, ) | B37: =DefaultData!$D20 -> 2592884.32 | C37: =B37/(B$11*1000) -> 25.9288432 | D37: =B37/B$59 -> 0.01283446984 | E37: =$AA37 -> 1 | AA37: =IF($AA$9=0,DefaultData!$G20,IF($AA$9=2,"Pop. Data Missing",IF($B$10<DefaultData!$H$13,DefaultData!$H20,IF($B$10<DefaultData!$I$13,DefaultData!$O20,IF($B$10<DefaultData!$J$13,DefaultData!$R20,DefaultData!$U20))))) -> 1 | AH37: =DefaultData!$D20 -> 2592884.32 | AI37: =$AA37 -> 1
A38: HV line extension | B38: =DefaultData!$D21 -> 4736334.623 | C38: =B38/(B$11*1000) -> 47.36334623 | D38: =B38/B$59 -> 0.02344429461 | E38: =$AA38 -> 0.7 | AA38: =IF($AA$9=0,DefaultData!$G21,IF($AA$9=2,"Pop. Data Missing",IF($B$10<DefaultData!$H$13,DefaultData!$H21,IF($B$10<DefaultData!$I$13,DefaultData!$O21,IF($B$10<DefaultData!$J$13,DefaultData!$R21,DefaultData!$U21))))) -> 0.7 | AH38: =DefaultData!$D21 -> 4736334.623 | AI38: =$AA38 -> 0.7
A39: Materials Subtotal | B39: =SUM(B35:B38) -> 31534757.79 | C39: =SUM(C35:C38) -> 315.3475779 | D39: =SUM(D35:D38) -> 0.1560933107 | AH39: =SUM(AH35:AH38) -> 31534757.79
A40: Labour
A41: Foundation | B41: =DefaultData!$D24 -> 1105050.829 | C41: =B41/(B$11*1000) -> 11.05050829 | D41: =B41/B$59 -> 0.005469870532 | E41: =$AA41 -> 0.95 | AA41: =IF($AA$9=0,DefaultData!$G24,IF($AA$9=2,"Pop. Data Missing",IF($B$10<DefaultData!$H$13,DefaultData!$H24,IF($B$10<DefaultData!$I$13,DefaultData!$O24,IF($B$10<DefaultData!$J$13,DefaultData!$R24,DefaultData!$U24))))) -> 0.95 | AH41: =DefaultData!$D24 -> 1105050.829 | AI41: =$AA41 -> 0.95
A42: Erection | B42: =DefaultData!$D25 -> 1821520.021 | C42: =B42/(B$11*1000) -> 18.21520021 | D42: =B42/B$59 -> 0.009016308055 | E42: =$AA42 -> 0.75 | AA42: =IF($AA$9=0,DefaultData!$G25,IF($AA$9=2,"Pop. Data Missing",IF($B$10<DefaultData!$H$13,DefaultData!$H25,IF($B$10<DefaultData!$I$13,DefaultData!$O25,IF($B$10<DefaultData!$J$13,DefaultData!$R25,DefaultData!$U25))))) -> 0.75 | AH42: =DefaultData!$D25 -> 1821520.021 | AI42: =$AA42 -> 0.75
A43: Electrical | B43: =DefaultData!$D26 -> 2444157.562 | C43: =B43/(B$11*1000) -> 24.44157562 | D43: =B43/B$59 -> 0.01209829003 | E43: =$AA43 -> 0.7 | AA43: =IF($AA$9=0,DefaultData!$G26,IF($AA$9=2,"Pop. Data Missing",IF($B$10<DefaultData!$H$13,DefaultData!$H26,IF($B$10<DefaultData!$I$13,DefaultData!$O26,IF($B$10<DefaultData!$J$13,DefaultData!$R26,DefaultData!$U26))))) -> 0.7 | AH43: =DefaultData!$D26 -> 2444157.562 | AI43: =$AA43 -> 0.7
A44: Management/Supervision | B44: =DefaultData!$D27 -> 1341768.845 | C44: =B44/(B$11*1000) -> 13.41768845 | D44: =B44/B$59 -> 0.006641596635 | E44: =$AA44 -> 0.1 | AA44: =IF($AA$9=0,DefaultData!$G27,IF($AA$9=2,"Pop. Data Missing",IF($B$10<DefaultData!$H$13,DefaultData!$H27,IF($B$10<DefaultData!$I$13,DefaultData!$O27,IF($B$10<DefaultData!$J$13,DefaultData!$R27,DefaultData!$U27))))) -> 0.1 | AH44: =DefaultData!$D27 -> 1341768.845 | AI44: =$AA44 -> 0.1
A45: Misc. | B45: =DefaultData!$D28 -> 7676000 | C45: =B45/(B$11*1000) -> 76.76 | D45: =B45/B$59 -> 0.03799528955 | E45: =$AA45 -> 0.5 | AA45: =IF($AA$9=0,DefaultData!$G28,IF($AA$9=2,"Pop. Data Missing",IF($B$10<DefaultData!$H$13,DefaultData!$H28,IF($B$10<DefaultData!$I$13,DefaultData!$O28,IF($B$10<DefaultData!$J$13,DefaultData!$R28,DefaultData!$U28))))) -> 0.5 | AH45: =DefaultData!$D28 -> 7676000 | AI45: =$AA45 -> 0.5
A46: Labour Subtotal | B46: =SUM(B41:B45) -> 14388497.26 | C46: =SUM(C41:C45) -> 143.8849726 | D46: =SUM(D41:D45) -> 0.0712213548 | AH46: =SUM(AH41:AH45) -> 14388497.26
A47: Development/Other Costs
A48: HV Sub/Interconnection | AA48: =IF($AA$9=0,DefaultData!$G38,IF($AA$9=2,"Pop. Data Missing",IF($B$10<DefaultData!$H$13,DefaultData!$H38,IF($B$10<DefaultData!$I$13,DefaultData!$O38,IF($B$10<DefaultData!$J$13,DefaultData!$R38,DefaultData!$U38))))) -> 0.9
A49: Materials | B49: =DefaultData!$D39 -> 1494495.686 | C49: =B49/(B$11*1000) -> 14.94495686 | D49: =B49/B$59 -> 0.007397576383 | E49: =$AA49 -> 0.9 | AA49: =IF($AA$9=0,DefaultData!$G39,IF($AA$9=2,"Pop. Data Missing",IF($B$10<DefaultData!$H$13,DefaultData!$H39,IF($B$10<DefaultData!$I$13,DefaultData!$O39,IF($B$10<DefaultData!$J$13,DefaultData!$R39,DefaultData!$U39))))) -> 0.9 | AH49: =DefaultData!$D39 -> 1494495.686 | AI49: =$AA49 -> 0.9
A50: Labour | B50: =DefaultData!$D40 -> 457793.4791 | C50: 4.577934791 | D50: 0.002266023423 | E50: 0.1 | AA50: =IF($AA$9=0,DefaultData!$G40,IF($AA$9=2,"Pop. Data Missing",IF($B$10<DefaultData!$H$13,DefaultData!$H40,IF($B$10<DefaultData!$I$13,DefaultData!$O40,IF($B$10<DefaultData!$J$13,DefaultData!$R40,DefaultData!$U40))))) -> 0.1 | AH50: =DefaultData!$D40 -> 457793.4791 | AI50: 0.1
A51: Engineering | B51: =DefaultData!$D41 -> 2033634.547 | C51: 20.33634547 | D51: 0.0100662498 | E51: 0 | AA51: =IF($AA$9=0,DefaultData!$G41,IF($AA$9=2,"Pop. Data Missing",IF($B$10<DefaultData!$H$13,DefaultData!$H41,IF($B$10<DefaultData!$I$13,DefaultData!$O41,IF($B$10<DefaultData!$J$13,DefaultData!$R41,DefaultData!$U41))))) -> 0 | AH51: =DefaultData!$D41 -> 2033634.547 | AI51: 0
A52: Legal Services | B52: =DefaultData!$D42 -> 1108330.828 | C52: 11.08330828 | D52: 0.00548610614 | E52: 1 | AA52: =IF($AA$9=0,DefaultData!$G42,IF($AA$9=2,"Pop. Data Missing",IF($B$10<DefaultData!$H$13,DefaultData!$H42,IF($B$10<DefaultData!$I$13,DefaultData!$O42,IF($B$10<DefaultData!$J$13,DefaultData!$R42,DefaultData!$U42))))) -> 1 | AH52: =DefaultData!$D42 -> 1108330.828 | AI52: 1
A53: Land Easements | B53: =DefaultData!$D43 -> 0 | C53: 0 | D53: 0 | E53: 1 | AA53: =IF($AA$9=0,DefaultData!$G43,IF($AA$9=2,"Pop. Data Missing",IF($B$10<DefaultData!$H$13,DefaultData!$H43,IF($B$10<DefaultData!$I$13,DefaultData!$O43,IF($B$10<DefaultData!$J$13,DefaultData!$R43,DefaultData!$U43))))) -> 1 | AH53: =DefaultData!$D43 -> 0 | AI53: 1
A54: Site Certificate/Permitting | B54: =DefaultData!$D44 -> 518576.8094 | C54: 5.185768094 | D54: 0.002566893698 | E54: 1 | AA54: =IF($AA$9=0,DefaultData!$G44,IF($AA$9=2,"Pop. Data Missing",IF($B$10<DefaultData!$H$13,DefaultData!$H44,IF($B$10<DefaultData!$I$13,DefaultData!$O44,IF($B$10<DefaultData!$J$13,DefaultData!$R44,DefaultData!$U44))))) -> 1 | AH54: =DefaultData!$D44 -> 518576.8094 | AI54: 1
A55: Development/Other Subtotal | B55: =SUM(B49:B54) -> 5612831.349 | C55: =SUM(C49:C54) -> 56.12831349 | D55: =SUM(D49:D54) -> 0.02778284944 | AH55: =SUM(AH49:AH54) -> 5612831.349
A56: Balance of Plant Total | B56: =B39+B46+B55 -> 51536086.4 | C56: =C39+C46+C55 -> 515.360864 | D56: =D39+D46+D55 -> 0.255097515 | AH56: =AH39+AH46+AH55 -> 51536086.4
A57: Subtotal (all cost without taxes) | B57: =B32+B56 -> 202025042.9 | C57: =B57/(B$11*1000) -> 2020.250429 | D57: =B57/B$59 -> 1 | AH57: =AH32+AH56 -> 202025042.9
A58: Sales Tax (Material and Equipment Purchases) | B58: =DefaultData!$D47 -> 0 | C58: =B58/(B$11*1000) -> 0 | D58: =B58/B$59 -> 0 | E58: =$E$102 -> 1 | AA58: =IF($AA$9=0,DefaultData!$G47,IF($AA$9=2,"Pop. Data Missing",IF($B$10<DefaultData!$H$13,DefaultData!$H47,IF($B$10<DefaultData!$I$13,DefaultData!$O47,IF($B$10<DefaultData!$J$13,DefaultData!$R47,DefaultData!$U47))))) -> 1 | AH58: =DefaultData!$D47 -> 0 | AI58: =$E$102 -> 1
A59: Total | B59: =B57+B58 -> 202025042.9 | C59: =C57+C58 -> 2020.250429 | D59: =D57+D58 -> 1 | AH59: =AH57+AH58 -> 202025042.9
A62: Annual Operating and Maintenance Costs
B63: Cost | C63: Cost Per kW | D63: Percent of Total Cost | E63: Local Share or % of Time Onsite (for itinerate workers) | AH63: Cost | AI63: Local Share or % of Time Onsite (for itinerate workers)
A64: Labour
A65: Personnel
A66: Field Salaries (i.e., onsite wind technicians, etc.) | B66: =DefaultData!$D55 -> 358201.5218 | C66: =B66/(B$11*1000) -> 3.582015218 | D66: =B66/B$82 -> 0.1432806087 | E66: =$AA66 -> 1 | AA66: =IF($AA$9=0,DefaultData!$G55,IF($AA$9=2,"Pop. Data Missing",IF($B$10<DefaultData!$H$13,DefaultData!$H55,IF($B$10<DefaultData!$I$13,DefaultData!$O55,IF($B$10<DefaultData!$J$13,DefaultData!$R55,DefaultData!$U55))))) -> 1 | AH66: =DefaultData!$D55 -> 358201.5218 | AI66: =$AA66 -> 1
A67: Administrative | B67: =DefaultData!$D56 -> 59934.57203 | C67: =B67/(B$11*1000) -> 0.5993457203 | D67: =B67/B$82 -> 0.02397382881 | E67: =$AA67 -> 1 | AA67: =IF($AA$9=0,DefaultData!$G56,IF($AA$9=2,"Pop. Data Missing",IF($B$10<DefaultData!$H$13,DefaultData!$H56,IF($B$10<DefaultData!$I$13,DefaultData!$O56,IF($B$10<DefaultData!$J$13,DefaultData!$R56,DefaultData!$U56))))) -> 1 | AH67: =DefaultData!$D56 -> 59934.57203 | AI67: =$AA67 -> 1
A68: Management | B68: =DefaultData!$D57 -> 142852.7229 | C68: =B68/(B$11*1000) -> 1.428527229 | D68: =B68/B$82 -> 0.05714108917 | E68: =$AA68 -> 1 | AA68: =IF($AA$9=0,DefaultData!$G57,IF($AA$9=2,"Pop. Data Missing",IF($B$10<DefaultData!$H$13,DefaultData!$H57,IF($B$10<DefaultData!$I$13,DefaultData!$O57,IF($B$10<DefaultData!$J$13,DefaultData!$R57,DefaultData!$U57))))) -> 1 | AH68: =DefaultData!$D57 -> 142852.7229 | AI68: =$AA68 -> 1
A69: Labour/Personnel Subtotal | B69: =SUM(B66:B68) -> 560988.8167 | C69: =SUM(C66:C68) -> 5.609888167 | D69: =SUM(D66:D68) -> 0.2243955267 | AH69: =SUM(AH66:AH68) -> 560988.8167
A70: Materials and Services
A71: Vehicles | B71: =DefaultData!$D63 -> 55392.40632 | C71: =B71/(B$11*1000) -> 0.5539240632 | D71: =B71/B$82 -> 0.02215696253 | E71: =$AA71 -> 1 | AA71: =IF($AA$9=0,DefaultData!$G63,IF($AA$9=2,"Pop. Data Missing",IF($B$10<DefaultData!$H$13,DefaultData!$H63,IF($B$10<DefaultData!$I$13,DefaultData!$O63,IF($B$10<DefaultData!$J$13,DefaultData!$R63,DefaultData!$U63))))) -> 1 | AH71: =DefaultData!$D63 -> 55392.40632 | AI71: =$AA71 -> 1
A72: Site Maint/Misc. Services | B72: =DefaultData!$D64 -> 21603.03847 | C72: =B72/(B$11*1000) -> 0.2160303847 | D72: =B72/B$82 -> 0.008641215386 | E72: =$AA72 -> 0.8 | AA72: =IF($AA$9=0,DefaultData!$G64,IF($AA$9=2,"Pop. Data Missing",IF($B$10<DefaultData!$H$13,DefaultData!$H64,IF($B$10<DefaultData!$I$13,DefaultData!$O64,IF($B$10<DefaultData!$J$13,DefaultData!$R64,DefaultData!$U64))))) -> 0.8 | AH72: =DefaultData!$D64 -> 21603.03847 | AI72: =$AA72 -> 0.8
A73: Fees, Permits, Licenses | B73: =DefaultData!$D65 -> 10801.51923 | C73: 0.1080151923 | D73: 0.004320607693 | E73: 1 | AA73: =IF($AA$9=0,DefaultData!$G65,IF($AA$9=2,"Pop. Data Missing",IF($B$10<DefaultData!$H$13,DefaultData!$H65,IF($B$10<DefaultData!$I$13,DefaultData!$O65,IF($B$10<DefaultData!$J$13,DefaultData!$R65,DefaultData!$U65))))) -> 1 | AH73: =DefaultData!$D65 -> 10801.51923 | AI73: 1
A74: Utilities | B74: =DefaultData!$D66 -> 43206.07693 | C74: 0.4320607693 | D74: 0.01728243077 | E74: 1 | AA74: =IF($AA$9=0,DefaultData!$G66,IF($AA$9=2,"Pop. Data Missing",IF($B$10<DefaultData!$H$13,DefaultData!$H66,IF($B$10<DefaultData!$I$13,DefaultData!$O66,IF($B$10<DefaultData!$J$13,DefaultData!$R66,DefaultData!$U66))))) -> 1 | AH74: =DefaultData!$D66 -> 43206.07693 | AI74: 1
A75: Insurance | B75: =DefaultData!$D67 -> 415443.0474 | C75: 4.154430474 | D75: 0.166177219 | E75: 0 | AA75: =IF($AA$9=0,DefaultData!$G67,IF($AA$9=2,"Pop. Data Missing",IF($B$10<DefaultData!$H$13,DefaultData!$H67,IF($B$10<DefaultData!$I$13,DefaultData!$O67,IF($B$10<DefaultData!$J$13,DefaultData!$R67,DefaultData!$U67))))) -> 0 | AH75: =DefaultData!$D67 -> 415443.0474 | AI75: 0
A76: Fuel (motor vehicle gasoline) | B76: =DefaultData!$D68 -> 21603.03847 | C76: 0.2160303847 | D76: 0.008641215386 | E76: 1 | AA76: =IF($AA$9=0,DefaultData!$G68,IF($AA$9=2,"Pop. Data Missing",IF($B$10<DefaultData!$H$13,DefaultData!$H68,IF($B$10<DefaultData!$I$13,DefaultData!$O68,IF($B$10<DefaultData!$J$13,DefaultData!$R68,DefaultData!$U68))))) -> 1 | AH76: =DefaultData!$D68 -> 21603.03847 | AI76: 1
A77: Consumables/Tools and Misc. Supplies | B77: =DefaultData!$D69 -> 140419.75 | C77: 1.4041975 | D77: 0.05616790001 | E77: 1 | AA77: =IF($AA$9=0,DefaultData!$G69,IF($AA$9=2,"Pop. Data Missing",IF($B$10<DefaultData!$H$13,DefaultData!$H69,IF($B$10<DefaultData!$I$13,DefaultData!$O69,IF($B$10<DefaultData!$J$13,DefaultData!$R69,DefaultData!$U69))))) -> 1 | AH77: =DefaultData!$D69 -> 140419.75 | AI77: 1
A78: Replacement Parts/Equipment/ Spare Parts Inventory | B78: =DefaultData!$D70 -> 1230542.306 | C78: 12.30542306 | D78: 0.4922169226 | E78: 0.02 | AA78: =IF($AA$9=0,DefaultData!$G70,IF($AA$9=2,"Pop. Data Missing",IF($B$10<DefaultData!$H$13,DefaultData!$H70,IF($B$10<DefaultData!$I$13,DefaultData!$O70,IF($B$10<DefaultData!$J$13,DefaultData!$R70,DefaultData!$U70))))) -> 0.02 | AH78: =DefaultData!$D70 -> 1230542.306 | AI78: 0.02
A79: Materials and Services Subtotal | B79: =SUM(B71:B78) -> 1939011.183 | C79: =SUM(C71:C78) -> 19.39011183 | D79: =SUM(D71:D78) -> 0.7756044733 | AH79: =SUM(AH71:AH78) -> 1939011.183
A80: Sales Tax (Materials & Equipment Purchases) | B80: =DefaultData!$D72 -> 0 | C80: =B80/(B$11*1000) -> 0 | D80: =B80/B$82 -> 0 | E80: =$AA80 -> 1 | AA80: =DefaultData!G72 -> 1 | AH80: =DefaultData!$D72 -> 0 | AI80: =$AA80 -> 1
A81: Other Taxes/Payments | B81: =DefaultData!$D73 -> 0 | C81: =B81/(B$11*1000) -> 0 | D81: =B81/B$82 -> 0 | E81: =$AA81 -> 1 | AA81: =DefaultData!G73 -> 1 | AH81: =DefaultData!$D73 -> 0 | AI81: =$AA81 -> 1
A82: Total O&M Cost | B82: =B69+B79+B80+B81 -> 2500000 | C82: =C69+C79+C80+C81 -> 25 | D82: =D69+D79+D80+D81 -> 1 | AH82: =AH69+AH79+AH80+AH81 -> 2500000
A85: Other Parameters
A86: Financial Parameters | E86: Local Share | AI86: Local Share
A87: Debt Financing
A88: Percentage financed | B88: =DefaultData!$D84 -> 0.8 | E88: =DefaultData!$G84 -> 0 | AH88: =DefaultData!$D84 -> 0.8 | AI88: =DefaultData!$G84 -> 0
A89: Years financed (term) | B89: =DefaultData!$D85 -> 20 | AH89: =DefaultData!$D85 -> 20
A90: Interest rate | B90: =DefaultData!$D86 -> 0.065 | AH90: =DefaultData!$D86 -> 0.065
A91: Equity Financing/Repayment
A92: Percentage equity | B92: =1-B88 -> 0.2 | AH92: =1-AH88 -> 0.2
A93: Individual Investors (percent of total equity) | B93: =DefaultData!$D90 -> 0 | E93: =DefaultData!$G90 -> 1 | AH93: =DefaultData!$D90 -> 0 | AI93: =DefaultData!$G90 -> 1
A94: Corporate Investors (percent of total equity) | B94: =DefaultData!$D91 -> 1 | E94: =DefaultData!$G91 -> 0 | AH94: =DefaultData!$D91 -> 1 | AI94: =DefaultData!$G91 -> 0
A95: Return on equity (annual interest rate) | B95: =DefaultData!$D92 -> 0.1 | AH95: =DefaultData!$D92 -> 0.1
A96: Repayment term (years) | B96: =DefaultData!$D93 -> 20 | AH96: =DefaultData!$D93 -> 20
A97: Tax Parameters
A98: Local Property Tax Rate (avg millage rate - $/$1,000) | B98: =DefaultData!$D96 -> NA | AH98: =DefaultData!$D96 -> NA
A99: Assessed value (percent of construction cost) | B99: =DefaultData!$D97 -> NA | AH99: =DefaultData!$D97 -> NA
A100: Taxable Value | B100: =IF($B98="NA","NA",$B59*$B99) -> NA | AH100: =IF($B98="NA","NA",$B59*$B99) -> NA
A101: Taxes Per MW | B101: =DefaultData!$D99 -> 5555 | AH101: =DefaultData!$D99 -> 5555
A102: Local Taxes | B102: =IF($B98="NA",IF(B101="NA",0,$B101*$B11),($B100/1000)*$B98) -> 555500 | E102: =DefaultData!$G100 -> 1 | AH102: =IF($B98="NA",IF(AH101="NA",0,$B101*$B11),($B100/1000)*$B98) -> 555500 | AI102: =DefaultData!$G100 -> 1
A103: Local Sales Tax Rate | B103: =DefaultData!$D101 -> 0 | E103: =DefaultData!$G101 -> 1 | AH103: =DefaultData!$D101 -> 0 | AI103: =DefaultData!$G101 -> 1
A104: Land Lease Parameters
A105: Land Lease Cost (per turbine) | B105: =DefaultData!$D103 -> 8250 | AH105: =DefaultData!$D103 -> 8250
A106: Number of Turbines | B106: =$B13 -> 40 | AH106: =$B13 -> 40
A107: Land Lease (total cost) | B107: =B105*B106 -> 330000 | AH107: =AH105*AH106 -> 330000
A108: Lease Payment recipient (F = farmer/household, O = Other) | B108: =DefaultData!$D105 -> F | E108: =DefaultData!$G105 -> 1 | AH108: =DefaultData!$D105 -> F | AI108: =DefaultData!$G105 -> 1
A109: Payroll Parameters
A110: Construction Labour | B110: Wage per hour | D110: Employer Payroll Overhead | AH110: Wage per hour | AJ110: Employer Payroll Overhead
A111: Foundation | B111: =DefaultData!$F110 -> 17.39154558 | D111: =DefaultData!$H110 -> 0.3383 | AH111: =DefaultData!$F110 -> 17.39154558 | AJ111: =DefaultData!$H110 -> 0.3383
A112: Erection | B112: =DefaultData!$F111 -> 28.66750347 | D112: =DefaultData!$H111 -> 0.3383 | AH112: =DefaultData!$F111 -> 28.66750347 | AJ112: =DefaultData!$H111 -> 0.3383
A113: Electrical | B113: =DefaultData!$F112 -> 34.96974284 | D113: =DefaultData!$H112 -> 0.3383 | AH113: =DefaultData!$F112 -> 34.96974284 | AJ113: =DefaultData!$H112 -> 0.3383
A114: Management/Supervision | B114: =DefaultData!$F113 -> 33.84983271 | D114: =DefaultData!$H113 -> 0.3383 | AH114: =DefaultData!$F113 -> 33.84983271 | AJ114: =DefaultData!$H113 -> 0.3383
A115: O&M Labour | B115: Wage per hour | D115: Employer Payroll Overhead | AH115: Wage per hour | AJ115: Employer Payroll Overhead
A116: Field Salaries (technicians, other) | B116: =DefaultData!$F115 -> 32.16996751 | D116: =DefaultData!$H115 -> 0.3383 | AH116: =DefaultData!$F115 -> 32.16996751 | AJ116: =DefaultData!$H115 -> 0.3383
A117: Administrative | B117: =DefaultData!$F116 -> 21.53082126 | D117: =DefaultData!$H116 -> 0.3383 | AH117: =DefaultData!$F116 -> 21.53082126 | AJ117: =DefaultData!$H116 -> 0.3383
A118: Management/Supervision | B118: =DefaultData!$F117 -> 51.31823486 | D118: =DefaultData!$H117 -> 0.3383 | AH118: =DefaultData!$F117 -> 51.31823486 | AJ118: =DefaultData!$H117 -> 0.3383

Sheet SummaryResults
A1: =CONCATENATE("Wind Farm - Project Data Summary based on ",$AE$4, " values") -> Wind Farm - Project Data Summary based on User Data values
A2: Project Location | C2: =IF(ProjectData!B9="MyCounty",'User Add-in Location'!#REF!,ProjectData!B9) -> Alberta | AE2: =D8+D9 -> 2045.250429 | AF2: =ProjectData!B20 -> Y
A3: Year of Construction | C3: =ProjectData!B15 -> 2022 | AE3: =DefaultData!E46+DefaultData!E80 -> 2045.250429
A4: Total Project Size - Nameplate Capacity (MW) | C4: =ProjectData!B11 -> 100 | AE4: =IF(AND(AE2=AE3,AF2="Y"),"Model Default Data","User Data") -> User Data
A6: Turbine Size (kW) | C6: =ProjectData!B12 -> 2500 | AE6: =_xlfn.CONCAT("EI2-WIND_",ProjectData!B8) -> EI2-WIND_Project 1
A7: Number of Turbines | C7: =ProjectData!B13 -> 40
A8: Installed Project Cost ($/kW) | C8: =Calculations!D37/(C4*1000) -> 2020.250429 | D8: =ProjectData!C57 -> 2020.250429 | E8: without taxes
A9: Annual O&M Cost ($/kW) | C9: =Calculations!D93 -> 25 | D9: =ProjectData!C69+ProjectData!C79 -> 25 | E9: without taxes
A10: Money Value (Dollar Year) | C10: =ProjectData!B16 -> 2020
A11: Total Installed Project Cost | C11: =Calculations!D37 -> 202025042.9 | AE11: Total Installed Project Cost | AF11: =C11/(C$11+C$13) -> 0.7433271582 | AG11: =AF11-AF12 -> 0.6086759099 | AH11: Installed Project Cost
A12: Local Spending | C12: =Calculations!D57 -> 36596166.19 | AE12: Installed Project Local Spending | AF12: =C12/(C$11+C$13) -> 0.1346512483
A13: Total Annual Operational Expenses | C13: =C14+C16 -> 69759783.83 | AE13: Total Annual Operational Expenses | AF13: 0.2566728418 | AG13: =AF13-(AF15+AF17) -> 0.2501978487 | AH13: Annual Operation Expenses
A14: Direct Operating and Maintenance Costs | C14: =Calculations!D92 -> 2500000 | AE14: Direct Operating and Maintenance Costs | AF14: 0.009198453168
A15: O&M Local Spending | C15: =Calculations!G92 -> 874304.8846 | AE15: O&M Local Spending | AF15: 0.003216901014 | AG15: =AF15+AF17 -> 0.006474993126 | AH15: Annual Operation Local Spending
A16: Other Annual Costs | C16: =Calculations!E92 -> 67259783.83 | AE16: Other Annual Costs | AF16: 0.2474743886
A17: Other Local Spending | C17: =Calculations!H92 -> 885500 | AE17: Other Local Spending | AF17: 0.003258092112
A18: Debt and Equity Payments | C18: =SUM(Calculations!G86:G88) -> 0 | AE18: Debt and Equity Payments | AF18: 0
A19: Property Taxes | C19: =Calculations!G89 -> 555500 | AE19: Property Taxes | AF19: 0.002043896294
A20: Land Lease | C20: =Calculations!G90 -> 330000 | AE20: Land Lease | AF20: 0.001214195818
A22: Local Economic Impacts - Summary Results | AE22: Local Economic Impacts - Construction phase - # of jobs created
B23: Jobs | C23: Earnings | D23: Output | E23: Value Added | AE23: During construction period | AF23: JOBS | AI23: Earnings | AJ23: Output | AK23: Value Added
A24: During construction period | AE24: Induced Impacts | AF24: =B30 -> 45.37899804 | AH24: Induced Impacts | AI24: =C30 -> 2.383692902 | AJ24: 9.388691183 | AK24: 5.83402247
A25: Project Development and Onsite Labour Impacts | AE25: Turbine and Supply Chain Impacts | AF25: =B29 -> 186.6416871 | AH25: Turbine and Supply Chain Impacts | AI25: =C29 -> 14.38908753 | AJ25: 49.33027646 | AK25: 13.68853291
A26: Construction and Interconnection Labour | B26: =Calculations!AH42 -> 57.93934769 | C26: =Calculations!AI42 -> 4.301974528 | AE26: Project Development and Onsite Labour Impacts | AF26: =B28 -> 63.23744179 | AH26: Project Development and Onsite Labour Impacts | AI26: =C28 -> 4.766759873 | AJ26: 5.415135657 | AK26: 11.85220787
A27: Construction Related Services | B27: =Calculations!AH43 -> 5.298094099 | C27: =Calculations!AI43 -> 0.4647853452 | AE27: Total Impacts | AF27: =B31 -> 295.258127 | AH27: Total Impacts | AI27: =C31 -> 21.5395403 | AJ27: =D31 -> 64.1341033 | AK27: =E31 -> 31.37476326
A28: Total Project Development and Onsite Labour Impacts | B28: =Calculations!AH41 -> 63.23744179 | C28: =Calculations!AI41 -> 4.766759873 | D28: =Calculations!AJ41 -> 5.415135657 | E28: =Calculations!AK41 -> 11.85220787
A29: Turbine and Supply Chain Impacts | B29: =Calculations!AH44 -> 186.6416871 | C29: =Calculations!AI44 -> 14.38908753 | D29: =Calculations!AJ44 -> 49.33027646 | E29: =Calculations!AK44 -> 13.68853291 | AE29: Local Economic Impacts - O&M phase - # of jobs created
A30: Induced Impacts | B30: =Calculations!AH45 -> 45.37899804 | C30: =Calculations!AI45 -> 2.383692902 | D30: =Calculations!AJ45 -> 9.388691183 | E30: =Calculations!AK45 -> 5.83402247 | AE30: During operating years (annual) | AF30: JOBS | AI30: Earnings | AJ30: Output | AK30: Value Added
A31: Total Impacts | B31: =Calculations!AH46 -> 295.258127 | C31: =Calculations!AI46 -> 21.5395403 | D31: =Calculations!AJ46 -> 64.1341033 | E31: =Calculations!AK46 -> 31.37476326 | AE31: Induced Impacts | AF31: =B36 -> 2.277296459 | AH31: Induced Impacts | AI31: =C36 -> 0.1196859027 | AJ31: 0.4708070081 | AK31: 0.292441317
AE32: Local Revenue and Supply Chain Impacts | AF32: =B35 -> 9.709140856 | AH32: Local Revenue and Supply Chain Impacts | AI32: =C35 -> 0.7160829977 | AJ32: =D35 -> 2.213168726 | AK32: =E35 -> 1.23719527
A33: During operating years (annual) | AE33: Onsite Labour Impacts | AF33: =B34 -> 6 | AH33: Onsite Labour Impacts | AI33: =C34 -> 0.4095218362 | AJ33: 0.4095218362 | AK33: 0.4095218362
A34: Onsite Labour Impacts | B34: =Calculations!AH50 -> 6 | C34: =Calculations!AI50 -> 0.4095218362 | D34: =Calculations!AJ50 -> 0.4095218362 | E34: =Calculations!AK50 -> 0.4095218362 | AE34: Total Impacts | AF34: 17.98643732 | AH34: Total Impacts | AI34: =C37 -> 1.245290737 | AJ34: =D37 -> 3.093497571 | AK34: =E37 -> 1.939158423
A35: Local Revenue and Supply Chain Impacts | B35: =Calculations!AH51 -> 9.709140856 | C35: =Calculations!AI51 -> 0.7160829977 | D35: =Calculations!AJ51 -> 2.213168726 | E35: =Calculations!AK51 -> 1.23719527
A36: Induced Impacts | B36: =Calculations!AH52 -> 2.277296459 | C36: =Calculations!AI52 -> 0.1196859027 | D36: =Calculations!AJ52 -> 0.4708070081 | E36: =Calculations!AK52 -> 0.292441317
A37: Total Impacts | B37: =Calculations!AH53 -> 17.98643732 | C37: =Calculations!AI53 -> 1.245290737 | D37: =Calculations!AJ53 -> 3.093497571 | E37: =Calculations!AK53 -> 1.939158423
A38: =CONCATENATE("Notes: Earnings and Output values are millions of dollars in year ", ProjectData!B16," dollars.") -> Notes: Earnings and Output values are millions of dollars in year 2020 dollars.
A39: Construction and operating jobs are full-time equivalent for a period of one year (1 FTE = 2,080 hours). Wind farm workers include field technicians, administration and management. Economic impacts "During operating years" represent impacts that occur from wind farm operations/expenditures. The analysis does not include impacts associated with spending of wind farm "profits" and assumes no tax abatement unless noted. Totals may not add up due to independent rounding.
A40: =CONCATENATE("Results are based on ",AE4," values.") -> Results are based on User Data values.
A45: Detailed Wind Farm Project Data Costs | C45: =Calculations!E1 -> Alberta
A47: Construction Costs | C47: Cost | D47: Local Share
A48: Equipment
A49: Turbines | C49: =Calculations!AC21 -> 89992395.96 | D49: =Calculations!AD21 -> 0
A50: Blades | C50: =Calculations!AC22 -> 21068453.9 | D50: =Calculations!AD22 -> 0
A51: Towers | C51: =Calculations!AC23 -> 23325788.25 | D51: =Calculations!AD23 -> 0
A52: Transportation | C52: =Calculations!AC24 -> 16102318.34 | D52: =Calculations!AD24 -> 0
A53: Equipment Total | C53: =Calculations!AC25 -> 150488956.5
A54: Balance of Plant
A55: Materials
A56: Construction (concrete rebar, equip, roads and site prep) | C56: =Calculations!AC7 -> 21745654.5 | D56: =Calculations!AD7 -> 0.9
A57: Transformer | C57: =Calculations!AC8 -> 2459884.348 | D57: =Calculations!AD8 -> 0
A58: Electrical (drop cable, wire, ) | C58: =Calculations!AC9 -> 2592884.32 | D58: =Calculations!AD9 -> 1
A59: HV line extension | C59: =Calculations!AC10 -> 4736334.623 | D59: =Calculations!AD10 -> 0.7
A60: Materials Subtotal | C60: =Calculations!AC11 -> 31534757.79
A61: Labour
A62: Foundation | C62: =Calculations!AC13 -> 1105050.829 | D62: =Calculations!AD13 -> 0.95
A63: Erection | C63: =Calculations!AC14 -> 1821520.021 | D63: =Calculations!AD14 -> 0.75
A64: Electrical | C64: =Calculations!AC15 -> 2444157.562 | D64: =Calculations!AD15 -> 0.7
A65: Management/supervision | C65: =Calculations!AC16 -> 1341768.845 | D65: =Calculations!AD16 -> 0.1
A66: Misc. | C66: =Calculations!AC17 -> 7676000 | D66: =Calculations!AD17 -> 0.5
A67: Labour Subtotal | C67: =Calculations!AC18 -> 14388497.26
A68: Development/Other Costs
A69: HV Sub/Interconnection
A70: Materials | C70: =Calculations!AC28 -> 1494495.686 | D70: =Calculations!AD28 -> 0.9
A71: Labour | C71: =Calculations!AC29 -> 457793.4791 | D71: =Calculations!AD29 -> 0.1
A72: Engineering | C72: =Calculations!AC30 -> 2033634.547 | D72: =Calculations!AD30 -> 0
A73: Legal Services | C73: =Calculations!AC31 -> 1108330.828 | D73: =Calculations!AD31 -> 1
A74: Land Easements | C74: =Calculations!AC32 -> 0 | D74: =Calculations!AD32 -> 1
A75: Site Certificate | C75: =Calculations!AC33 -> 518576.8094 | D75: =Calculations!AD33 -> 1
A76: Development/Other Subtotal | C76: =Calculations!AC34 -> 5612831.349
A77: Balance of Plant Total | C77: =C76+C67+C60 -> 51536086.4
A78: Sales Tax (Materials & Equipment Purchases) | C78: =Calculations!AC36 -> 0 | D78: =Calculations!AD36 -> 1
A79: Total Project Costs | C79: =Calculations!AC37 -> 202025042.9
A81: Wind Plant Annual Operating and Maintenance Costs
A83: Labour Costs
A84: Personnel
A85: Field Salaries | C85: =Calculations!AC43 -> 358201.5218 | D85: =Calculations!AD43 -> 1
A86: Administrative | C86: =Calculations!AC44 -> 59934.57203 | D86: =Calculations!AD44 -> 1
A87: Management | C87: =Calculations!AC45 -> 142852.7229 | D87: =Calculations!AD45 -> 1
A88: Labour/Personnel Subtotal | C88: =Calculations!AC46 -> 560988.8167
A89: Materials and Services
A90: Vehicles | C90: =Calculations!AC51 -> 55392.40632 | D90: =Calculations!AD51 -> 1
A91: Misc. Services | C91: =Calculations!AC52 -> 21603.03847 | D91: =Calculations!AD52 -> 0.8
A92: Fees, Permits, Licenses | C92: =Calculations!AC53 -> 10801.51923 | D92: =Calculations!AD53 -> 1
A93: Misc. Materials | C93: =Calculations!AC54 -> 43206.07693 | D93: =Calculations!AD54 -> 1
A94: Insurance | C94: =Calculations!AC55 -> 415443.0474 | D94: =Calculations!AD55 -> 0
A95: Fuel (motor vehicle gasoline) | C95: =Calculations!AC56 -> 21603.03847 | D95: =Calculations!AD56 -> 1
A96: Tools and Misc. Supplies | C96: =Calculations!AC57 -> 140419.75 | D96: =Calculations!AD57 -> 1
A97: Spare Parts Inventory | C97: =Calculations!AC58 -> 1230542.306 | D97: =Calculations!AD58 -> 0.02
A98: Materials and Services Subtotal | C98: =Calculations!AC59 -> 1939011.183
A99: Sales Tax (Materials & Equipment Purchases) | C99: =Calculations!AC60 -> 0 | D99: =Calculations!AD60 -> 1
A100: Other Taxes/Payments | C100: =Calculations!AC61 -> 0 | D100: =Calculations!AD61 -> 1
A101: Total (with Sales Tax and Other Taxes/Payments) | C101: =Calculations!AC62 -> 2500000
A102: Debt Payment (average annual) | C102: =Calculations!AC63 -> 50566428.01 | D102: =Calculations!AD63 -> 0
A103: Equity Payment - Individuals | C103: =Calculations!AC64 -> 0 | D103: =Calculations!AD64 -> 1
A104: Equity Payment - Corporate | C104: =Calculations!AC65 -> 15807855.82 | D104: =Calculations!AD65 -> 0
A105: Property Taxes | C105: =Calculations!AC66 -> 555500 | D105: =Calculations!AD66 -> 1
A106: Land Lease | C106: =Calculations!AC67 -> 330000 | D106: =Calculations!AD67 -> 1
A107: Total Annual Operating and Maintenance Costs | C107: =Calculations!AC68 -> 69759783.83
A109: Other Parameters
D110: Local share
A111: Financial Parameters
A112: Debt Financing
A113: Percentage financed | C113: =Calculations!AC74 -> 0.8 | D113: =Calculations!AD74 -> 0
A114: Years financed (term) | C114: =Calculations!AC75 -> 20
A115: Interest rate | C115: =Calculations!AC76 -> 0.065
A116: Equity Financing
A117: Percentage equity | C117: =Calculations!AC78 -> 0.2
A118: Individual Investors (percent of total equity) | C118: =Calculations!AC79 -> 0 | D118: =Calculations!AD79 -> 0
A119: Corporate Investors (percent of total equity) | C119: =Calculations!AC80 -> 1 | D119: =Calculations!AD80 -> 0
A120: Return on equity (annual interest rate) | C120: =Calculations!AC81 -> 0.1
A121: Repayment term (years) | C121: =Calculations!AC82 -> 20
A122: Tax Parameters
A123: Local Property Tax Rate (avg millage rate - $/$1,000) | C123: =Calculations!AC84 -> NA
A124: Assessed value (percent of construction cost) | C124: =Calculations!AC85 -> NA
A126: Taxable Value | C126: =Calculations!AC87 -> NA
A127: Taxes Per MW | C127: =Calculations!AC88 -> 5555
A128: Local Taxes | C128: =Calculations!AC89 -> 555500 | D128: =Calculations!AD89 -> 1
A129: Local Sales Tax Rate | C129: =Calculations!AC90 -> 0 | D129: =Calculations!AD90 -> 1
A130: Land Lease Parameters
A131: Land Lease Cost (per turbine) | C131: =Calculations!AC92 -> 8250
A132: Land Lease (total cost) | C132: =Calculations!AC93 -> 330000
A133: Lease Payment recipient (F = farmer/household, O = Other) | C133: =Calculations!AC94 -> F | D133: =Calculations!AD94 -> 0
A134: Payroll Parameters
A135: Construction Labour | C135: Average Wage per hour | D135: Employer Payroll Costs
A136: Foundation | C136: =Calculations!AC97 -> 17.39154558 | D136: =Calculations!AE97 -> 0.3383
A137: Erection | C137: =Calculations!AC98 -> 28.66750347 | D137: =Calculations!AE98 -> 0.3383
A138: Electrical | C138: =Calculations!AC99 -> 34.96974284 | D138: =Calculations!AE99 -> 0.3383
A139: Management/Supervision | C139: =Calculations!AC100 -> 33.84983271 | D139: =Calculations!AE100 -> 0.3383
A140: O&M Labour | C140: Average Wage per hour | D140: Employer Payroll Costs
A141: Field Salaries (technicians, other) | C141: =Calculations!AC102 -> 32.16996751 | D141: =Calculations!AE102 -> 0.3383
A142: Administrative | C142: =Calculations!AC103 -> 21.53082126 | D142: =Calculations!AE103 -> 0.3383
A143: Management | C143: =Calculations!AC104 -> 51.31823486 | D143: =Calculations!AE104 -> 0.3383

Sheet User Add-in Location
A1: Multipliers For Economic Input-Output Analysis
A3: MYREGION (Name) | C3: Year of Data
A4: Province or Territory (Name)
A6: Jobs Direct Multipliers | E6: Personal Consumption Expenditures (PCE)
A7: Jobs Per Million Dollars Change in Final Demand | B7: MyRegion | E7: MYREGION
A8: Agriculture | B8: 0 | E8: 0
A9: Mining | B9: 0 | E9: 0
A10: Construction | B10: 0 | E10: 0
A11: Manufacturing | B11: 0 | E11: 0
A12: Fabricated Metals | B12: 0 | E12: 0
A13: Machinery | B13: 0 | E13: 0
A14: Electrical Equipment | B14: 0 | E14: 0
A15: TCPU | B15: 0 | E15: 0
A16: Wholesale Trade | B16: 0 | E16: 0
A17: Retail Trade | B17: 0 | E17: 0
A18: FIRE | B18: 0 | E18: 0
A19: Misc. Services | B19: 0 | E19: 0
A20: Professional Services | B20: 0 | E20: 0
A21: Government | B21: 0 | E21: 0
E22: =SUM(E8:E21) -> 0 | F22: Total
A23: Jobs Indirect Multipliers
A24: Jobs Per Million Dollars Change in Final Demand | B24: MyRegion
A25: Agriculture | B25: 0
A26: Mining | B26: 0
A27: Construction | B27: 0
A28: Manufacturing | B28: 0
A29: Fabricated Metals | B29: 0
A30: Machinery | B30: 0
A31: Electrical Equipment | B31: 0
A32: TCPU | B32: 0
A33: Wholesale Trade | B33: 0
A34: Retail Trade | B34: 0
A35: FIRE | B35: 0
A36: Misc. Services | B36: 0
A37: Professional Services | B37: 0
A38: Government | B38: 0
A40: Jobs Induced Multipliers
A41: Jobs Per Million Dollars Change in Final Demand | B41: MyRegion
A42: Agriculture | B42: 0
A43: Mining | B43: 0
A44: Construction | B44: 0
A45: Manufacturing | B45: 0
A46: Fabricated Metals | B46: 0
A47: Machinery | B47: 0
A48: Electrical Equipment | B48: 0
A49: TCPU | B49: 0
A50: Wholesale Trade | B50: 0
A51: Retail Trade | B51: 0
A52: FIRE | B52: 0
A53: Misc. Services | B53: 0
A54: Professional Services | B54: 0
A55: Government | B55: 0
A57: Earnings Direct Multipliers
A58: Earnings Per Million Dollars Change in Final Demand | B58: MyRegion
A59: Agriculture | B59: 0
A60: Mining | B60: 0
A61: Construction | B61: 0
A62: Manufacturing | B62: 0
A63: Fabricated Metals | B63: 0
A64: Machinery | B64: 0
A65: Electrical Equipment | B65: 0
A66: TCPU | B66: 0
A67: Wholesale Trade | B67: 0
A68: Retail Trade | B68: 0
A69: FIRE | B69: 0
A70: Misc. Services | B70: 0
A71: Professional Services | B71: 0
A72: Government | B72: 0
A74: Earnings Per Million Dollars Change in Final Demand
A75: Earnings Indirect Multipliers | B75: MyRegion
A76: Agriculture | B76: 0
A77: Mining | B77: 0
A78: Construction | B78: 0
A79: Manufacturing | B79: 0
A80: Fabricated Metals | B80: 0
A81: Machinery | B81: 0
A82: Electrical Equipment | B82: 0
A83: TCPU | B83: 0
A84: Wholesale Trade | B84: 0
A85: Retail Trade | B85: 0
A86: FIRE | B86: 0
A87: Misc. Services | B87: 0
A88: Professional Services | B88: 0
A89: Government | B89: 0
A91: Earnings Induced Multipliers
A92: Earnings Per Million Dollars Change in Final Demand | B92: MyRegion
A93: Agriculture | B93: 0
A94: Mining | B94: 0
A95: Construction | B95: 0
A96: Manufacturing | B96: 0
A97: Fabricated Metals | B97: 0
A98: Machinery | B98: 0
A99: Electrical Equipment | B99: 0
A100: TCPU | B100: 0
A101: Wholesale Trade | B101: 0
A102: Retail Trade | B102: 0
A103: FIRE | B103: 0
A104: Misc. Services | B104: 0
A105: Professional Services | B105: 0
A106: Government | B106: 0
A108: Output Direct Multipliers
A109: Output Per Million Dollars Change in Final Demand | B109: MyRegion
A110: Agriculture | B110: 0
A111: Mining | B111: 0
A112: Construction | B112: 0
A113: Manufacturing | B113: 0
A114: Fabricated Metals | B114: 0
A115: Machinery | B115: 0
A116: Electrical Equipment | B116: 0
A117: TCPU | B117: 0
A118: Wholesale Trade | B118: 0
A119: Retail Trade | B119: 0
A120: FIRE | B120: 0
A121: Misc. Services | B121: 0
A122: Professional Services | B122: 0
A123: Government | B123: 0
A125: Output Indirect Multipliers
A126: Output Per Million Dollars Change in Final Demand | B126: MyRegion
A127: Agriculture | B127: 0
A128: Mining | B128: 0
A129: Construction | B129: 0
A130: Manufacturing | B130: 0
A131: Fabricated Metals | B131: 0
A132: Machinery | B132: 0
A133: Electrical Equipment | B133: 0
A134: TCPU | B134: 0
A135: Wholesale Trade | B135: 0
A136: Retail Trade | B136: 0
A137: FIRE | B137: 0
A138: Misc. Services | B138: 0
A139: Professional Services | B139: 0
A140: Government | B140: 0
A142: Output Induced Multipliers
A143: Output Per Million Dollars Change in Final Demand | B143: MyRegion
A144: Agriculture | B144: 0
A145: Mining | B145: 0
A146: Construction | B146: 0
A147: Manufacturing | B147: 0
A148: Fabricated Metals | B148: 0
A149: Machinery | B149: 0
A150: Electrical Equipment | B150: 0
A151: TCPU | B151: 0
A152: Wholesale Trade | B152: 0
A153: Retail Trade | B153: 0
A154: FIRE | B154: 0
A155: Misc. Services | B155: 0
A156: Professional Services | B156: 0
A157: Government | B157: 0
A159: Value Added Direct Multipliers
A160: Value Added Per Million Dollars Change in Final Demand | B160: MyRegion
A161: Agriculture | B161: 0
A162: Mining | B162: 0
A163: Construction | B163: 0
A164: Manufacturing | B164: 0
A165: Fabricated Metals | B165: 0
A166: Machinery | B166: 0
A167: Electrical Equipment | B167: 0
A168: TCPU | B168: 0
A169: Wholesale Trade | B169: 0
A170: Retail Trade | B170: 0
A171: FIRE | B171: 0
A172: Misc. Services | B172: 0
A173: Professional Services | B173: 0
A174: Government | B174: 0
A176: Value Added Indirect Multipliers
A177: Value Added Per Million Dollars Change in Final Demand | B177: MyRegion
A178: Agriculture | B178: 0
A179: Mining | B179: 0
A180: Construction | B180: 0
A181: Manufacturing | B181: 0
A182: Fabricated Metals | B182: 0
A183: Machinery | B183: 0
A184: Electrical Equipment | B184: 0
A185: TCPU | B185: 0
A186: Wholesale Trade | B186: 0
A187: Retail Trade | B187: 0
A188: FIRE | B188: 0
A189: Misc. Services | B189: 0
A190: Professional Services | B190: 0
A191: Government | B191: 0
A193: Value Added Induced Multipliers
A194: Value Added Per Million Dollars Change in Final Demand | B194: MyRegion
A195: Agriculture | B195: 0
A196: Mining | B196: 0
A197: Construction | B197: 0
A198: Manufacturing | B198: 0
A199: Fabricated Metals | B199: 0
A200: Machinery | B200: 0
A201: Electrical Equipment | B201: 0
A202: TCPU | B202: 0
A203: Wholesale Trade | B203: 0
A204: Retail Trade | B204: 0
A205: FIRE | B205: 0
A206: Misc. Services | B206: 0
A207: Professional Services | B207: 0
A208: Government | B208: 0

Sheet DefaultData
A1: *** WARNING *** This Worksheet contains Data and Formulas that are an integral part of the EI2 model. Although the data and formulas are available for review they must not be changed. Any changes to the data or formulas will impact the analysis and may invalidate the model results. To view the data and formulas simply scroll over to the adjacent columns to the right. | S1: Annual average change
K2: Default | S2: -0.01
H3: Const Jobs/ | I3: =E5 -> 100 | J3: O&M Jobs/ | K3: =E5 -> 100 | L3: MW | O3: Average installed project cost per kW | R3: =HLOOKUP(Year_of_Construction,O4:AC5,2,FALSE) -> 1999.8
D4: Number of Turbines | E4: MW | F4: Total Installed Cost | H4: Foundation | I4: =I$3*AM30 -> 22.82586595 | J4: Field Tech | K4: =K$3*AP56 -> 4 | O4: 2016 | P4: 2017 | Q4: 2018 | R4: 2019 | S4: 2020 | T4: 2021 | U4: 2022 | V4: 2023 | W4: 2024 | X4: 2025 | Y4: =X4+1 -> 2026 | Z4: 2027 | AA4: 2028 | AB4: 2029 | AC4: 2030 | AD4: 2031 | AE4: 2032 | AF4: 2033 | AG4: 2034 | AH4: 2035 | AI4: 2036 | AJ4: 2037 | AK4: 2038 | AL4: 2039 | AM4: 2040
D5: =ROUNDUP(ProjectData!B11*1000/ProjectData!B12,0) -> 40 | E5: =ProjectData!B11 -> 100 | F5: 2020 | H5: Erection | I5: =I$3*AM31 -> 22.82586595 | J5: Admin | K5: =K$3*AP57 -> 1 | O5: 2020 | P5: 2020 | Q5: 2020 | R5: 2020 | S5: 2020 | T5: 2020 | U5: =T5*(1+$S2) -> 1999.8 | V5: 1979.802 | W5: 1960.00398 | X5: 1940.40394 | Y5: 1920.999901 | Z5: 1901.789902 | AA5: 1882.772003 | AB5: 1863.944283 | AC5: 1845.30484 | AD5: 1827 | AE5: 1827 | AF5: 1827 | AG5: 1827 | AH5: 1827 | AI5: 1827 | AJ5: 1827 | AK5: 1827 | AL5: 1827 | AM5: 1827
H6: Electrical | I6: 25.10845255 | J6: Management | K6: =K$3*AP58 -> 1
D7: Construction | F7: User | H7: Management/supervision | I7: 14.23981555 | J7: Total | K7: =SUM(K4:K6) -> 6 | P7: Construction Loc. Adj. | R7: =VLOOKUP(ProjectData!B9,Multipliers!S8:T22,2,FALSE) -> 1.09795111 | AK7: Avg. Turbine Size (KW) | AN7: O&M Cost adjustment
D8: Cost per KW | E8: Project Cost | F8: Selected Cost Per KW | G8: Default Cost Per KW | H8: MW Per Turbine | I8: =SUM(I4:I7) -> 85 | P8: Adj. Installed Cost (per KW) | R8: =Y46 -> 2025.276243 | AL8: 1500 | AN8: <=20 MW | AO8: =25+Z119 -> 25.5004729 | AP8: per KW
D9: =ProjectData!B18 -> 2020 | E9: =D9*ProjectData!B11*1000 -> 202000000 | F9: =ProjectData!B19 -> 25 | G9: 25 | H9: =ProjectData!B12 -> 2500 | AN9: 100 MW | AO9: =20+Z119 -> 20.5004729 | AP9: =AP8 -> per KW
C11: Project Data
H12: Very Small | I12: Small | J12: Medium | K12: Large
H13: 30000 | I13: 100000 | J13: 300000 | K13: 400000 | M13: =ProjectData!B10 -> 0
C14: Construction Costs | D14: Cost | E14: Cost | F14: Percent | G14: State | H14: County | I14: County | J14: County | K14: County | O14: 30000 | V14: Construction Cost allocation adjustment
E15: Per KW | F15: of Cost | G15: Local Share | H15: Local Share | I15: Local Share | J15: Local Share | K15: Local Share | O15: 100000 | R15: 300000 | U15: 400000 | V15: 0.9997
C16: Balance of Plant
C17: Materials | M17: Local Share adjustment for User Add-in location | W17: Percent | X17: Avg | Y17: Local Adj | Z17: Percent
C18: Construction (concrete, rebar, equip, roads and site prep) | D18: =(E$9-(D$29-D$28))*V18 -> 21745654.5 | E18: =F18*D$9 -> 217.456545 | F18: =D18/E$9 -> 0.107651755 | G18: =IF(ProjectData!$B$9="Canada",1,0.9) -> 0.9 | H18: 0.03827768014 | I18: 0.1214762742 | J18: 0.9 | K18: 0.9 | M18: =(M$13-H$13)/(I$13-H$13) -> -0.4285714286 | N18: =I18-H18 -> 0.08319859402 | O18: =H18+(N18*M$18) -> 0.002621139844 | P18: =(M$13-I$13)/(J$13-I$13) -> -0.5 | Q18: =J18-I18 -> 0.7785237258 | R18: =I18+(P$18*Q18) -> -0.2677855888 | S18: =IF((M$13-J$13)/(K$13-J$13)>1,1,(M$13-J$13)/(K$13-J$13)) -> -3 | T18: =K18-J18 -> 0 | U18: =J18+(S$18*T18) -> 0.9 | V18: =AU18*$V$15 -> 0.1113520025 | W18: 0.08806 | X18: =W18*R$3 -> 176.102388 | Y18: =X18 -> 176.102388 | Z18: =Y18/Y$46 -> 0.08695228051 | AU18: 0.1113854182 | AV18: =AU18/AU$47 -> 0.05794621307 | AW18: 8382313.826
C19: Transformer | D19: =(E$9-(D$29-D$28))*V19 -> 2459884.348 | E19: =F19*D$9 -> 24.59884348 | F19: =D19/E$9 -> 0.01217764529 | G19: =IF(ProjectData!$B$9="Canada",1,0) -> 0 | H19: 0 | I19: 0 | J19: 0 | K19: 0 | N19: =I19-H19 -> 0 | O19: =H19+(N19*M$18) -> 0 | Q19: =J19-I19 -> 0 | R19: =I19+(P$18*Q19) -> 0 | T19: =K19-J19 -> 0 | U19: =J19+(S$18*T19) -> 0 | V19: =AU19*$V$15 -> 0.01259622 | W19: 0.02226 | X19: =W19*R$3 -> 44.515548 | Y19: =X19 -> 44.515548 | Z19: =Y19/Y$46 -> 0.02197998824 | AU19: 0.0126 | AV19: =AU19/AU$47 -> 0.00655491802 | AW19: 948213.4731
C20: Electrical (drop cable, wire, ) | D20: =(E$9-(D$29-D$28))*V20 -> 2592884.32 | E20: =F20*D$9 -> 25.9288432 | F20: =D20/E$9 -> 0.01283606099 | G20: =IF(ProjectData!$B$9="Canada",1,1) -> 1 | H20: 0 | I20: 0 | J20: 0 | K20: 1 | N20: =I20-H20 -> 0 | O20: =H20+(N20*M$18) -> 0 | Q20: =J20-I20 -> 0 | R20: =I20+(P$18*Q20) -> 0 | T20: =K20-J20 -> 1 | U20: =J20+(S$18*T20) -> -3 | V20: 0.01327726702 | W20: 0.0105 | X20: 20.9979 | Y20: =X20 -> 20.9979 | Z20: 0.01036791898 | AU20: 0.0132812514 | AV20: =AU20/AU$47 -> 0.006909326516 | AW20: 999481.0725
C21: HV line extension | D21: =(E$9-(D$29-D$28))*V21 -> 4736334.623 | E21: =F21*D$9 -> 47.36334623 | F21: =D21/E$9 -> 0.0234472011 | G21: =IF(ProjectData!$B$9="Canada",1,0.7) -> 0.7 | H21: 0 | I21: 0 | J21: 0 | K21: 0.7 | N21: =I21-H21 -> 0 | O21: =H21+(N21*M$18) -> 0 | Q21: =J21-I21 -> 0 | R21: =I21+(P$18*Q21) -> 0 | T21: =K21-J21 -> 0.7 | U21: =J21+(S$18*T21) -> -2.1 | V21: 0.02425313733 | W21: 0.01918 | X21: 38.356164 | Y21: =X21 -> 38.356164 | Z21: 0.018938732 | AB21: The average number of jobs according to the installed capacity | AM21: =IF(E5<20,20,E5) -> 100 | AU21: 0.02426041545 | AV21: =AU21/AU$47 -> 0.01262103448 | AW21: 1825718.476
C22: Materials Subtotal | D22: =SUM(D18:D21) -> 31534757.79 | E22: =F22*D$9 -> 315.3475779 | F22: =D22/E$9 -> 0.1561126623 | V22: 0.1614786269 | W22: 0.14 | X22: 279.972 | Y22: =X22 -> 279.972 | Z22: 0.1382389197 | AC22: 20 | AD22: 30 | AE22: 60 | AF22: 75 | AG22: 100 | AH22: 150 | AI22: 200 | AJ22: 250 | AK22: 300 | AL22: MW | AO22: Default | AP22: User Revised | AU22: =SUM(AU18:AU21) -> 0.161527085 | AV22: =AU22/AU$47 -> 0.08403149208 | AW22: 12155726.85
C23: Labour | AC23: 55 | AD23: 60 | AE23: 75 | AF23: 82 | AG23: 85 | AH23: 110 | AI23: 135 | AJ23: 155 | AK23: 185 | AL23: Const. Jobs | AN23: Total Jobs | AO23: Local Jobs | AP23: Local Jobs
C24: Foundation | D24: =AN30 -> 1105050.829 | E24: =D24/(E$5*1000) -> 11.05050829 | F24: =D24/E$9 -> 0.005470548657 | G24: =IF(ProjectData!$B$9="Canada",1,0.95) -> 0.95 | H24: 0.01720430108 | I24: 0.09462365591 | J24: 0.2867383513 | K24: =G24 -> 0.95 | N24: =I24-H24 -> 0.07741935484 | O24: =H24+(N24*M$18) -> -0.01597542243 | Q24: =J24-I24 -> 0.1921146953 | R24: =I24+(P$18*Q24) -> -0.001433691756 | T24: =K24-J24 -> 0.6632616487 | U24: =J24+(S$18*T24) -> -1.703046595 | W24: 0.03024 | X24: 60.473952 | Y24: =X24*R$7 -> 66.3974427 | Z24: 0.03278438827 | AA24: =Z24/Z$29 -> 0.2702702703 | AB24: Fundation | AC24: =(AC$23-AC$27)*($AA24/($AA$24+$AA$25+$AA$26)) -> 14.76967797 | AD24: =(AD$23-AD$27)*($AA24/($AA$24+$AA$25+$AA$26)) -> 16.11237597 | AE24: 20.14046996 | AF24: 22.02024715 | AG24: 22.82586595 | AH24: 29.53935594 | AI24: 36.25284592 | AJ24: 41.62363791 | AK24: 49.67982589 | AN24: =D24/L110 -> 22.82586595 | AO24: =(D24*ProjectData!AA41)/L110 -> 21.68457265 | AP24: =AO30/S110*ProjectData!E41 -> 21.68457265 | AQ24: =IF(ProjectData!B$20="y",AO24,AP24) -> 21.68457265 | AW24: 1130442.702
C25: Erection | D25: =AN31 -> 1821520.021 | E25: =D25/(E$5*1000) -> 18.21520021 | F25: 0.009017425847 | G25: =IF(ProjectData!$B$9="Canada",1,0.75) -> 0.75 | H25: 0.006 | I25: 0.02025 | J25: 0.0675 | K25: =G25 -> 0.75 | N25: 0.01425 | O25: -0.0001071428571 | Q25: 0.04725 | R25: -0.003375 | T25: 0.6825 | U25: -1.98 | W25: 0.03024 | X25: 60.473952 | Y25: =X25*R$7 -> 66.3974427 | Z25: 0.03278438827 | AA25: 0.2702702703 | AB25: Erection | AC25: =(AC$23-AC$27)*($AA25/($AA$24+$AA$25+$AA$26)) -> 14.76967797 | AD25: =(AD$23-AD$27)*($AA25/($AA$24+$AA$25+$AA$26)) -> 16.11237597 | AE25: 20.14046996 | AF25: 22.02024715 | AG25: 22.82586595 | AH25: 29.53935594 | AI25: 36.25284592 | AJ25: 41.62363791 | AK25: 49.67982589 | AN25: =D25/L111 -> 22.82586595 | AO25: =(D25*ProjectData!AA42)/L111 -> 17.11939946 | AP25: =AO31/S111*ProjectData!E42 -> 17.11939946 | AQ25: =IF(ProjectData!B$20="y",AO25,AP25) -> 17.11939946 | AW25: 1280386.793
C26: Electrical | D26: =AN32 -> 2444157.562 | E26: 24.44157562 | F26: 0.01209978991 | G26: =IF(ProjectData!$B$9="Canada",1,0.7) -> 0.7 | H26: 0.005019685039 | I26: 0.04517716535 | J26: 0.1373031496 | K26: =G26 -> 0.7 | N26: 0.04015748031 | O26: -0.01219066367 | Q26: 0.09212598425 | R26: -0.0008858267717 | T26: 0.5626968504 | U26: -1.550787402 | W26: 0.033264 | X26: 66.5213472 | Y26: =X26*R$7 -> 73.03718697 | Z26: 0.03606282709 | AA26: 0.2972972973 | AB26: Electrical | AC26: =(AC$23-AC$27)*($AA26/($AA$24+$AA$25+$AA$26)) -> 16.24664576 | AD26: =(AD$23-AD$27)*($AA26/($AA$24+$AA$25+$AA$26)) -> 17.72361356 | AE26: 22.15451695 | AF26: 24.22227187 | AG26: 25.10845255 | AH26: 32.49329153 | AI26: 39.87813051 | AJ26: 45.7860017 | AK26: 54.64780848 | AN26: =D26/L112 -> 25.10845255 | AO26: =(D26*ProjectData!AA43)/L112 -> 17.57591678 | AP26: =AO32/S112*ProjectData!E43 -> 17.57591678 | AQ26: =IF(ProjectData!B$20="y",AO26,AP26) -> 17.57591678 | AW26: 1865909.217
C27: Management/Supervision | D27: =AN33 -> 1341768.845 | E27: 13.41768845 | F27: 0.006642420024 | G27: =IF(ProjectData!$B$9="Canada",1,0.1) -> 0.1 | H27: 0 | I27: 0 | J27: 0 | K27: =G27 -> 0.1 | N27: 0 | O27: 0 | Q27: 0 | R27: 0 | T27: 0.1 | U27: -0.3 | W27: 0.018144 | X27: 36.2843712 | Y27: =X27*R$7 -> 39.83846562 | Z27: 0.01967063296 | AA27: 0.1621621622 | AB27: Management | AC27: =(AC$23*$AA27)/($D113/$D112) -> 9.213998299 | AD27: =(AD$23*$AA27)/($D113/$D112) -> 10.05163451 | AE27: 12.56454314 | AF27: 13.73723383 | AG27: 14.23981555 | AH27: 18.4279966 | AI27: 22.61617764 | AJ27: 25.96672248 | AK27: 30.99253973 | AN27: =D27/L113 -> 14.23981555 | AO27: =(D27*ProjectData!AA44)/L113 -> 1.423981555 | AP27: =AO33/S113*ProjectData!E44 -> 1.423981555 | AQ27: =IF(ProjectData!B$20="y",AO27,AP27) -> 1.423981555 | AW27: 968223.7437
C28: Misc. | D28: =AN34 -> 7676000 | E28: 76.76 | F28: 0.038 | G28: =IF(ProjectData!$B$9="Canada",1,0.5) -> 0.5 | H28: 0 | I28: 0 | J28: 0 | K28: =G28 -> 0.5 | N28: 0 | O28: 0 | Q28: 0 | R28: 0 | T28: 0.5 | U28: -1.5 | W28: 0 | X28: 0 | Y28: =X28*R$7 -> 0 | Z28: 0 | AM28: Default labour costs | AN28: =SUM(AN24:AN27) -> 85 | AO28: =SUM(AO24:AO27) -> 57.80387045 | AP28: =SUM(AP24:AP27) -> 57.80387045 | AQ28: =SUM(AQ24:AQ27) -> 57.80387045 | AW28: 3059000
C29: Labour Subtotal | D29: =SUM(D24:D28) -> 14388497.26 | E29: 143.8849726 | F29: 0.07123018444 | W29: 0.111888 | X29: 223.7536224 | Y29: =SUM(Y24:Y28) -> 245.670538 | Z29: 0.1213022366 | AA29: 1 | AB29: Jobs/MW | AM29: =HLOOKUP(AM$21,AC$22:AK$33,2) -> 85 | AN29: Default | AO29: User Revised wages | AW29: 8303962.455
C30: Subtotal | D30: =D22+D29 -> 45923255.05 | E30: 459.2325505 | F30: 0.2273428468 | W30: 0.251888 | X30: 503.7256224 | Y30: =Y22+Y29 -> 525.642538 | Z30: 0.2595411563 | AB30: Foundation Jobs/MW | AC30: =AC24/AC$22 -> 0.7384838984 | AD30: =AD24/AD$22 -> 0.5370791988 | AE30: 0.3356744993 | AF30: 0.2936032954 | AG30: 0.2282586595 | AH30: 0.1969290396 | AI30: 0.1812642296 | AJ30: 0.1664945516 | AK30: 0.1655994196 | AM30: =HLOOKUP(AM$21,AC$22:AK$33,9)*(AM$36^(AM$21-AL$36)) -> 0.2282586595 | AN30: =(AM30*E$5)*L110 -> 1105050.829 | AO30: =ProjectData!B41 -> 1105050.829 | AW30: 20459689.3
C31: Equipment Costs | AB31: Erection Jobs/MW | AC31: =AC25/AC$22 -> 0.7384838984 | AD31: 0.5370791988 | AE31: 0.3356744993 | AF31: 0.2936032954 | AG31: 0.2282586595 | AH31: 0.1969290396 | AI31: 0.1812642296 | AJ31: 0.1664945516 | AK31: 0.1655994196 | AM31: =HLOOKUP(AM$21,AC$22:AK$33,10)*(AM$36^(AM$21-AL$36)) -> 0.2282586595 | AN31: =(AM31*E$5)*L111 -> 1821520.021 | AO31: =ProjectData!B42 -> 1821520.021
C32: Turbines (excluding blades and towers) | D32: =(E$9-(D$29-D$28))*V32 -> 89992395.96 | E32: =F32*D$9 -> 899.9239596 | F32: =D32/E$9 -> 0.4455069107 | G32: =IF(ProjectData!$B$9="Canada",0.2,IF(OR(ProjectData!$B$9="Ontario",ProjectData!$B$9="Quebec"),0.1,0)) -> 0 | H32: 0 | I32: 0 | J32: 0 | K32: 0 | N32: 0 | O32: 0 | Q32: 0 | R32: 0 | T32: 0 | U32: 0 | V32: 0.4608200458 | W32: 0.43056 | X32: 861.033888 | Y32: =X32 -> 861.033888 | Z32: 0.4251439234 | AB32: Electrical/MW | AC32: 0.8123322882 | AD32: 0.5907871187 | AE32: 0.3692419492 | AF32: 0.3229636249 | AG32: 0.2510845255 | AH32: 0.2166219435 | AI32: 0.1993906526 | AJ32: 0.1831440068 | AK32: 0.1821593616 | AM32: =HLOOKUP(AM$21,AC$22:AK$33,11)*(AM$36^(AM$21-AL$36)) -> 0.2510845255 | AN32: =(AM32*E$5)*L112 -> 2444157.562 | AO32: =ProjectData!B43 -> 2444157.562 | AU32: 0.4609583333 | AV32: =AU32/AU$47 -> 0.2398050861 | AW32: 34689436.68
C33: Blades | D33: =(E$9-(D$29-D$28))*V33 -> 21068453.9 | E33: =F33*D$9 -> 210.684539 | F33: =D33/E$9 -> 0.1042992768 | G33: =IF(ProjectData!$B$9="Canada",0.6,IF(OR(ProjectData!$B$9="Ontario",ProjectData!$B$9="Quebec"),0.2,0)) -> 0 | H33: 0 | I33: 0 | J33: 0 | K33: 0 | N33: 0 | O33: 0 | Q33: 0 | R33: 0 | T33: 0 | U33: 0 | V33: 0.1078842917 | W33: 0.1008 | X33: 201.57984 | Y33: =X33 -> 201.57984 | Z33: 0.0995320222 | AB33: Management/supervision/MW | AC33: 0.460699915 | AD33: 0.3350544836 | AE33: 0.2094090523 | AF33: 0.1831631177 | AG33: 0.1423981555 | AH33: 0.1228533107 | AI33: 0.1130808882 | AJ33: 0.1038668899 | AK33: 0.1033084658 | AM33: =HLOOKUP(AM$21,AC$22:AK$33,12)*(AM$36^(AM$21-AL$36)) -> 0.1423981555 | AN33: =(AM33*E$5)*L113 -> 1341768.845 | AO33: =ProjectData!B44 -> 1341768.845 | AU33: 0.1079166667 | AV33: 0.05614165896 | AW33: 8121272.802
C34: Towers | D34: =(E$9-(D$29-D$28))*V34 -> 23325788.25 | E34: 233.2578825 | F34: 0.1154741993 | G34: =IF(ProjectData!$B$9="Canada",0.8,IF(OR(ProjectData!$B$9="Ontario",ProjectData!$B$9="Quebec"),0.2,0)) -> 0 | H34: 0 | I34: 0 | J34: 0 | K34: 0 | N34: 0 | O34: 0 | Q34: 0 | R34: 0 | T34: 0 | U34: 0 | V34: 0.1194433229 | W34: 0.1116 | X34: 223.17768 | Y34: =X34 -> 223.17768 | Z34: 0.1101961674 | AB34: Misc. | AC34: 0.038 | AD34: 0.038 | AE34: 0.038 | AF34: 0.038 | AG34: 0.038 | AH34: 0.038 | AI34: 0.038 | AJ34: 0.038 | AK34: 0.038 | AM34: =HLOOKUP(AM$21,AC$22:AK$34,13) -> 0.038 | AN34: =(AM34*E9) -> 7676000 | AO34: =SUM(AO30:AO33) -> 6712497.257 | AU34: 0.1194791667 | AV34: 0.06215683671 | AW34: 8991409.173
C35: Transportation | D35: =(E$9-(D$29-D$28))*V35 -> 16102318.34 | E35: 161.0231834 | F35: 0.07971444724 | G35: =IF(ProjectData!$B$9="Canada",1,0) -> 0 | H35: 0 | I35: 0 | J35: 0 | K35: 0 | N35: 0 | O35: 0 | Q35: 0 | R35: 0 | T35: 0 | U35: 0 | V35: 0.08245442292 | W35: 0.07704 | X35: 154.064592 | Y35: =X35 -> 154.064592 | Z35: 0.07607090269 | AU35: 0.08247916667 | AV35: 0.04290826792 | AW35: 6206972.784
C36: Equipment Subtotal | D36: =SUM(D32:D35) -> 150488956.5 | E36: 1504.889565 | F36: 0.744994834 | V36: 0.7706020833 | W36: 0.72 | X36: 1439.856 | Y36: =X36 -> 1439.856 | Z36: 0.7109430157 | AC36: =(AD30/AC30)^(1/(AD$22-AC$22)) -> 0.9686563508 | AD36: =(AE30/AD30)^(1/(AE$22-AD$22)) -> 0.9844552981 | AE36: 0.9911122373 | AF36: 0.9899805302 | AG36: 0.997051635 | AH36: 0.9983436201 | AI36: 0.9983015797 | AJ36: 0.9998921888 | AK36: 1 | AL36: =HLOOKUP(AM$21,AC$22:AK$33,1) -> 100 | AM36: =HLOOKUP(AM$21,AC$22:AK$36,15) -> 0.997051635 | AU36: =SUM(AU32:AU35) -> 0.7708333333 | AV36: 0.4010118497 | AW36: 58009091.44
C37: Development/Other Costs
C38: HV Sub/Interconnection | D38: =(E$9-(D$29-D$28))*V38 -> 1952289.165 | E38: 19.52289165 | F38: 0.009664797846 | G38: =IF(ProjectData!$B$9="Canada",1,0.9) -> 0.9 | H38: 0.006692913386 | I38: 0.06023622047 | J38: 0.1830708661 | K38: 0.9 | N38: 0.05354330709 | O38: -0.01625421822 | Q38: 0.1228346457 | R38: -0.001181102362 | T38: 0.7169291339 | U38: -1.967716535 | V38: 0.009997 | W38: 0.0196 | X38: 39.19608 | Y38: =X38*R$7 -> 43.03537953 | Z38: 0.02124914054 | AU38: 0.01 | AV38: 0.005202315889 | AW38: 752550.3754
C39: Materials | D39: =D38*(1-Calculations!I25) -> 1494495.686 | E39: 14.94495686 | F39: 0.007398493494 | G39: =IF(ProjectData!$B$9="Canada",1,0.9) -> 0.9 | H39: 0.006692913386 | I39: 0.06023622047 | J39: 0.1830708661 | K39: 0.9 | AW39: 576084.3781
C40: Labour | D40: =D38-D39 -> 457793.4791 | E40: 4.577934791 | F40: 0.002266304352 | G40: =IF(ProjectData!$B$9="Canada",1,0.1) -> 0.1 | H40: 0 | I40: 0 | J40: 0 | K40: 0.1 | AW40: 176465.9973
C41: Engineering | D41: =(E$9-(D$29-D$28))*V41 -> 2033634.547 | E41: 20.33634547 | F41: 0.01006749776 | G41: =IF(ProjectData!$B$9="Canada",1,0) -> 0 | H41: 0 | I41: 0 | J41: 0 | K41: 0 | N41: 0 | O41: 0 | Q41: 0 | R41: 0 | T41: 0 | U41: 0 | V41: 0.01041354167 | W41: 0.00644 | X41: 12.878712 | Y41: =X41 -> 12.878712 | Z41: 0.006358990308 | AU41: 0.01041666667 | AV41: =AU41/AU$47 -> 0.005419079051 | AW41: 783906.6411
C42: Legal Services | D42: =(E$9-(D$29-D$28))*V42 -> 1108330.828 | E42: 11.08330828 | F42: 0.005486786277 | G42: =IF(ProjectData!$B$9="Canada",1,1) -> 1 | H42: 0 | I42: 0 | J42: 0 | K42: 1 | N42: 0 | O42: 0 | Q42: 0 | R42: 0 | T42: 1 | U42: -3 | V42: 0.005675380208 | W42: 0.000504 | X42: 1.0078992 | Y42: =X42 -> 1.0078992 | Z42: 0.000497660111 | AU42: 0.005677083333 | AV42: =AU42/AU$47 -> 0.002953398083 | AW42: 427229.1194
C43: Land Easements | D43: =(E$9-(D$29-D$28))*V43 -> 0 | E43: 0 | F43: 0 | G43: =IF(ProjectData!$B$9="Canada",1,1) -> 1 | H43: 1 | I43: 1 | J43: 1 | K43: 1 | N43: 0 | O43: 1 | Q43: 0 | R43: 1 | T43: 0 | U43: 1 | V43: 0 | W43: 0 | X43: 0 | Y43: =X43 -> 0 | Z43: 0 | AU43: 0 | AV43: =AU43/AU$47 -> 0 | AW43: 0
C44: Site Certificate/Permitting | D44: =(E$9-(D$29-D$28))*V44 -> 518576.8094 | E44: 5.185768094 | F44: 0.002567211928 | G44: =IF(ProjectData!$B$9="Canada",1,1) -> 1 | H44: 1 | I44: 1 | J44: 1 | K44: 1 | N44: 0 | O44: 1 | Q44: 0 | R44: 1 | T44: 0 | U44: 1 | V44: 0.002655453125 | W44: 0.001428 | X44: 2.8557144 | Y44: =X44 -> 2.8557144 | Z44: 0.001410036981 | AU44: 0.00265625 | AV44: =AU44/AU$47 -> 0.001381865158 | AW44: 199896.1935
C45: Development/Other Subtotal | D45: =SUM(D39:D44) -> 5612831.349 | E45: =SUM(E39:E44) -> 56.12831349 | F45: 0.02778629381 | V45: 0.028741375 | W45: 0.027972 | X45: 55.9384056 | Y45: =SUM(Y38:Y44) -> 59.77770513 | Z45: 0.02951582794 | AU45: =SUM(AU38:AU44) -> 0.02875 | AV45: =AU45/AU$47 -> 0.01495665818 | AW45: 2163582.329
C46: Subtotal All Costs (without sales tax) | D46: =D30+D36+D45 -> 202025042.9 | E46: =E30+E36+E45 -> 2020.250429 | F46: =F22+F30+F36+F45 -> 1.156236637 | X46: =X30+X36+X45 -> 1999.520028 | Y46: =Y30+Y36+Y45 -> 2025.276243 | AW46: 80632363.07
C47: Sales Tax (Materials & Equipment Purchases) | D47: =(D32+D33+D34+D22)*D101 -> 0 | E47: =D47/(E5*1000) -> 0 | G47: =IF(ProjectData!$B$9="Canada",1,1) -> 1 | H47: 1 | I47: 1 | J47: 1 | K47: 1 | N47: 0 | O47: 1 | Q47: 0 | R47: 1 | T47: 0 | U47: 1 | V47: 0.00265625 | W47: 0.001428 | X47: =W47*$R$3 -> 2.8557144 | Y47: =X47 -> 2.8557144 | Z47: 0.001410036981 | AU47: =SUM(AU18:AU45) -> 1.922220837 | AV47: =SUM(AV18:AV45) -> 1
C48: TOTAL PROJECT COST | D48: =D46+D47 -> 202025042.9 | E48: =E46+E47 -> 2020.250429
H49: Very Small | I49: Small | J49: Medium | K49: Large | V49: =SUM(V18:V47) -> 1.92430042 | AK49: For turbine < 1500 kW
H50: 30000 | I50: 100000 | J50: 300000 | K50: 400000 | AB50: O&M Jobs/ | AC50: 30 | AD50: 60 | AE50: 75 | AF50: 100 | AG50: 150 | AH50: 200 | AI50: 250 | AJ50: MW | AK50: 100
H51: County | I51: County | J51: County | K51: County | AB51: Field Tech | AC51: 2 | AD51: 2.4 | AE51: 3 | AF51: 4 | AG51: 6 | AH51: 8 | AI51: 9 | AK51: 7
C52: Wind Farm Annual Operating and Maintenance Costs | G52: Local Share | H52: Local Share | I52: Local Share | J52: Local Share | K52: Local Share | AB52: Admin | AC52: 0.3 | AD52: 0.6 | AE52: 0.75 | AF52: 1 | AG52: =AF52 -> 1 | AH52: =AH50/$AG50*$AG52 -> 1.333333333 | AI52: =AH52 -> 1.333333333 | AK52: 1
AB53: Management | AC53: 0.5 | AD53: 1 | AE53: 1 | AF53: 1 | AG53: 1 | AH53: 1 | AI53: 1 | AK53: 1
C54: Personnel | AB54: Total | AC54: =SUM(AC51:AC53) -> 2.8 | AD54: =SUM(AD51:AD53) -> 4 | AE54: 4.75 | AF54: 6 | AG54: 8 | AH54: 10.33333333 | AI54: 11.33333333
C55: Field Salaries (i.e., onsite wind technicians, etc.) | D55: =K4*L115 -> 358201.5218 | E55: =D55/(E$5*1000) -> 3.582015218 | F55: =E55/E$80 -> 0.1432806087 | G55: =IF(ProjectData!$B$9="Canada",1,1) -> 1 | H55: 1 | I55: 1 | J55: 1 | K55: 1 | M55: =(M$13-H$13)/(I$13-H$13) -> -0.4285714286 | N55: =I55-H55 -> 0 | O55: =H55+$M$55*N55 -> 1 | P55: =(M$13-I$13)/(J$13-I$13) -> -0.5 | Q55: =J55-I55 -> 0 | R55: =I55+$P$55*Q55 -> 1 | S55: =IF((M$13-J$13)/(K$13-J$13)>1,1,(M$13-J$13)/(K$13-J$13)) -> -3 | T55: =K55-J55 -> 0 | U55: =J55+$S$55*T55 -> 1 | AJ55: =IF(E5<30,30,E5) -> 100 | AK55: MW
C56: Administrative | D56: =K5*L116 -> 59934.57203 | E56: 0.5993457203 | F56: =E56/E$80 -> 0.02397382881 | G56: =IF(ProjectData!$B$9="Canada",1,1) -> 1 | H56: 1 | I56: 1 | J56: 1 | K56: 1 | N56: =I56-H56 -> 0 | O56: =H56+$M$55*N56 -> 1 | Q56: =J56-I56 -> 0 | R56: =I56+$P$55*Q56 -> 1 | T56: =K56-J56 -> 0 | U56: =J56+$S$55*T56 -> 1 | AB56: Tech/MW | AC56: =AC51/AC$50 -> 0.06666666667 | AD56: =AD51/AD$50 -> 0.04 | AE56: 0.04 | AF56: 0.04 | AG56: 0.04 | AH56: 0.04 | AI56: 0.036 | AJ56: =HLOOKUP(AJ$55,AC$50:AI$58,7)*(AJ60^(AJ$55-AL$36)) -> 0.04 | AK56: =AK51/AK$50 -> 0.07 | AM56: Tech labour per MW | AP56: =IF(ProjectData!B$12<1500,AK56,AJ56) -> 0.04 | AR56: O&M Cost per KW | AT56: =IF(ProjectData!B11<=20,DefaultData!AO8,IF(ProjectData!B11>=100,DefaultData!AO9,AO8*(AT57^(ProjectData!B11-20)))) -> 20.5004729
C57: Management | D57: =K6*L117 -> 142852.7229 | E57: 1.428527229 | F57: =E57/E$80 -> 0.05714108917 | G57: =IF(ProjectData!$B$9="Canada",1,1) -> 1 | H57: 1 | I57: 1 | J57: 1 | K57: 1 | N57: =I57-H57 -> 0 | O57: =H57+$M$55*N57 -> 1 | Q57: =J57-I57 -> 0 | R57: =I57+$P$55*Q57 -> 1 | T57: =K57-J57 -> 0 | U57: =J57+$S$55*T57 -> 1 | AB57: Admin/MW | AC57: =AC52/AC$50 -> 0.01 | AD57: 0.01 | AE57: 0.01 | AF57: 0.01 | AG57: 0.006666666667 | AH57: 0.006666666667 | AI57: 0.005333333333 | AJ57: =HLOOKUP(AJ$55,AC$50:AI$58,8)*(AJ61^(AJ$55-AL$36)) -> 0.01 | AK57: =AK52/AK$50 -> 0.01 | AM57: Admin labour per MW | AP57: =IF(ProjectData!B$12<1500,AK57,AJ57) -> 0.01 | AR57: O&M Cost Adj function | AT57: =(AO9/AO8)^((1/(100-20))) -> 0.9972756049
C58: Labour/Personnel Subtotal | D58: =SUM(D55:D57) -> 560988.8167 | E58: 5.609888167 | F58: =SUM(F55:F57) -> 0.2243955267 | AB58: Mgmt/MW | AC58: 0.01666666667 | AD58: 0.01666666667 | AE58: 0.01333333333 | AF58: 0.01 | AG58: 0.006666666667 | AH58: 0.005 | AI58: 0.004 | AJ58: =HLOOKUP(AJ$55,AC$50:AI$58,9)*(AJ62^(AJ$55-AL$36)) -> 0.01 | AK58: =AK53/AK$50 -> 0.01 | AM58: Mgmt labour per MW | AP58: =IF(ProjectData!B$12<1500,AK58,AJ58) -> 0.01
C59: Warranty/Maintenance Services | D59: 0 | E59: 0 | F59: =E59/E$80 -> 0 | G59: =IF(ProjectData!$B$9="Canada",1,0) -> 0 | H59: 0 | I59: 0 | J59: 0 | K59: 0
C60: TOTAL | D60: =D58+D59 -> 560988.8167 | E60: 5.609888167 | F60: =F58+F59 -> 0.2243955267 | AC60: =(AD56/AC56)^(1/(AD$50-AC$50)) -> 0.9831166281 | AD60: 1 | AE60: 1 | AF60: 1 | AG60: 1 | AH60: 0.9978950083 | AI60: 1 | AJ60: =HLOOKUP(AJ$55,AC$50:AI$62,11) -> 1
AC61: =(AD57/AC57)^(1/(AD$50-AC$50)) -> 1 | AD61: 1 | AE61: 1 | AF61: 0.9919234895 | AG61: 1 | AH61: 0.9955470728 | AI61: 1 | AJ61: =HLOOKUP(AJ$55,AC$50:AI$62,12) -> 0.9919234895
C62: Materials and Services | V62: O&M Cost allocation | AC62: 1 | AD62: 0.9852338678 | AE62: 0.9885586726 | AF62: 0.9919234895 | AG62: 0.994262879 | AH62: 0.9955470728 | AI62: 1 | AJ62: =HLOOKUP(AJ$55,AC$50:AI$62,13) -> 0.9919234895
C63: Vehicles | D63: =(((E$5*1000)*F$9)-D$60)*V63 -> 55392.40632 | E63: =D63/(E$5*1000) -> 0.5539240632 | F63: =E63/E$80 -> 0.02215696253 | G63: =IF(ProjectData!$B$9="Canada",1,1) -> 1 | H63: 0 | I63: 0 | J63: 1 | K63: 1 | M63: =(M$13-H$13)/(I$13-H$13) -> -0.4285714286 | N63: =I63-H63 -> 0 | O63: =H63+$M$63*N63 -> 0 | P63: =(M$13-I$13)/(J$13-I$13) -> -0.5 | Q63: =J63-I63 -> 1 | R63: =I63+$P$63*Q63 -> -0.5 | S63: =IF((M$13-J$13)/(K$13-J$13)>1,1,(M$13-J$13)/(K$13-J$13)) -> -3 | T63: =K63-J63 -> 0 | U63: =J63+$S$63*T63 -> 1 | V63: 0.02856734752
C64: Site Maint/Misc. Services | D64: 21603.03847 | E64: =D64/(E$5*1000) -> 0.2160303847 | F64: 0.008641215386 | G64: =IF(ProjectData!$B$9="Canada",1,0.8) -> 0.8 | H64: 0.01084745763 | I64: 0.04788377724 | J64: 0.1274576271 | K64: 0.8 | N64: =I64-H64 -> 0.03703631961 | O64: =H64+$M$63*N64 -> -0.005025250778 | Q64: =J64-I64 -> 0.07957384988 | R64: =I64+$P$63*Q64 -> 0.0080968523 | T64: =K64-J64 -> 0.6725423729 | U64: =J64+$S$63*T64 -> -1.890169492 | V64: 0.01114126553
C65: Fees, Permits, Licenses | D65: 10801.51923 | E65: 0.1080151923 | F65: 0.004320607693 | G65: =IF(ProjectData!$B$9="Canada",1,1) -> 1 | H65: 1 | I65: 1 | J65: 1 | K65: 1 | N65: 0 | O65: 1 | Q65: 0 | R65: 1 | T65: 0 | U65: 1 | V65: 0.005570632767
C66: Utilities | D66: 43206.07693 | E66: 0.4320607693 | F66: 0.01728243077 | G66: =IF(ProjectData!$B$9="Canada",1,1) -> 1 | H66: 1 | I66: 1 | J66: 1 | K66: 1 | N66: 0 | O66: 1 | Q66: 0 | R66: 1 | T66: 0 | U66: 1 | V66: 0.02228253107
C67: Insurance | D67: 415443.0474 | E67: 4.154430474 | F67: 0.166177219 | G67: =IF(ProjectData!$B$9="Canada",1,0) -> 0 | H67: 0 | I67: 0 | J67: 0 | K67: 0 | N67: 0 | O67: 0 | Q67: 0 | R67: 0 | T67: 0 | U67: 0 | V67: 0.2142551064
C68: Fuel (motor vehicle gasoline) | D68: 21603.03847 | E68: 0.2160303847 | F68: 0.008641215386 | G68: =IF(ProjectData!$B$9="Canada",1,1) -> 1 | H68: 1 | I68: 1 | J68: 1 | K68: 1 | N68: 0 | O68: 1 | Q68: 0 | R68: 1 | T68: 0 | U68: 1 | V68: 0.01114126553
C69: Consumables/Tools and Misc. Supplies | D69: 140419.75 | E69: 1.4041975 | F69: 0.05616790001 | G69: =IF(ProjectData!$B$9="Canada",1,1) -> 1 | H69: 0.0249244713 | I69: 0.09652567976 | J69: 0.2416918429 | K69: 1 | N69: 0.07160120846 | O69: -0.005761760898 | Q69: 0.1451661631 | R69: 0.02394259819 | T69: 0.7583081571 | U69: -2.033232628 | V69: 0.07241822597
C70: Replacement Parts/Equipment/ Spare Parts Inventory | D70: 1230542.306 | E70: 12.30542306 | F70: 0.4922169226 | G70: =IF(ProjectData!$B$9="Canada",1,0.02) -> 0.02 | H70: 0 | I70: 0 | J70: 0 | K70: 0.02 | N70: 0 | O70: 0 | Q70: 0 | R70: 0 | T70: 0.02 | U70: -0.06 | V70: 0.6346236252
C71: Materials and Services Subtotal | D71: =SUM(D63:D70) -> 1939011.183 | E71: =SUM(E63:E70) -> 19.39011183 | F71: =SUM(F63:F70) -> 0.7756044733
C72: Sales Tax (Materials & Equipment Purchases) | D72: =(D63+D69+D70)*D101 -> 0 | E72: 0 | G72: =IF(ProjectData!$B$9="Canada",1,1) -> 1
C73: Other Taxes/Payments | D73: 0 | G73: =IF(ProjectData!$B$9="Canada",1,1) -> 1
C74: Total (with Sales Tax and Other Taxes/Payments) | D74: =D60+D71+D72+D73 -> 2500000 | E74: =D74/(E$5*1000) -> 25
C75: Financing (avg ann debt payment) | D75: =Calculations!F197 -> 50566428.01
C76: Equity Payment - Individuals (avg ann payment) | D76: 0
C77: Equity Payment - Corporations (avg ann payment) | D77: 0
C78: Land Lease | D78: =D103*D5 -> 330000
C79: TOTAL | D79: =D74+D75+D78 -> 53396428.01
D80: =D71+D60 -> 2500000 | E80: =D80/(E5*1000) -> 25
C81: Other Parameters
C82: Financial Parameters | G82: Local Share
C83: Debt Financing
C84: Percentage financed | D84: 0.8 | G84: =IF(ProjectData!$B$9="Canada",1,0) -> 0
C85: Years financed (term) | D85: 20
C86: Interest rate | D86: 0.065
C87: Average Annual Payment (Interest and Principal) | D87: =D75 -> 50566428.01
C88: Equity Financing/Repayment | G88: Local Share
C89: Percentage equity | D89: =1-D84 -> 0.2
C90: Individual Investors (percent of total equity) | D90: 0 | G90: =IF(ProjectData!$B$9="Canada",1,1) -> 1
C91: Corporate Investors (percent of total equity) | D91: =1-D90 -> 1 | G91: =IF(ProjectData!$B$9="Canada",1,0) -> 0
C92: Return on equity (annual interest rate) | D92: 0.1
C93: Repayment term (years) | D93: 20
C94: Repayment term (years)
C95: Tax Parameters
C96: Local Property Tax Rate (avg millage rate - $/$1,000) | D96: =D158 -> NA
C97: Assessed value (percent of construction cost) | D97: =D157 -> NA
C98: Taxable Value | D98: =IF(D96="NA", "NA",D48*D97) -> NA
C99: Taxes Per MW | D99: =D141 -> 5555
C100: Local Taxes | D100: =IF($D97="NA",IF(D99="NA","NA",$D99*$E5),(D98/1000)*D96) -> 555500 | G100: =IF(ProjectData!$B$9="Canada",1,1) -> 1
C101: Local Sales Tax Rate | D101: =D149 -> 0 | G101: =IF(ProjectData!$B$9="Canada",1,1) -> 1
C102: Land Lease Parameters
C103: Land Lease Cost (per turbine) | D103: =ProjectData!B12*(3300/1000) -> 8250
C104: Land Lease (total cost) | D104: =D103*D5 -> 330000
C105: Lease Payment recipient (F = farmer/household, O = Other) | D105: F | G105: =IF(ProjectData!$B$9="Canada",1,1) -> 1 | M105: Payroll expense
C106: Warranty/Maintenance Services | D106: Not applicable | M106: Govt | N106: =VLOOKUP(ProjectData!B9,Multipliers!S8:U22,3,FALSE) -> 0.27
C107: Cost per Turbine | M107: Health/Ins/Misc | N107: =IF(OR(ProjectData!B9=Multipliers!Z8,'User Add-in Location'!B4=Multipliers!Z8),Multipliers!Y8,Multipliers!Y7) -> 0.0683 | O107: User Revised Data
C108: Payroll Parameters | D108: Payroll Cost | E108: Av. wage/h | F108: Loc. adj. Wage/hour | G108: Payroll expense | H108: Payroll expense % | I108: Default | J108: User Revised | M108: Total | N108: =N106+N107 -> 0.3383 | O108: Payroll Cost | P108: Wage/h | Q108: Payroll expense | R108: Payroll expense
C109: Construction Labour | L109: Default
C110: Foundation | D110: =F110+G110 -> 23.27510544 | E110: 15.84 | F110: =E110*R$7 -> 17.39154558 | G110: =F110*H110 -> 5.883559868 | H110: =N$108 -> 0.3383 | I110: =(DefaultData!D24*G24)/(D110*(52*40)) -> 21.68457265 | J110: =(ProjectData!B41*ProjectData!E41)/(DefaultData!O110*(40*52)) -> 21.68457265 | L110: =D110*52*40 -> 48412.21932 | O110: =P110+Q110 -> 23.27510544 | P110: =ProjectData!B111 -> 17.39154558 | Q110: =P110*R110 -> 5.883559868 | R110: =ProjectData!D111 -> 0.3383 | S110: =O110*52*40 -> 48412.21932
C111: Erection | D111: =F111+G111 -> 38.3657199 | E111: 26.11 | F111: =E111*R$7 -> 28.66750347 | G111: =F111*H111 -> 9.698216424 | H111: =N$108 -> 0.3383 | I111: =(DefaultData!D25*G25)/(D111*(52*40)) -> 17.11939946 | J111: =(ProjectData!B42*ProjectData!E42)/(DefaultData!O111*(40*52)) -> 17.11939946 | L111: =D111*52*40 -> 79800.69738 | O111: =P111+Q111 -> 38.3657199 | P111: =ProjectData!B112 -> 28.66750347 | Q111: =P111*R111 -> 9.698216424 | R111: =ProjectData!D112 -> 0.3383 | S111: =O111*52*40 -> 79800.69738
C112: Electrical | D112: =F112+G112 -> 46.80000684 | E112: 31.85 | F112: 34.96974284 | G112: =F112*H112 -> 11.830264 | H112: =N$108 -> 0.3383 | I112: =(DefaultData!D26*G26)/(D112*(52*40)) -> 17.57591678 | J112: =(ProjectData!B43*ProjectData!E43)/(DefaultData!O112*(40*52)) -> 17.57591678 | L112: =D112*52*40 -> 97344.01423 | O112: =P112+Q112 -> 46.80000684 | P112: =ProjectData!B113 -> 34.96974284 | Q112: =P112*R112 -> 11.830264 | R112: =ProjectData!D113 -> 0.3383 | S112: 97344.01423
C113: Management/Supervision | D113: =F113+G113 -> 45.30123111 | E113: 30.83 | F113: 33.84983271 | G113: =F113*H113 -> 11.45139841 | H113: =N$108 -> 0.3383 | I113: =(DefaultData!D27*G27)/(D113*(52*40)) -> 1.423981555 | J113: =(ProjectData!B44*ProjectData!E44)/(DefaultData!O113*(40*52)) -> 1.423981555 | L113: =D113*52*40 -> 94226.56072 | O113: =P113+Q113 -> 45.30123111 | P113: =ProjectData!B114 -> 33.84983271 | Q113: =P113*R113 -> 11.45139841 | R113: =ProjectData!D114 -> 0.3383 | S113: 94226.56072
C114: O&M Labour | F114: =SUM(F110:F113) -> 114.8786246 | I114: Direct plant employees | P114: =SUM(P110:P113) -> 114.8786246 | R114: =SUM(R110:R113) -> 1.3532 | AA114: per kW adjust
C115: Field Salaries (technicians, other) | D115: =F115+G115 -> 43.05306752 | E115: 29.3 | F115: =E115*R$7 -> 32.16996751 | G115: =F115*H115 -> 10.88310001 | H115: =N$108 -> 0.3383 | I115: =(D55*G55)/(D115*(52*40)) -> 4 | J115: =(Calculations!D66*Calculations!E66)/(DefaultData!O115*(40*52)) -> 4 | L115: =D115*52*40 -> 89550.38044 | O115: =P115+Q115 -> 43.05306752 | P115: =ProjectData!B116 -> 32.16996751 | Q115: =P115*R115 -> 10.88310001 | R115: =ProjectData!D116 -> 0.3383 | S115: 89550.38044 | T115: =S115*K4 -> 358201.5218 | U115: =V115+W115 -> 39.21219 | V115: =E115 -> 29.3 | W115: =V115*X115 -> 9.91219 | X115: =N$108 -> 0.3383 | Y115: =U115*52*40 -> 81561.3552 | Z115: =Y115*K4 -> 326245.4208
C116: Administrative | D116: =F116+G116 -> 28.81469809 | E116: 19.61 | F116: =E116*R$7 -> 21.53082126 | G116: =F116*H116 -> 7.283876832 | H116: =N$108 -> 0.3383 | I116: =(D56*G56)/(D116*(52*40)) -> 1 | J116: =(Calculations!D67*Calculations!E67)/(DefaultData!O116*(40*52)) -> 1 | L116: =D116*52*40 -> 59934.57203 | O116: =P116+Q116 -> 28.81469809 | P116: =ProjectData!B117 -> 21.53082126 | Q116: =P116*R116 -> 7.283876832 | R116: =ProjectData!D117 -> 0.3383 | S116: 59934.57203 | T116: =S116*K5 -> 59934.57203 | U116: =V116+W116 -> 26.244063 | V116: =E116 -> 19.61 | W116: =V116*X116 -> 6.634063 | X116: =N$108 -> 0.3383 | Y116: =U116*52*40 -> 54587.65104 | Z116: =Y116*K5 -> 54587.65104
C117: Management/Supervision | D117: =F117+G117 -> 68.67919371 | E117: 46.74 | F117: 51.31823486 | G117: =F117*H117 -> 17.36095885 | H117: =N$108 -> 0.3383 | I117: =(D57*G57)/(D117*(52*40)) -> 1 | J117: =(Calculations!D68*Calculations!E68)/(DefaultData!O117*(40*52)) -> 1 | L117: =D117*52*40 -> 142852.7229 | O117: =P117+Q117 -> 68.67919371 | P117: =ProjectData!B118 -> 51.31823486 | Q117: =P117*R117 -> 17.36095885 | R117: =ProjectData!D118 -> 0.3383 | S117: 142852.7229 | T117: =S117*K6 -> 142852.7229 | U117: =V117+W117 -> 62.552142 | V117: 46.74 | W117: =V117*X117 -> 15.812142 | X117: =N$108 -> 0.3383 | Y117: =U117*52*40 -> 130108.4554 | Z117: =Y117*K6 -> 130108.4554
F118: =SUM(F115:F117) -> 105.0190236 | G118: =SUM(H115:H117) -> 1.0149 | H118: =SUM(I115:I117) -> 6 | I118: =SUM(J115:J117) -> 6 | P118: =SUM(P115:P117) -> 105.0190236 | R118: =SUM(R115:R117) -> 1.0149 | Y118: =SUM(Z115:Z117) -> 510941.5272
C119: Margins | Y119: =D58-Y118 -> 50047.28951 | Z119: =Y119/(E5*1000) -> 0.5004728951
D120: Agriculture | E120: Mining | F120: Construction | G120: Manufacturing | H120: Fabricated Metals | I120: Machinery | J120: Electrical Equipment | K120: TCPU | L120: Wholesale Trade | M120: Retail Trade | N120: FIRE | O120: Misc. Services | P120: Professional Services | Q120: Government | R120: Total
C121: Agriculture | D121: 0.583669 | E121: 0 | F121: 0 | G121: 0 | H121: 0 | I121: 0 | J121: 0 | K121: 0.051572 | L121: 0.07245 | M121: 0.292309 | N121: 0 | O121: 0 | P121: 0 | Q121: 0 | R121: 1
C122: Mining | D122: 0 | E122: 0.362051 | F122: 0 | G122: 0 | H122: 0 | I122: 0 | J122: 0 | K122: 0.630549 | L122: 0.0074 | M122: 0 | N122: 0 | O122: 0 | P122: 0 | Q122: 0 | R122: 1
C123: Construction | D123: 0 | E123: 0 | F123: 1 | G123: 0 | H123: 0 | I123: 0 | J123: 0 | K123: 0 | L123: 0 | M123: 0 | N123: 0 | O123: 0 | P123: 0 | Q123: 0 | R123: 1
C124: Manufacturing | D124: 0 | E124: 0 | F124: 0 | G124: 0.558412 | H124: 0 | I124: 0 | J124: 0 | K124: 0.023014 | L124: 0.418573 | M124: 0 | N124: 0 | O124: 0 | P124: 0 | Q124: 0 | R124: 0.999999
C125: Fabricated Metals | D125: 0 | E125: 0 | F125: 0 | G125: 0 | H125: 1 | I125: 0 | J125: 0 | K125: 0 | L125: 0 | M125: 0 | N125: 0 | O125: 0 | P125: 0 | Q125: 0 | R125: 1
C126: Machinery | D126: 0 | E126: 0 | F126: 0 | G126: 0 | H126: 0 | I126: 0.631251 | J126: 0 | K126: 0.000889 | L126: 0.367859 | M126: 0 | N126: 0 | O126: 0 | P126: 0 | Q126: 0 | R126: 0.999999
C127: Electrical Equipment | D127: 0 | E127: 0 | F127: 0 | G127: 0 | H127: 0 | I127: 0 | J127: 0.512774 | K127: 0.012136 | L127: 0.47509 | M127: 0 | N127: 0 | O127: 0 | P127: 0 | Q127: 0 | R127: 1
C128: TCPU | D128: 0 | E128: 0 | F128: 0 | G128: 0 | H128: 0 | I128: 0 | J128: 0 | K128: 1 | L128: 0 | M128: 0 | N128: 0 | O128: 0 | P128: 0 | Q128: 0 | R128: 1
C129: Wholesale Trade | D129: 0 | E129: 0 | F129: 0 | G129: 0 | H129: 0 | I129: 0 | J129: 0 | K129: 0 | L129: 1 | M129: 0 | N129: 0 | O129: 0 | P129: 0 | Q129: 0 | R129: 1
C130: Retail Trade | D130: 0 | E130: 0 | F130: 0 | G130: 0 | H130: 0 | I130: 0 | J130: 0 | K130: 0 | L130: 0.688714 | M130: 0.311286 | N130: 0 | O130: 0 | P130: 0 | Q130: 0 | R130: 1
C131: FIRE | D131: 0 | E131: 0 | F131: 0 | G131: 0 | H131: 0 | I131: 0 | J131: 0 | K131: 0 | L131: 0 | M131: 0 | N131: 1 | O131: 0 | P131: 0 | Q131: 0 | R131: 1
C132: Misc. Services | D132: 0 | E132: 0 | F132: 0 | G132: 0 | H132: 0 | I132: 0 | J132: 0 | K132: 0.042428 | L132: 0.092083 | M132: 0.361097 | N132: 0 | O132: 0.504392 | P132: 0 | Q132: 0 | R132: 1
C133: Professional Services | D133: 0 | E133: 0 | F133: 0 | G133: 0 | H133: 0 | I133: 0 | J133: 0 | K133: 0 | L133: 0 | M133: 0 | N133: 0 | O133: 0 | P133: 1 | Q133: 0 | R133: 1
C134: Government | D134: 0 | E134: 0 | F134: 0 | G134: 0 | H134: 0 | I134: 0 | J134: 0 | K134: 0 | L134: 0 | M134: 0 | N134: 0 | O134: 0 | P134: 0 | Q134: 1 | R134: 1
D137: Canada | E137: Alberta | F137: British Columbia | G137: Manitoba | H137: New Brunswick | I137: Newfoundland and Labrador | J137: Northwest Territories | K137: Nova Scotia | L137: Nunavut | M137: Ontario | N137: Prince Edward Island | O137: Quebec | P137: Saskatchewan | Q137: Yukon | R137: MYREGION
C138: Taxes per MW | E138: 5555 | F138: 11976 | G138: 9945 | H138: 3830 | K138: 6134 | M138: 2294 | N138: 1284
C140: State Taxes per MW | D140: =HLOOKUP(Calculations!$E$1,D137:Q138,2,FALSE) -> 5555
D141: =IF(D140=0,"NA",D140) -> 5555
C143: CA average cost per MW | D143: =AVERAGE(D138:Q138) -> 5859.714286
C144: CA median cost per MW | D144: =MEDIAN(D138:Q138) -> 5555
C146: Sales Tax | D146: 0.05 | E146: 0 | F146: 0.07 | G146: 0.07 | H146: 0.1 | I146: 0.1 | J146: 0 | K146: 0.1 | L146: 0 | M146: 0.08 | N146: 0.1 | O146: 0.09975 | P146: 0.06 | Q146: 0 | R146: 0
D149: =HLOOKUP(ProjectData!B9,DefaultData!$D$137:$Q$147,10,FALSE) -> 0
D150: =HLOOKUP('User Add-in Location'!B4,DefaultData!$D$137:$R$147,10) -> 
C153: 2016 | D153: Canada | E153: Alberta | F153: British Columbia | G153: Manitoba | H153: New Brunswick | I153: Newfoundland and Labrador | J153: Northwest Territories | K153: Nova Scotia | L153: Nunavut | M153: Ontario | N153: Prince Edward Island | O153: Quebec | P153: Saskatchewan | Q153: Yukon
C154: Property assessment ratio (%) | D154: NA | E154: NA | F154: NA | G154: NA | H154: NA | I154: 1 | J154: 1 | K154: NA | L154: 1 | M154: NA | N154: NA | O154: 1 | P154: 1 | Q154: 1 | R154: 1
C155: Average millage rate ($/$1000 assessed value) | D155: NA | E155: NA | F155: NA | G155: NA | H155: NA | I155: 7.7 | J155: 6.59 | K155: NA | L155: 4.62 | M155: NA | N155: NA | O155: 13 | P155: 8.8 | Q155: 7.6 | R155: 7
C157: Property assessment ratio (%) | D157: =HLOOKUP(ProjectData!B9,D153:BE155,2,FALSE) -> NA
C158: Average millage rate ($/$1000 assessed value) | D158: =HLOOKUP(ProjectData!B9,D153:Q155,3,FALSE) -> NA

Sheet Calculations
A1: *** WARNING *** This Worksheet contains Data and Formulas that are an integral part of the EI2 model. Although the data and formulas are available for review they must not be changed. Any changes to the data or formulas will impact the analysis and may invalidate the model results. To view the data and formulas simply scroll over to the adjacent columns to the right. | C1: Economic Impact Analysis for | E1: =ProjectData!B9 -> Alberta | F1: Wind Power Plant
C3: Project Construction Costs
D4: Cost | E4: Purchased Local | G4: Local $ Spending | AB4: Construction Costs | AC4: Cost | AD4: Local Share
C5: Balance of Plant | AB5: Balance of Plant
C6: Materials | AB6: Materials
C7: Construction (concrete rebar, equip, roads and site prep) | D7: =IF(ProjectData!$B$20="y",DefaultData!D18,ProjectData!B35) -> 21745654.5 | E7: =IF(ProjectData!$B$20="y",IF(ProjectData!AA$9=0,DefaultData!G18,ProjectData!AA35),ProjectData!E35) -> 0.9 | G7: =D7*E7 -> 19571089.05 | AB7: Construction (concrete rebar, equip, roads and site prep) | AC7: =D7 -> 21745654.5 | AD7: 0.9
C8: Transformer | D8: =IF(ProjectData!$B$20="y",DefaultData!D19,ProjectData!B36) -> 2459884.348 | E8: =IF(ProjectData!$B$20="y",IF(ProjectData!AA$9=0,DefaultData!G19,ProjectData!AA36),ProjectData!E36) -> 0 | G8: =D8*E8 -> 0 | AB8: Transformer | AC8: 2459884.348 | AD8: 0
C9: Electrical (drop cable, wire, ) | D9: =IF(ProjectData!$B$20="y",DefaultData!D20,ProjectData!B37) -> 2592884.32 | E9: =IF(ProjectData!$B$20="y",IF(ProjectData!AA$9=0,DefaultData!G20,ProjectData!AA37),ProjectData!E37) -> 1 | G9: =D9*E9 -> 2592884.32 | AB9: Electrical (drop cable, wire, ) | AC9: 2592884.32 | AD9: 1
C10: HV line extension | D10: =IF(ProjectData!$B$20="y",DefaultData!D21,ProjectData!B38) -> 4736334.623 | E10: =IF(ProjectData!$B$20="y",IF(ProjectData!AA$9=0,DefaultData!G21,ProjectData!AA38),ProjectData!E38) -> 0.7 | G10: =D10*E10 -> 3315434.236 | AB10: HV line extension | AC10: 4736334.623 | AD10: 0.7
C11: Subtotal | D11: =SUM(D7:D10) -> 31534757.79 | G11: =SUM(G7:G10) -> 25479407.61 | AB11: Materials Subtotal | AC11: =D11 -> 31534757.79
C12: Labour | AB12: Labour
C13: Foundation | D13: =IF(ProjectData!$B$20="y",DefaultData!D24,ProjectData!B41) -> 1105050.829 | E13: =IF(ProjectData!$B$20="y",IF(ProjectData!AA$9=0,DefaultData!G24,ProjectData!AA41),ProjectData!E41) -> 0.95 | G13: =D13*E13 -> 1049798.287 | AB13: Foundation | AC13: =D13 -> 1105050.829 | AD13: =E13 -> 0.95
C14: Erection | D14: =IF(ProjectData!$B$20="y",DefaultData!D25,ProjectData!B42) -> 1821520.021 | E14: =IF(ProjectData!$B$20="y",IF(ProjectData!AA$9=0,DefaultData!G25,ProjectData!AA42),ProjectData!E42) -> 0.75 | G14: =D14*E14 -> 1366140.016 | AB14: Erection | AC14: =D14 -> 1821520.021 | AD14: =E14 -> 0.75
C15: Electrical | D15: =IF(ProjectData!$B$20="y",DefaultData!D26,ProjectData!B43) -> 2444157.562 | E15: =IF(ProjectData!$B$20="y",IF(ProjectData!AA$9=0,DefaultData!G26,ProjectData!AA43),ProjectData!E43) -> 0.7 | G15: =D15*E15 -> 1710910.293 | AB15: Electrical | AC15: 2444157.562 | AD15: =E15 -> 0.7
C16: Management/supervision | D16: =IF(ProjectData!$B$20="y",DefaultData!D27,ProjectData!B44) -> 1341768.845 | E16: =IF(ProjectData!$B$20="y",IF(ProjectData!AA$9=0,DefaultData!G27,ProjectData!AA44),ProjectData!E44) -> 0.1 | G16: =D16*E16 -> 134176.8845 | AB16: Management/supervision | AC16: 1341768.845 | AD16: =E16 -> 0.1
C17: Misc. | D17: =IF(ProjectData!$B$20="y",DefaultData!D28,ProjectData!B45) -> 7676000 | E17: =IF(ProjectData!$B$20="y",IF(ProjectData!AA$9=0,DefaultData!G28,ProjectData!AA45),ProjectData!E45) -> 0.5 | G17: =D17*E17 -> 3838000 | AB17: Misc. | AC17: 7676000 | AD17: =E17 -> 0.5
C18: Subtotal | D18: =SUM(D13:D17) -> 14388497.26 | G18: =SUM(G13:G17) -> 8099025.481 | H18: =SUM(G13:G16) -> 4261025.481 | AB18: Labour Subtotal | AC18: 14388497.26
C19: Subtotal | D19: =D11+D18 -> 45923255.05 | G19: =G11+G18 -> 33578433.09 | AB19: Subtotal | AC19: 45923255.05
C20: Equipment Costs | AB20: Equipment Costs
C21: Turbines (excluding blades and towers) | D21: =IF(ProjectData!$B$20="y",DefaultData!D32,ProjectData!B28) -> 89992395.96 | E21: =IF(ProjectData!$B$20="y",IF(ProjectData!AA$9=0,DefaultData!G32,ProjectData!AA28),ProjectData!E28) -> 0 | G21: =D21*E21 -> 0 | AB21: Turbines | AC21: =D21 -> 89992395.96 | AD21: 0
C22: Blades | D22: =IF(ProjectData!$B$20="y",DefaultData!D33,ProjectData!B29) -> 21068453.9 | E22: =IF(ProjectData!$B$20="y",IF(ProjectData!AA$9=0,DefaultData!G33,ProjectData!AA29),ProjectData!E29) -> 0 | G22: =D22*E22 -> 0 | AB22: Blades | AC22: 21068453.9 | AD22: 0
C23: Towers | D23: =IF(ProjectData!$B$20="y",DefaultData!D34,ProjectData!B30) -> 23325788.25 | E23: =IF(ProjectData!$B$20="y",IF(ProjectData!AA$9=0,DefaultData!G34,ProjectData!AA30),ProjectData!E30) -> 0 | G23: =D23*E23 -> 0 | AB23: Towers | AC23: 23325788.25 | AD23: 0
C24: Transportation | D24: =IF(ProjectData!$B$20="y",DefaultData!D35,ProjectData!B31) -> 16102318.34 | E24: =IF(ProjectData!$B$20="y",IF(ProjectData!AA$9=0,DefaultData!G35,ProjectData!AA31),ProjectData!E31) -> 0 | G24: =D24*E24 -> 0 | AB24: Transportation | AC24: 16102318.34 | AD24: 0
C25: Subtotal | D25: =SUM(D21:D24) -> 150488956.5 | G25: =SUM(G21:G24) -> 0 | H25: 0.8944873318 | I25: 0.234490611 | J25: 0.1055126682 | AB25: Equipment Subtotal | AC25: =D25 -> 150488956.5
C26: Development/Other Costs | H26: Labour | I26: Materials | J26: Design | AB26: Development/Other Costs
C27: HV Sub/Interconnection | AB27: HV Sub/Interconnection | AC27: =D27 -> 0 | AD27: =E27 -> 0
C28: Materials | D28: =IF(ProjectData!$B$20="y",DefaultData!D39,ProjectData!B49) -> 1494495.686 | E28: =IF(ProjectData!$B$20="y",IF(ProjectData!AA$9=0,DefaultData!G39,ProjectData!AA48),ProjectData!E49) -> 0.9 | G28: =D28*E28 -> 1345046.117 | I28: =G28 -> 1345046.117 | AB28: Materials | AC28: =D28 -> 1494495.686 | AD28: =E28 -> 0.9
C29: Labour | D29: =IF(ProjectData!$B$20="y",DefaultData!D40,ProjectData!B50) -> 457793.4791 | E29: =IF(ProjectData!$B$20="y",IF(ProjectData!AA$9=0,DefaultData!G40,ProjectData!AA49),ProjectData!E50) -> 0.1 | G29: 45779.34791 | H29: =G29*H25 -> 40949.04676 | J29: =G29*J25 -> 4830.301147 | AB29: Labour | AC29: 457793.4791 | AD29: 0.1
C30: Engineering | D30: =IF(ProjectData!$B$20="y",DefaultData!D41,ProjectData!B51) -> 2033634.547 | E30: =IF(ProjectData!$B$20="y",IF(ProjectData!AA$9=0,DefaultData!G41,ProjectData!AA50),ProjectData!E51) -> 0 | G30: 0 | AB30: Engineering | AC30: 2033634.547 | AD30: 0
C31: Legal Services | D31: =IF(ProjectData!$B$20="y",DefaultData!D42,ProjectData!B52) -> 1108330.828 | E31: =IF(ProjectData!$B$20="y",IF(ProjectData!AA$9=0,DefaultData!G42,ProjectData!AA51),ProjectData!E52) -> 1 | G31: 1108330.828 | I31: =I32-I33 -> 2.194879072 | AB31: Legal Services | AC31: 1108330.828 | AD31: 1
C32: Land Easements | D32: =IF(ProjectData!$B$20="y",DefaultData!D43,ProjectData!B53) -> 0 | E32: =IF(ProjectData!$B$20="y",IF(ProjectData!AA$9=0,DefaultData!G43,ProjectData!AA52),ProjectData!E53) -> 1 | G32: 0 | I32: 7.492973171 | M32: =CONCATENATE("In $",Deflators!E5) -> In $2020 | AB32: Land Easements | AC32: 0 | AD32: 1
C33: Site Certificate | D33: =IF(ProjectData!$B$20="y",DefaultData!D44,ProjectData!B54) -> 518576.8094 | E33: =IF(ProjectData!$B$20="y",IF(ProjectData!AA$9=0,DefaultData!G44,ProjectData!AA53),ProjectData!E54) -> 1 | G33: 518576.8094 | H33: Eng. & Prof. Svcs.& Sub Interconnection | I33: =I55 -> 5.298094099 | J33: =I45-DefaultData!AQ28 -> 0.1354772343 | L33: Eng. & Prof. Svcs. | M33: =M55*G60 -> 0.4647853452 | N33: =M45-H45 -> 0.0388567597 | P33: Eng. & Prof. Svcs. | Q33: =Q55*G60 -> 1.113161129 | R33: =(Q57-Q45-Q33)*G60 -> 7.715990992 | T33: Eng. & Prof. Svcs. | U33: =U55*G60 -> 0.6984338458 | V33: =(U57-U33-U45)*K60 -> 0 | AB33: Site Certificate | AC33: 518576.8094 | AD33: 1
C34: Subtotal | D34: =SUM(D28:D33) -> 5612831.349 | G34: =SUM(G28:G33) -> 3017733.103 | H34: Other Sectors (not Construction) | I34: =I57-I45-I37-I33 -> 34.58972384 | L34: Other Sectors (not Construction) | M34: =((M57-M45)*G60)-M37-M33 -> 1.630891809 | P34: Other Sectors (not Construction) | Q34: =(Q57-Q45)*G60-Q33-Q37 -> 3.838 | T34: Other Sectors (not Construction) | U34: =(U57-U45)*G60-U33-U37 -> 2.540169575 | AB34: Other Subtotal | AC34: 5612831.349
C35: Subtotal All Costs (without sales tax) | D35: =D19+D25+D34 -> 202025042.9 | G35: =G19+G25+G34 -> 36596166.19 | AB35: Subtotal All Costs (without sales tax) | AC35: 202025042.9
C36: Sales Tax (Materials & Equipment Purchases) | D36: =IF(ProjectData!$B$20="y",DefaultData!D47,ProjectData!B58) -> 0 | E36: =IF(ProjectData!$B$23="y",IF(ProjectData!#REF!=0,DefaultData!G47,ProjectData!AA58),ProjectData!E58) -> 1 | G36: =D36*E36 -> 0 | AB36: Sales Tax (Materials & Equipment Purchases) | AC36: 0 | AD36: =E36 -> 1
C37: TOTAL | D37: =D35+D36 -> 202025042.9 | G37: =G19+G25+G34 -> 36596166.19 | H37: Manufacturing Jobs | I37: =I46+I47+I48+I49 -> 5.292895986 | J37: =J46+J47+J48+J49 -> 8.269050782 | L37: Mfg W&S Earnings | M37: =(M46+M47+M48+M49)*$G60 -> 0.454486556 | P37: Mfg Output | Q37: =(Q46+Q47+Q48+Q49)*$G60 -> 3.937930437 | R37: =(R46+R47+R48+R49)*$G60 -> 3.219046269 | T37: Mfg Output | U37: =(U46+U47+U48+U49)*$G60 -> 1.268662174 | V37: =(V46+V47+V48+V49)*$G60 -> 1.405642719 | AB37: Total Project Costs | AC37: 202025042.9 | AD37: =AC37/(ProjectData!B11*1000) -> 2020.250429
D38: =D37/(DefaultData!E5*1000) -> 2020.250429 | I38: =I39/ProjectData!$B11 -> 0.05292895986 | J38: =J39/ProjectData!$B11 -> 0.08269050782 | K38: =K39/ProjectData!$B11 -> 0.0278689895 | L38: =L39/ProjectData!$B11 -> 0.1634884572 | P38: =P39*G60 -> 1.181751612 | T38: =T39*G60 -> 7.735010202 | X38: =X39*G60 -> 3.033316319 | AG38: Local Economic Impacts - Summary Results
C39: Year | D39: =ProjectData!B16 -> 2020 | F39: =CONCATENATE("Convert to ",Deflators!E4, " dollars") -> Convert to 2017 dollars | G39: =Deflators!J4 -> 0.9489051095 | I39: =SUM(I46:I49) -> 5.292895986 | J39: =SUM(J46:J49) -> 8.269050782 | K39: =SUM(K46:K49) -> 2.78689895 | L39: 16.34884572 | M39: 0.4312646152 | N39: 0.5513507183 | O39: 0.1387548095 | P39: 1.121370143 | Q39: 3.736722312 | R39: 3.054569452 | S39: 0.5484989378 | T39: 7.339790702 | U39: 1.203840019 | V39: 1.333821559 | W39: 0.3406677759 | X39: 2.878329353 | AB39: Wind Plant Annual Operating and Maintenance Costs | AH39: Jobs | AI39: Earnings | AJ39: Output | AK39: Value Added
C40: Construction Costs Local Demand | F40: =SUM(F3:F39) -> 0 | I40: =(M45*10^6)/I45 -> 70455.84345 | M40: =CONCATENATE("In $",Deflators!E4) -> In $2017 | AG40: During construction period
D41: Demand | F41: Total | G41: Adj Demand | I41: Jobs | J41: Jobs | K41: Jobs | L41: Jobs | M41: Earnings | Q41: Output | U41: Value Added | AB41: Variable Costs | AG41: Direct Impacts | AH41: =AH42+AH43 -> 63.23744179 | AI41: =AI42+AI43 -> 4.766759873 | AJ41: =AJ42+AJ43 -> 5.415135657 | AK41: =AK42+AK43 -> 11.85220787
G42: =CONCATENATE("Millions of ",Deflators!E4, " dollars") -> Millions of 2017 dollars | H42: =H43/29 -> 1339.888266 | I42: Direct | J42: Indirect | K42: Induced | L42: Total | M42: Direct | N42: Indirect | O42: Induced | P42: Total | Q42: Direct | R42: Indirect | S42: Induced | T42: Total | U42: Direct | V42: Indirect | W42: Induced | X42: Total | AB42: Personnel | AG42: Onsite Construction Only (labour and interconnection) | AH42: =I45 -> 57.93934769 | AI42: =M45*G60 -> 4.301974528 | AJ42: =Q45*$G60 -> 4.301974528 | AK42: =U45*$G60 -> 11.15377403
C43: Agriculture | D43: =E141 -> 0 | F43: =D43 -> 0 | G43: =F43*G$39/10^6 -> 0 | H43: =H46*10^6 -> 38856.7597 | I43: =$G43*Multipliers!D8 -> 0 | J43: =$G43*Multipliers!E8 -> 0 | K43: =$G43*Multipliers!F8 -> 0 | L43: =I43+J43+K43 -> 0 | M43: =$G43*Multipliers!G8 -> 0 | N43: =$G43*Multipliers!H8 -> 0 | O43: =$G43*Multipliers!I8 -> 0 | P43: =M43+N43+O43 -> 0 | Q43: =+$G43*Multipliers!J8 -> 0 | R43: =$G43*Multipliers!K8 -> 0 | S43: =$G43*Multipliers!L8 -> 0 | T43: =Q43+R43+S43 -> 0 | U43: =$G43*Multipliers!M8 -> 0 | V43: =$G43*Multipliers!N8 -> 0 | W43: =$G43*Multipliers!O8 -> 0 | X43: =U43+V43+W43 -> 0 | AB43: Field Salaries | AC43: =D66 -> 358201.5218 | AD43: 1 | AG43: Other Onsite Construction Related Services (Engin. and Prof. Services) | AH43: =I33 -> 5.298094099 | AI43: =M33 -> 0.4647853452 | AJ43: =Q33 -> 1.113161129 | AK43: =U33 -> 0.6984338458
C44: Mining | D44: =E142 -> 0 | F44: =D44 -> 0 | G44: =F44*G$39/10^6 -> 0 | H44: Const | I44: =$G44*Multipliers!D9 -> 0 | J44: =$G44*Multipliers!E9 -> 0 | K44: =$G44*Multipliers!F9 -> 0 | L44: =I44+J44+K44 -> 0 | M44: =$G44*Multipliers!G9 -> 0 | N44: =$G44*Multipliers!H9 -> 0 | O44: =$G44*Multipliers!I9 -> 0 | P44: =M44+N44+O44 -> 0 | Q44: =+$G44*Multipliers!J9 -> 0 | R44: =$G44*Multipliers!K9 -> 0 | S44: =$G44*Multipliers!L9 -> 0 | T44: =Q44+R44+S44 -> 0 | U44: =$G44*Multipliers!M9 -> 0 | V44: =$G44*Multipliers!N9 -> 0 | W44: =$G44*Multipliers!O9 -> 0 | X44: =U44+V44+W44 -> 0 | AB44: Adminstrative | AC44: 59934.57203 | AD44: 1 | AG44: Indirect Impacts | AH44: =I34+I37+J57 -> 186.6416871 | AI44: =M34+M37+N60 -> 14.38908753 | AJ44: =+Q34+Q37+R60 -> 49.33027646 | AK44: =+U34+U37+V60 -> 13.68853291
C45: Construction | D45: 27188497.81 | F45: 27188497.81 | G45: 25.7993045 | H45: =H18*G39/10^6 -> 4.043308851 | I45: =+(H46*Multipliers!D10)+DefaultData!AQ28 -> 57.93934769 | J45: =($G45*Multipliers!E10)+(H47*Multipliers!D10) -> 129.3540926 | K45: =$G45*Multipliers!F10 -> 34.99248997 | L45: 222.2859302 | M45: =H45+H46 -> 4.08216561 | N45: =(G45*Multipliers!H10)+(H47*Multipliers!G10) -> 10.55203015 | O45: =$G45*Multipliers!I10 -> 1.743406047 | P45: 16.37760181 | Q45: =($H46*Multipliers!J10)+(H45*Multipliers!J10) -> 4.08216561 | R45: =G45*Multipliers!K10+H47*Multipliers!J10 -> 34.54908897 | S45: =$G45*Multipliers!L10 -> 6.869950526 | T45: 45.5012051 | U45: =$G45*Multipliers!M10 -> 10.58387317 | V45: =$G45*Multipliers!N10 -> 6.994035115 | W45: =$G45*Multipliers!O10 -> 4.268875933 | X45: 21.84678421 | AB45: Manangement | AC45: 142852.7229 | AD45: 1 | AG45: Induced Impacts | AH45: =K57 -> 45.37899804 | AI45: =O60 -> 2.383692902 | AJ45: =S60 -> 9.388691183 | AK45: =W60 -> 5.83402247
C46: Manufacturing | D46: 3937930.437 | F46: 3937930.437 | G46: 3.736722312 | H46: =H29/10^6*G39 -> 0.0388567597 | I46: =$G46*Multipliers!D11 -> 5.292895986 | J46: =$G46*Multipliers!E11 -> 8.269050782 | K46: =$G46*Multipliers!F11 -> 2.78689895 | L46: 16.34884572 | M46: =$G46*Multipliers!G11 -> 0.4312646152 | N46: =$G46*Multipliers!H11 -> 0.5513507183 | O46: =$G46*Multipliers!I11 -> 0.1387548095 | P46: 1.121370143 | Q46: =+$G46*Multipliers!J11 -> 3.736722312 | R46: =$G46*Multipliers!K11 -> 3.054569452 | S46: =$G46*Multipliers!L11 -> 0.5484989378 | T46: 7.339790702 | U46: =$G46*Multipliers!M11 -> 1.203840019 | V46: =$G46*Multipliers!N11 -> 1.333821559 | W46: =$G46*Multipliers!O11 -> 0.3406677759 | X46: 2.878329353 | AB46: Personnel Subtotal | AC46: 560988.8167 | AD46: 0 | AG46: Total Impacts (Direct, Indirect, Induced) | AH46: =AH45+AH44+AH41 -> 295.258127 | AI46: =AI45+AI44+AI41 -> 21.5395403 | AJ46: =AJ45+AJ44+AJ41 -> 64.1341033 | AK46: =AK45+AK44+AK41 -> 31.37476326
C47: Fabricated Metals | D47: 0 | F47: 0 | G47: 0 | H47: =G45-(H45+H46) -> 21.71713889 | I47: =$G47*Multipliers!D12 -> 0 | J47: =$G47*Multipliers!E12 -> 0 | K47: =$G47*Multipliers!F12 -> 0 | L47: 0 | M47: =$G47*Multipliers!G12 -> 0 | N47: =$G47*Multipliers!H12 -> 0 | O47: =$G47*Multipliers!I12 -> 0 | P47: 0 | Q47: =+$G47*Multipliers!J12 -> 0 | R47: =$G47*Multipliers!K12 -> 0 | S47: =$G47*Multipliers!L12 -> 0 | T47: 0 | U47: =$G47*Multipliers!M12 -> 0 | V47: =$G47*Multipliers!N12 -> 0 | W47: =$G47*Multipliers!O12 -> 0 | X47: 0 | AB47: Warranty/Maintenance Services | AC47: 0 | AD47: 0
C48: Machinery | D48: 0 | F48: 0 | G48: 0 | I48: =$G48*Multipliers!D13 -> 0 | J48: =$G48*Multipliers!E13 -> 0 | K48: =$G48*Multipliers!F13 -> 0 | L48: 0 | M48: =$G48*Multipliers!G13 -> 0 | N48: =$G48*Multipliers!H13 -> 0 | O48: =$G48*Multipliers!I13 -> 0 | P48: 0 | Q48: =+$G48*Multipliers!J13 -> 0 | R48: =$G48*Multipliers!K13 -> 0 | S48: =$G48*Multipliers!L13 -> 0 | T48: 0 | U48: =$G48*Multipliers!M13 -> 0 | V48: =$G48*Multipliers!N13 -> 0 | W48: =$G48*Multipliers!O13 -> 0 | X48: 0 | AB48: Total | AC48: =D71 -> 560988.8167 | AG48: During operating years (annual)
C49: Electrical Equipment | D49: 0 | F49: 0 | G49: 0 | I49: =$G49*Multipliers!D14 -> 0 | J49: =$G49*Multipliers!E14 -> 0 | K49: =$G49*Multipliers!F14 -> 0 | L49: 0 | M49: =$G49*Multipliers!G14 -> 0 | N49: =$G49*Multipliers!H14 -> 0 | O49: =$G49*Multipliers!I14 -> 0 | P49: 0 | Q49: =+$G49*Multipliers!J14 -> 0 | R49: =$G49*Multipliers!K14 -> 0 | S49: =$G49*Multipliers!L14 -> 0 | T49: 0 | U49: =$G49*Multipliers!M14 -> 0 | V49: =$G49*Multipliers!N14 -> 0 | W49: =$G49*Multipliers!O14 -> 0 | X49: 0 | AB49: Fixed Costs | AG49: Direct Impacts
C50: TCPU | D50: 0 | F50: 0 | G50: 0 | I50: =$G50*Multipliers!D15 -> 0 | J50: =$G50*Multipliers!E15 -> 0 | K50: =$G50*Multipliers!F15 -> 0 | L50: 0 | M50: =$G50*Multipliers!G15 -> 0 | N50: =$G50*Multipliers!H15 -> 0 | O50: =$G50*Multipliers!I15 -> 0 | P50: 0 | Q50: =+$G50*Multipliers!J15 -> 0 | R50: =$G50*Multipliers!K15 -> 0 | S50: =$G50*Multipliers!L15 -> 0 | T50: 0 | U50: =$G50*Multipliers!M15 -> 0 | V50: =$G50*Multipliers!N15 -> 0 | W50: =$G50*Multipliers!O15 -> 0 | X50: 0 | AB50: Materials and Services | AG50: Onsite Wind Farm Labour Only (field techs, admin., mgmt.) | AH50: =L137 -> 6 | AI50: =P139 -> 0.4095218362 | AJ50: =T139 -> 0.4095218362 | AK50: =X139 -> 0.4095218362
C51: Wholesale Trade | D51: 0 | F51: 0 | G51: 0 | I51: =$G51*Multipliers!D16 -> 0 | J51: =$G51*Multipliers!E16 -> 0 | K51: =$G51*Multipliers!F16 -> 0 | L51: 0 | M51: =$G51*Multipliers!G16 -> 0 | N51: =$G51*Multipliers!H16 -> 0 | O51: =$G51*Multipliers!I16 -> 0 | P51: 0 | Q51: =+$G51*Multipliers!J16 -> 0 | R51: =$G51*Multipliers!K16 -> 0 | S51: =$G51*Multipliers!L16 -> 0 | T51: 0 | U51: =$G51*Multipliers!M16 -> 0 | V51: =$G51*Multipliers!N16 -> 0 | W51: =$G51*Multipliers!O16 -> 0 | X51: 0 | AB51: Vehicles | AC51: =D74 -> 55392.40632 | AD51: 1 | AG51: Indirect Impacts | AH51: =(L159-AH50)+M159 -> 9.709140856 | AI51: =P160-AI50+Q160 -> 0.7160829977 | AJ51: =T160-AJ50+U160 -> 2.213168726 | AK51: =X160-AK50+Y160 -> 1.23719527
C52: Retail Trade | D52: 1919000 | F52: 1919000 | G52: 1.820948905 | I52: =$G52*Multipliers!D17 -> 20.42591585 | J52: =$G52*Multipliers!E17 -> 3.236496583 | K52: =$G52*Multipliers!F17 -> 2.945643097 | L52: 26.60805553 | M52: =$G52*Multipliers!G17 -> 0.7504973184 | N52: =$G52*Multipliers!H17 -> 0.2119356807 | O52: =$G52*Multipliers!I17 -> 0.1471514717 | P52: 1.109584471 | Q52: =+$G52*Multipliers!J17 -> 1.820948905 | R52: =$G52*Multipliers!K17 -> 0.7460809621 | S52: =$G52*Multipliers!L17 -> 0.5777199156 | T52: 3.144749783 | U52: =$G52*Multipliers!M17 -> 1.113325725 | V52: =$G52*Multipliers!N17 -> 0.4238477998 | W52: =$G52*Multipliers!O17 -> 0.3590192517 | X52: 1.896192776 | AB52: Misc. Services | AC52: 21603.03847 | AD52: 0.8 | AG52: Induced Impacts | AH52: =N159 -> 2.277296459 | AI52: =R160 -> 0.1196859027 | AJ52: =V160 -> 0.4708070081 | AK52: =Z160 -> 0.292441317
C53: FIRE | D53: 0 | F53: 0 | G53: 0 | I53: =$G53*Multipliers!D18 -> 0 | J53: =$G53*Multipliers!E18 -> 0 | K53: =$G53*Multipliers!F18 -> 0 | L53: 0 | M53: =$G53*Multipliers!G18 -> 0 | N53: =$G53*Multipliers!H18 -> 0 | O53: =$G53*Multipliers!I18 -> 0 | P53: 0 | Q53: =+$G53*Multipliers!J18 -> 0 | R53: =$G53*Multipliers!K18 -> 0 | S53: =$G53*Multipliers!L18 -> 0 | T53: 0 | U53: =$G53*Multipliers!M18 -> 0 | V53: =$G53*Multipliers!N18 -> 0 | W53: =$G53*Multipliers!O18 -> 0 | X53: 0 | AB53: Fees, Permits, Licenses | AC53: 10801.51923 | AD53: 1 | AG53: Total Impacts (Direct, Indirect, Induced) | AH53: =SUM(AH50:AH52) -> 17.98643732 | AI53: =SUM(AI50:AI52) -> 1.245290737 | AJ53: =SUM(AJ50:AJ52) -> 3.093497571 | AK53: =SUM(AK50:AK52) -> 1.939158423
C54: Misc. Services | D54: 1919000 | F54: 1919000 | G54: 1.820948905 | I54: =$G54*Multipliers!D19 -> 12.38555199 | J54: =$G54*Multipliers!E19 -> 2.659237389 | K54: =$G54*Multipliers!F19 -> 2.275198359 | L54: 17.31998774 | M54: =$G54*Multipliers!G19 -> 0.6295479516 | N54: =$G54*Multipliers!H19 -> 0.1557207738 | O54: =$G54*Multipliers!I19 -> 0.1139568971 | P54: 0.8992256225 | Q54: =+$G54*Multipliers!J19 -> 1.820948905 | R54: =$G54*Multipliers!K19 -> 0.4757304011 | S54: =$G54*Multipliers!L19 -> 0.4462697835 | T54: 2.74294909 | U54: =$G54*Multipliers!M19 -> 1.297054164 | V54: =$G54*Multipliers!N19 -> 0.2626571739 | W54: =$G54*Multipliers!O19 -> 0.2771919845 | X54: 1.836903323 | AB54: Misc. Materials | AC54: 43206.07693 | AD54: 1
C55: Professional Services | D55: 1113161.129 | F55: 1113161.129 | G55: 1.056284283 | I55: =$G55*Multipliers!D20 -> 5.298094099 | J55: =$G55*Multipliers!E20 -> 1.839027774 | K55: =$G55*Multipliers!F20 -> 1.652199106 | L55: 8.789320979 | M55: =$G55*Multipliers!G20 -> 0.4410371888 | N55: =$G55*Multipliers!H20 -> 0.1132285589 | O55: =$G55*Multipliers!I20 -> 0.0825118553 | P55: 0.636777603 | Q55: =+$G55*Multipliers!J20 -> 1.056284283 | R55: =$G55*Multipliers!K20 -> 0.3552979171 | S55: =$G55*Multipliers!L20 -> 0.3240434176 | T55: 1.735625618 | U55: =$G55*Multipliers!M20 -> 0.6627474449 | V55: =$G55*Multipliers!N20 -> 0.2041438322 | W55: =$G55*Multipliers!O20 -> 0.2016895947 | X55: 1.068580872 | AB55: Insurance | AC55: 415443.0474 | AD55: 0
C56: Government | D56: 518576.8094 | F56: 518576.8094 | G56: 0.4920801841 | I56: =$G56*Multipliers!D21 -> 1.778255999 | J56: =$G56*Multipliers!E21 -> 1.401162247 | K56: =$G56*Multipliers!F21 -> 0.7265685647 | L56: 3.905986811 | M56: =$G56*Multipliers!G21 -> 0.1675163007 | N56: =$G56*Multipliers!H21 -> 0.09078660281 | O56: =$G56*Multipliers!I21 -> 0.03611729348 | P56: 0.2944201969 | Q56: 0 | R56: =$G56*Multipliers!K21 -> 0.2503635641 | S56: =$G56*Multipliers!L21 -> 0.1424944546 | T56: 0.3928580187 | U56: 0 | V56: =$G56*Multipliers!N21 -> 0.1563934346 | W56: =$G56*Multipliers!O21 -> 0.08848919097 | X56: 0.2448826256 | AB56: Fuel (gals) | AC56: 21603.03847 | AD56: 1
C57: Total | D57: =SUM(D43:D56) -> 36596166.19 | F57: =SUM(F43:F56) -> 36596166.19 | G57: =SUM(G43:G56) -> 34.72628909 | H57: Total | I57: =SUM(I43:I56) -> 103.1200616 | J57: 146.7590673 | K57: 45.37899804 | L57: 295.258127 | M57: 6.502028985 | N57: 11.67505249 | O57: 2.261898374 | P57: 20.43897985 | Q57: 12.51707002 | R57: 39.43113126 | S57: 8.908977035 | T57: 60.85717831 | U57: 14.86084052 | V57: 9.374898914 | W57: 5.535933731 | X57: 29.77167316 | AB57: Tools and Misc. Supplies | AC57: 140419.75 | AD57: 1
AB58: Spare Parts Inventory | AC58: 1230542.306 | AD58: 0.02
F59: Inflator to | G59: =D39 -> 2020 | H59: Dollars | M59: =CONCATENATE("↓ Conversion of totals into ", G59," dollars ↓") -> ↓ Conversion of totals into 2020 dollars ↓ | AB59: Subtotal | AC59: =D82 -> 1939011.183
G60: =Deflators!J5 -> 1.053846154 | M60: =M57*$G60 -> 6.852138238 | N60: =N57*$G60 -> 12.30370916 | O60: 2.383692902 | P60: 21.5395403 | Q60: 13.19106609 | R60: 41.55434602 | S60: 9.388691183 | T60: 64.1341033 | U60: 15.66103962 | V60: 9.879701164 | W60: 5.83402247 | X60: 31.37476326 | AB60: Sales Tax (Materials & Equipment Purchases) | AC60: =D83 -> 0 | AD60: =E83 -> 1
AB61: Other Taxes/Payments | AC61: =D84 -> 0 | AD61: =E84 -> 1
C62: Wind Farm Annual Operating and Maintenance Costs | H62: Gross incl benefits | AB62: Total (with Sales Tax and Other Taxes/Payments | AC62: =AC61+AC60+AC59+AC48 -> 2500000
D63: Cost | E63: Local Share | F63: Empl Earnings | G63: Local $ Spending | H63: Empl Earnings | I63: Govt Share | J63: Health Ben, etc. | AB63: Debt Payment (average annual) | AC63: =D86 -> 50566428.01 | AD63: 0
C64: Variable Costs | AB64: Equity Payment - Individuals | AC64: 0 | AD64: 1
C65: Personnel | AB65: Equity Payment - Corporate | AC65: 15807855.82 | AD65: 0
C66: Field Salaries | D66: =IF(ProjectData!$B$20="y",DefaultData!D55,ProjectData!B66) -> 358201.5218 | E66: =IF(ProjectData!$B$20="y",IF(ProjectData!AA$9=0,DefaultData!G55,ProjectData!AA66),ProjectData!E66) -> 1 | F66: =D66*(1-DefaultData!N$108) -> 237021.9469 | G66: =E66*F66 -> 237021.9469 | H66: =D66*(1-DefaultData!N$106) -> 261487.1109 | I66: =D66*E66*DefaultData!N$106 -> 96714.41087 | J66: =E66*D66*DefaultData!N$107 -> 24465.16394 | AB66: Property Taxes | AC66: 555500 | AD66: 1
C67: Adminstrative | D67: =IF(ProjectData!$B$20="y",DefaultData!D56,ProjectData!B67) -> 59934.57203 | E67: =IF(ProjectData!$B$20="y",IF(ProjectData!AA$9=0,DefaultData!G56,ProjectData!AA67),ProjectData!E67) -> 1 | F67: =D67*(1-DefaultData!N$108) -> 39658.70631 | G67: =E67*F67 -> 39658.70631 | H67: =D67*(1-DefaultData!N$106) -> 43752.23758 | I67: =D67*E67*DefaultData!N$106 -> 16182.33445 | J67: =E67*D67*DefaultData!N$107 -> 4093.53127 | AB67: Land Lease | AC67: 330000 | AD67: 1
C68: Manangement | D68: =IF(ProjectData!$B$20="y",DefaultData!D57,ProjectData!B68) -> 142852.7229 | E68: =IF(ProjectData!$B$20="y",IF(ProjectData!AA$9=0,DefaultData!G57,ProjectData!AA68),ProjectData!E68) -> 1 | F68: =D68*(1-DefaultData!N$108) -> 94525.64676 | G68: =E68*F68 -> 94525.64676 | H68: =D68*(1-DefaultData!N$106) -> 104282.4877 | I68: =D68*E68*DefaultData!N$106 -> 38570.23519 | J68: =E68*D68*DefaultData!N$107 -> 9756.840976 | AB68: Total Annual Operating and Maintenance Costs | AC68: =D91 -> 69759783.83
C69: Subtotal | D69: =SUM(D66:D68) -> 560988.8167 | F69: =SUM(F66:F68) -> 371206.3 | G69: =SUM(G66:G68) -> 371206.3 | H69: =SUM(H66:H68) -> 409521.8362 | I69: =SUM(I66:I68) -> 151466.9805 | J69: =SUM(J66:J68) -> 38315.53618 | K69: =G69+I69+J69 -> 560988.8167
C70: Warranty/Maintenance Services | D70: =IF(ProjectData!$B$20="y",DefaultData!D59,ProjectData!B70) -> 0 | AB70: Other Parameters
C71: Total | D71: =D69+D70 -> 560988.8167 | AD71: Local share
C72: Fixed Costs | AB72: Financial Parameters
C73: Materials and Services | AB73: Debt Financing
C74: Vehicles | D74: =IF(ProjectData!$B$20="y",DefaultData!D63,ProjectData!B71) -> 55392.40632 | E74: =IF(ProjectData!$B$20="y",IF(ProjectData!AA$9=0,DefaultData!G63,ProjectData!AA71),ProjectData!E71) -> 1 | G74: =D74*E74 -> 55392.40632 | AB74: Percentage financed | AC74: =IF(ProjectData!$B$20="y",DefaultData!D84,ProjectData!B88) -> 0.8 | AD74: =IF(ProjectData!$B$20="y",DefaultData!E84,ProjectData!C88) -> 0
C75: Misc. Services | D75: =IF(ProjectData!$B$20="y",DefaultData!D64,ProjectData!B72) -> 21603.03847 | E75: =IF(ProjectData!$B$20="y",IF(ProjectData!AA$9=0,DefaultData!G64,ProjectData!AA72),ProjectData!E72) -> 0.8 | G75: =D75*E75 -> 17282.43077 | AB75: Years financed (term) | AC75: =IF(ProjectData!$B$20="y",DefaultData!D85,ProjectData!B89) -> 20
C76: Fees, Permits, Licenses | D76: =IF(ProjectData!$B$20="y",DefaultData!D65,ProjectData!B73) -> 10801.51923 | E76: =IF(ProjectData!$B$20="y",IF(ProjectData!AA$9=0,DefaultData!G65,ProjectData!AA73),ProjectData!E73) -> 1 | G76: 10801.51923 | AB76: Interest rate | AC76: =IF(ProjectData!$B$20="y",DefaultData!D86,ProjectData!B90) -> 0.065
C77: Utilities | D77: =IF(ProjectData!$B$20="y",DefaultData!D66,ProjectData!B74) -> 43206.07693 | E77: =IF(ProjectData!$B$20="y",IF(ProjectData!AA$9=0,DefaultData!G66,ProjectData!AA74),ProjectData!E74) -> 1 | G77: 43206.07693 | AB77: Equity Financing
C78: Insurance | D78: =IF(ProjectData!$B$20="y",DefaultData!D67,ProjectData!B75) -> 415443.0474 | E78: =IF(ProjectData!$B$20="y",IF(ProjectData!AA$9=0,DefaultData!G67,ProjectData!AA75),ProjectData!E75) -> 0 | G78: 0 | AB78: Percentage equity | AC78: =IF(ProjectData!$B$20="y",DefaultData!D89,ProjectData!B92) -> 0.2
C79: Fuel (gals) | D79: =IF(ProjectData!$B$20="y",DefaultData!D68,ProjectData!B76) -> 21603.03847 | E79: =IF(ProjectData!$B$20="y",IF(ProjectData!AA$9=0,DefaultData!G68,ProjectData!AA76),ProjectData!E76) -> 1 | G79: 21603.03847 | AB79: Individual Investors (percent of total equity) | AC79: =IF(ProjectData!$B$20="y",DefaultData!D90,ProjectData!B93) -> 0 | AD79: =IF(ProjectData!$B$20="y",DefaultData!F87,ProjectData!E93) -> 0
C80: Tools and Misc. Supplies | D80: =IF(ProjectData!$B$20="y",DefaultData!D69,ProjectData!B77) -> 140419.75 | E80: =IF(ProjectData!$B$20="y",IF(ProjectData!AA$9=0,DefaultData!G69,ProjectData!AA77),ProjectData!E77) -> 1 | G80: 140419.75 | AB80: Corporate Investors (percent of total equity) | AC80: =IF(ProjectData!$B$20="y",DefaultData!D91,ProjectData!B94) -> 1 | AD80: =IF(ProjectData!$B$20="y",DefaultData!F88,ProjectData!E94) -> 0
C81: Spare Parts Inventory | D81: =IF(ProjectData!$B$20="y",DefaultData!D70,ProjectData!B78) -> 1230542.306 | E81: =IF(ProjectData!$B$20="y",IF(ProjectData!AA$9=0,DefaultData!G70,ProjectData!AA78),ProjectData!E78) -> 0.02 | G81: 24610.84613 | AB81: Return on equity (annual interest rate) | AC81: =IF(ProjectData!$B$20="y",DefaultData!D92,ProjectData!B95) -> 0.1
C82: Subtotal | D82: =SUM(D74:D81) -> 1939011.183 | E82: =D82/(DefaultData!E5*1000) -> 19.39011183 | G82: =SUM(G74:G81) -> 313316.0679 | AB82: Repayment term (years) | AC82: =IF(ProjectData!$B$20="y",DefaultData!D93,ProjectData!B96) -> 20
C83: Sales Tax (Materials & Equipment Purchases) | D83: =IF(ProjectData!$B$20="y",DefaultData!D72,ProjectData!B80) -> 0 | E83: =IF(ProjectData!$B$20="y",IF(ProjectData!AA$9=0,DefaultData!G72,ProjectData!AA80),ProjectData!E80) -> 1 | G83: =D83*E83 -> 0 | AB83: Tax Parameters
C84: Other Taxes/Payments | D84: =IF(ProjectData!$B$20="y",DefaultData!D73,ProjectData!B81) -> 0 | E84: =IF(ProjectData!$B$20="y",IF(ProjectData!AA$9=0,DefaultData!G73,ProjectData!AA81),ProjectData!E81) -> 1 | G84: =D84*E84 -> 0 | AB84: Local Property/Other Tax Rate (percent of taxable value) | AC84: =IF(ProjectData!$B$20="y",DefaultData!D96,ProjectData!B98) -> NA
AB85: Assessed value (percent of construction cost) | AC85: =IF(ProjectData!$B$20="y",DefaultData!D97,ProjectData!B99) -> NA
C86: Financing (debt payment) | D86: =IF(ProjectData!$B$20="y",F197,Calculations!F233) -> 50566428.01 | E86: =IF(ProjectData!$B$20="y",DefaultData!F84,ProjectData!E87) -> 0 | G86: =D86*E86 -> 0 | H86: =IF(ProjectData!$B$20="y",Calculations!D197,D233)*E86 -> 0 | I86: Debt Pmt - Local share Avg Ann Interest | AB86: Taxable Value (percent of assessed value) | AC86: 0
C87: Equity Payment - Individuals | D87: =IF(ProjectData!$B$20="y",K197,Calculations!K233) -> 0 | E87: =IF(ProjectData!$B$20="y",DefaultData!G90,ProjectData!E93) -> 1 | G87: =D87*E87 -> 0 | H87: =IF(ProjectData!$B$20="y",Calculations!I197,I233)*E87 -> 0 | I87: Equity Pmt - Individual Share Avg Ann Interest | AB87: Taxable Value | AC87: =IF(ProjectData!$B$20="y",DefaultData!D98,ProjectData!B100) -> NA
C88: Equity Payment - Corporate | D88: =IF(ProjectData!$B$20="y",P197,Calculations!P233) -> 15807855.82 | E88: =IF(ProjectData!$B$20="y",DefaultData!G91,ProjectData!E94) -> 0 | G88: =D88*E88 -> 0 | H88: =IF(ProjectData!$B$20="y",Calculations!N197,N233)*E88 -> 0 | I88: Equity Pmt - Corporate Share Avg Ann Interest | L88: Default Land Lease (below) | O88: User Land Lease (below) | AB88: Taxes Per MW | AC88: =IF(ProjectData!$B$20="y",DefaultData!D99,ProjectData!B101) -> 5555
C89: Property Taxes | D89: =IF(ProjectData!$B$20="y",IF(DefaultData!D100="NA",0,DefaultData!D100),ProjectData!B102) -> 555500 | E89: =IF(ProjectData!$B$20="y",DefaultData!G100,ProjectData!E102) -> 1 | G89: =D89*E89 -> 555500 | I89: Y | K89: Y | L89: F | M89: 0 | O89: F | P89: O | AB89: Local Taxes | AC89: =IF(ProjectData!$B$20="y",DefaultData!D100,ProjectData!B102) -> 555500 | AD89: =IF(ProjectData!$B$20="y",DefaultData!G100,ProjectData!E102) -> 1
C90: Land Lease | D90: =IF(ProjectData!$B$20="y",DefaultData!D78,ProjectData!B107) -> 330000 | E90: =IF(ProjectData!$B$20="y",DefaultData!G105,ProjectData!E108) -> 1 | G90: =D90*E90 -> 330000 | H90: =IF(ProjectData!B20="Y",Calculations!L90,O90) -> 330000 | I90: To House | J90: =IF(ProjectData!B20="Y",Calculations!M90,P90) -> 0 | K90: To FIRE | L90: =DefaultData!D104*DefaultData!G105 -> 330000 | M90: 0 | O90: =IF(ProjectData!B20="N",IF(ProjectData!B108="F",Calculations!G90,0),0) -> 0 | P90: =IF(ProjectData!B20="N",IF(ProjectData!B108="O",Calculations!G90,0),0) -> 0 | AB90: Local Sales Tax Rate | AC90: =IF(ProjectData!$B$20="y",DefaultData!D101,ProjectData!B103) -> 0 | AD90: =IF(ProjectData!$B$20="y",DefaultData!G101,ProjectData!E103) -> 1
C91: Total | D91: =D69+SUM(D82:D90) -> 69759783.83 | G91: =G69+SUM(G82:G90)+I69+J69 -> 1759804.885 | AB91: Land Lease Parameters
C92: Total (without debt, equity, property taxes, lease pmts) | D92: =D82+D83+D84+D71 -> 2500000 | E92: =D91-D92 -> 67259783.83 | G92: =G69+I69+J69+G82 -> 874304.8846 | H92: =G91-G92 -> 885500 | AB92: Land Lease Cost (per turbine) | AC92: =IF(ProjectData!$B$20="y",DefaultData!D103,ProjectData!B105) -> 8250
C93: Total cost per KW | D93: =D92/(ProjectData!B11*1000) -> 25 | AB93: Land Lease (total cost) | AC93: =IF(ProjectData!$B$20="y",DefaultData!D104,ProjectData!B107) -> 330000
D94: Local Share | E94: 1 | F94: 0.5 | L94: Without Plant Employees | AB94: Lease Payment recipient (F = farmer/household, O = Other) | AC94: =IF(ProjectData!$B$20="y",DefaultData!D105,ProjectData!B108) -> F | AD94: =IF(ProjectData!$B$20="y",DefaultData!F105,ProjectData!E108) -> 0
C95: Annual Operations and Maintenance Costs Local Demand - margined | O95: =Deflators!E4 -> 2017 | P95: Dollars | AB95: Payroll Parameters | AC95: Base Wage per Hour | AD95: Annual Wage | AE95: Employer Payroll Costs
D96: Demand | E96: PCE-Land Lease | F96: PCE -Equity | G96: Total | H96: Adj Demand - Million | L96: Jobs | P96: Earnings | T96: Output | X96: Value Added | AB96: Construction Labour
E97: To Farm/House | F97: To Individuals | G97: w/o Plant Empl | H97: =Deflators!E4 -> 2017 | I97: Dollars | L97: Direct | M97: Indirect | N97: Induced | O97: Total | P97: Direct | Q97: Indirect | R97: Induced | S97: Total | T97: Direct | U97: Indirect | V97: Induced | W97: Total | X97: Direct | Y97: Indirect | Z97: Induced | AA97: Total | AB97: Foundation | AC97: =IF(ProjectData!$B$20="y",DefaultData!F110,ProjectData!B111) -> 17.39154558 | AD97: =AC97*40*52 -> 36174.4148 | AE97: =IF(ProjectData!$B$20="y",DefaultData!H110,ProjectData!D111) -> 0.3383
C98: Agriculture | D98: =MMULT(TRANSPOSE(DemandOM),MarginsAGR) -> 0 | E98: =H$90*Multipliers!D25*E$94 -> 4232.827963 | F98: =H$87*Multipliers!D25*F$94 -> 0 | G98: =D98+E98+F98 -> 4232.827963 | H98: =G98*G$39/10^6 -> 0.004016552082 | L98: =$H98*Multipliers!D8 -> 0.009214182303 | M98: =$H98*Multipliers!E8 -> 0.007932861449 | N98: =$H98*Multipliers!F8 -> 0.002072296423 | O98: =L98+M98+N98 -> 0.01921934018 | P98: =$H98*Multipliers!G8 -> 0.000293526155 | Q98: =$H98*Multipliers!H8 -> 0.0004770056288 | R98: =$H98*Multipliers!I8 -> 0.0001051278202 | S98: =P98+Q98+R98 -> 0.000875659604 | T98: =$H98*Multipliers!J8 -> 0.004016552082 | U98: =$H98*Multipliers!K8 -> 0.002359802731 | V98: =$H98*Multipliers!L8 -> 0.0004098738587 | W98: =T98+U98+V98 -> 0.006786228671 | X98: =$H98*Multipliers!M8 -> 0.001856092822 | Y98: =$H98*Multipliers!N8 -> 0.0010429162 | Z98: =$H98*Multipliers!O8 -> 0.0002535268806 | AA98: =X98+Y98+Z98 -> 0.003152535903 | AB98: Erection | AC98: =IF(ProjectData!$B$20="y",DefaultData!F111,ProjectData!B112) -> 28.66750347 | AD98: =AC98*40*52 -> 59628.40722 | AE98: =IF(ProjectData!$B$20="y",DefaultData!H111,ProjectData!D112) -> 0.3383
C99: Mining | D99: =MMULT(TRANSPOSE(DemandOM),MarginsMIN) -> 0 | E99: =H$90*Multipliers!D26*E$94 -> 1054.518749 | F99: =H$87*Multipliers!D26*F$94 -> 0 | G99: =D99+E99+F99 -> 1054.518749 | H99: =G99*G$39/10^6 -> 0.001000638229 | L99: =$H99*Multipliers!D9 -> 0.000714399821 | M99: =$H99*Multipliers!E9 -> 0.001662044773 | N99: =$H99*Multipliers!F9 -> 0.0008057521196 | O99: =L99+M99+N99 -> 0.003182196713 | P99: =$H99*Multipliers!G9 -> 0.000133332044 | Q99: =$H99*Multipliers!H9 -> 0.0001373074776 | R99: =$H99*Multipliers!I9 -> 4.02640618e-05 | S99: =P99+Q99+R99 -> 0.0003109035834 | T99: =$H99*Multipliers!J9 -> 0.001000638229 | U99: =$H99*Multipliers!K9 -> 0.0004178048547 | V99: =$H99*Multipliers!L9 -> 0.0001587298441 | W99: =T99+U99+V99 -> 0.001577172927 | X99: =$H99*Multipliers!M9 -> 0.000542000457 | Y99: =$H99*Multipliers!N9 -> 0.0002337804356 | Z99: =$H99*Multipliers!O9 -> 9.819958425e-05 | AA99: =X99+Y99+Z99 -> 0.0008739804768 | AB99: Electrical | AC99: =IF(ProjectData!$B$20="y",DefaultData!F112,ProjectData!B113) -> 34.96974284 | AD99: =AC99*40*52 -> 72737.06511 | AE99: =IF(ProjectData!$B$20="y",DefaultData!H112,ProjectData!D113) -> 0.3383
C100: Construction | D100: =MMULT(TRANSPOSE(DemandOM),MarginsCON) -> 0 | E100: =H$90*Multipliers!D27*E$94 -> 180.4109494 | F100: =H$87*Multipliers!D27*F$94 -> 0 | G100: 180.4109494 | H100: 0.0001711928717 | L100: =$H100*Multipliers!D10 -> 0.0005968777883 | M100: =$H100*Multipliers!E10 -> 0.0003559018712 | N100: =$H100*Multipliers!F10 -> 0.0002321948193 | O100: 0.001184974479 | P100: =$H100*Multipliers!G10 -> 5.042829748e-05 | Q100: =$H100*Multipliers!H10 -> 2.756950306e-05 | R100: =$H100*Multipliers!I10 -> 1.156847805e-05 | S100: 8.95662786e-05 | T100: =$H100*Multipliers!J10 -> 0.0001711928717 | U100: =$H100*Multipliers!K10 -> 8.514719397e-05 | V100: =$H100*Multipliers!L10 -> 4.558597924e-05 | W100: 0.0003019260449 | X100: =$H100*Multipliers!M10 -> 7.022994133e-05 | Y100: =$H100*Multipliers!N10 -> 4.640935016e-05 | Z100: =$H100*Multipliers!O10 -> 2.83263888e-05 | AA100: 0.0001449656803 | AB100: Management/Supervision | AC100: =IF(ProjectData!$B$20="y",DefaultData!F113,ProjectData!B114) -> 33.84983271 | AD100: =AC100*40*52 -> 70407.65203 | AE100: =IF(ProjectData!$B$20="y",DefaultData!H113,ProjectData!D114) -> 0.3383
C101: Manufacturing | D101: =MMULT(TRANSPOSE(DemandOM),MarginsMFG) -> 10307.24386 | E101: =H$90*Multipliers!D28*E$94 -> 62486.71407 | F101: =H$87*Multipliers!D28*F$94 -> 0 | G101: 72793.95793 | H101: 0.06907455862 | L101: =$H101*Multipliers!D11 -> 0.09784094815 | M101: =$H101*Multipliers!E11 -> 0.1528561625 | N101: =$H101*Multipliers!F11 -> 0.05151675688 | O101: 0.3022138675 | P101: =$H101*Multipliers!G11 -> 0.007972070293 | Q101: =$H101*Multipliers!H11 -> 0.01019190197 | R101: =$H101*Multipliers!I11 -> 0.002564928946 | S101: 0.02072890121 | T101: =$H101*Multipliers!J11 -> 0.06907455862 | U101: =$H101*Multipliers!K11 -> 0.05646473541 | V101: =$H101*Multipliers!L11 -> 0.01013918586 | W101: 0.1356784799 | X101: =$H101*Multipliers!M11 -> 0.02225338439 | Y101: =$H101*Multipliers!N11 -> 0.02465613651 | Z101: =$H101*Multipliers!O11 -> 0.006297357493 | AA101: 0.05320687839 | AB101: O&M Labour | AC101: Base Wage per Hour | AD101: Annual Wage | AE101: Employer Payroll Costs
C102: Fabricated Metals | D102: =MMULT(TRANSPOSE(DemandOM),MarginsFME) -> 0 | E102: =H$90*Multipliers!D29*E$94 -> 75.8565309 | F102: =H$87*Multipliers!D29*F$94 -> 0 | G102: 75.8565309 | H102: 7.198064976e-05 | L102: =$H102*Multipliers!D12 -> 0.0002160287785 | M102: =$H102*Multipliers!E12 -> 0.0001141827263 | N102: =$H102*Multipliers!F12 -> 8.196822523e-05 | O102: 0.00041217973 | P102: =$H102*Multipliers!G12 -> 1.874365677e-05 | Q102: =$H102*Multipliers!H12 -> 8.663389696e-06 | R102: =$H102*Multipliers!I12 -> 4.105075454e-06 | S102: 3.151212192e-05 | T102: =$H102*Multipliers!J12 -> 7.198064976e-05 | U102: =$H102*Multipliers!K12 -> 2.854726173e-05 | V102: =$H102*Multipliers!L12 -> 1.610172762e-05 | W102: 0.0001166296391 | X102: =$H102*Multipliers!M12 -> 2.58147585e-05 | Y102: =$H102*Multipliers!N12 -> 1.425652549e-05 | Z102: =$H102*Multipliers!O12 -> 9.99543056e-06 | AA102: 5.006671455e-05 | AB102: Field Salaries (technicians, other) | AC102: =IF(ProjectData!$B$20="y",DefaultData!F115,ProjectData!B116) -> 32.16996751 | AD102: =AC102*40*52 -> 66913.53242 | AE102: =IF(ProjectData!$B$20="y",DefaultData!H115,ProjectData!D116) -> 0.3383
C103: Machinery | D103: =MMULT(TRANSPOSE(DemandOM),MarginsMAC) -> 0 | E103: =H$90*Multipliers!D30*E$94 -> 955.8490881 | F103: =H$87*Multipliers!D30*F$94 -> 0 | G103: 955.8490881 | H103: 0.0009070100836 | L103: =$H103*Multipliers!D13 -> 0.002533059973 | M103: =$H103*Multipliers!E13 -> 0.00139339394 | N103: =$H103*Multipliers!F13 -> 0.001011583306 | O103: 0.004938037218 | P103: =$H103*Multipliers!G13 -> 0.0002255500366 | Q103: =$H103*Multipliers!H13 -> 0.0001078350525 | R103: =$H103*Multipliers!I13 -> 5.071391512e-05 | S103: 0.0003840990042 | T103: =$H103*Multipliers!J13 -> 0.0009070100836 | U103: =$H103*Multipliers!K13 -> 0.0003431345809 | V103: =$H103*Multipliers!L13 -> 0.0001987990933 | W103: 0.001448943758 | X103: =$H103*Multipliers!M13 -> 0.0003566920455 | Y103: =$H103*Multipliers!N13 -> 0.0001773875403 | Z103: =$H103*Multipliers!O13 -> 0.0001232659226 | AA103: 0.0006573455085 | AB103: Administrative | AC103: =IF(ProjectData!$B$20="y",DefaultData!F116,ProjectData!B117) -> 21.53082126 | AD103: =AC103*40*52 -> 44784.10822 | AE103: =IF(ProjectData!$B$20="y",DefaultData!H116,ProjectData!D117) -> 0.3383
C104: Electrical Equipment | D104: =MMULT(TRANSPOSE(DemandOM),MarginsEEQ) -> 3154.950503 | E104: =H$90*Multipliers!D31*E$94 -> 1693.144951 | F104: =H$87*Multipliers!D31*F$94 -> 0 | G104: 4848.095454 | H104: 0.004600382548 | L104: =$H104*Multipliers!D14 -> 0.0120598902 | M104: =$H104*Multipliers!E14 -> 0.004474433872 | N104: =$H104*Multipliers!F14 -> 0.003928160665 | O104: 0.02046248474 | P104: =$H104*Multipliers!G14 -> 0.0009886685292 | Q104: =$H104*Multipliers!H14 -> 0.0003159022671 | R104: =$H104*Multipliers!I14 -> 0.0001947703238 | S104: 0.00149934112 | T104: =$H104*Multipliers!J14 -> 0.004600382548 | U104: =$H104*Multipliers!K14 -> 0.001002890978 | V104: =$H104*Multipliers!L14 -> 0.0007707779282 | W104: 0.006374051454 | X104: =$H104*Multipliers!M14 -> 0.001788799929 | Y104: =$H104*Multipliers!N14 -> 0.0005404244441 | Z104: =$H104*Multipliers!O14 -> 0.0004796590902 | AA104: 0.002808883463 | AB104: Management | AC104: =IF(ProjectData!$B$20="y",DefaultData!F117,ProjectData!B118) -> 51.31823486 | AD104: =AC104*40*52 -> 106741.9285 | AE104: =IF(ProjectData!$B$20="y",DefaultData!H117,ProjectData!D118) -> 0.3383
C105: TCPU | D105: =MMULT(TRANSPOSE(DemandOM),MarginsTCPU) -> 44438.80072 | E105: =H$90*Multipliers!D32*E$94 -> 15377.95505 | F105: =H$87*Multipliers!D32*F$94 -> 0 | G105: 59816.75577 | H105: 0.05676042519 | L105: =$H105*Multipliers!D15 -> 0.1740152259 | M105: =$H105*Multipliers!E15 -> 0.09291942871 | N105: =$H105*Multipliers!F15 -> 0.06476065111 | O105: 0.3316953057 | P105: =$H105*Multipliers!G15 -> 0.01549486717 | Q105: =$H105*Multipliers!H15 -> 0.00677464935 | R105: =$H105*Multipliers!I15 -> 0.003232161233 | S105: 0.02550167775 | T105: =$H105*Multipliers!J15 -> 0.05676042519 | U105: =$H105*Multipliers!K15 -> 0.02580815859 | V105: =$H105*Multipliers!L15 -> 0.01271561086 | W105: 0.09528419464 | X105: =$H105*Multipliers!M15 -> 0.03424629186 | Y105: =$H105*Multipliers!N15 -> 0.01253820172 | Z105: =$H105*Multipliers!O15 -> 0.007885939721 | AA105: 0.0546704333
C106: Wholesale Trade | D106: =MMULT(TRANSPOSE(DemandOM),MarginsWHO) -> 161977.475 | E106: =H$90*Multipliers!D33*E$94 -> 13037.4534 | F106: =H$87*Multipliers!D33*F$94 -> 0 | G106: 175014.9285 | H106: 0.1660725598 | L106: =$H106*Multipliers!D16 -> 0.7794033131 | M106: =$H106*Multipliers!E16 -> 0.254560456 | N106: =$H106*Multipliers!F16 -> 0.2491901287 | O106: 1.283153898 | P106: =$H106*Multipliers!G16 -> 0.06475913551 | Q106: =$H106*Multipliers!H16 -> 0.01735844687 | R106: =$H106*Multipliers!I16 -> 0.01245534924 | S106: 0.09457293163 | T106: =$H106*Multipliers!J16 -> 0.1660725598 | U106: =$H106*Multipliers!K16 -> 0.05832100117 | V106: =$H106*Multipliers!L16 -> 0.04887927423 | W106: 0.2732728352 | X106: =$H106*Multipliers!M16 -> 0.1047660467 | Y106: =$H106*Multipliers!N16 -> 0.03210427365 | Z106: =$H106*Multipliers!O16 -> 0.03036613187 | AA106: 0.1672364522
C107: Retail Trade | D107: =MMULT(TRANSPOSE(DemandOM),MarginsRET) -> 73918.94024 | E107: =H$90*Multipliers!D34*E$94 -> 41583.63512 | F107: =H$87*Multipliers!D34*F$94 -> 0 | G107: 115502.5754 | H107: 0.1096009839 | L107: =$H107*Multipliers!D17 -> 1.229414218 | M107: =$H107*Multipliers!E17 -> 0.1948012978 | N107: =$H107*Multipliers!F17 -> 0.1772951349 | O107: 1.601510651 | P107: =$H107*Multipliers!G17 -> 0.04517163787 | Q107: =$H107*Multipliers!H17 -> 0.01275618391 | R107: =$H107*Multipliers!I17 -> 0.008856891065 | S107: 0.06678471285 | T107: =$H107*Multipliers!J17 -> 0.1096009839 | U107: =$H107*Multipliers!K17 -> 0.04490582206 | V107: =$H107*Multipliers!L17 -> 0.03477234918 | W107: 0.1892791552 | X107: =$H107*Multipliers!M17 -> 0.06700989494 | Y107: =$H107*Multipliers!N17 -> 0.02551094968 | Z107: =$H107*Multipliers!O17 -> 0.0216089881 | AA107: 0.1141298327
C108: FIRE | D108: =MMULT(TRANSPOSE(DemandOM),MarginsFIRE) -> 38315.53618 | E108: =H$90*Multipliers!D35*E$94 -> 46979.57508 | F108: =H$87*Multipliers!D35*F$94 -> 0 | G108: 85295.11126 | H108: 0.08093696689 | L108: =($H108-(($H86+$H88)*$G39/10^6))*Multipliers!D18 -> 0.2216679082 | M108: =$H108*Multipliers!E18 -> 0.1829702842 | N108: =$H108*Multipliers!F18 -> 0.08706153461 | O108: 0.491699727 | P108: =($H108-(($H86+$H88)*$G39/10^6))*Multipliers!G18 -> 0.01768877522 | Q108: =$H108*Multipliers!H18 -> 0.01228797209 | R108: =$H108*Multipliers!I18 -> 0.004361147639 | S108: 0.03433789494 | T108: =$H108*Multipliers!J18 -> 0.08093696689 | U108: =$H108*Multipliers!K18 -> 0.03708452685 | V108: =$H108*Multipliers!L18 -> 0.01707884418 | W108: 0.1351003379 | X108: =$H108*Multipliers!M18 -> 0.04627895983 | Y108: =$H108*Multipliers!N18 -> 0.02024302653 | Z108: =$H108*Multipliers!O18 -> 0.01062238251 | AA108: 0.07714436886
C109: Misc. Services | D109: =MMULT(TRANSPOSE(DemandOM),MarginsOTH) -> 8717.119822 | E109: =H$90*Multipliers!D36*E$94 -> 134029.5783 | F109: =H$87*Multipliers!D36*F$94 -> 0 | G109: 142746.6981 | H109: 0.1354530712 | L109: =$H109*Multipliers!D19 -> 0.9213114387 | M109: =$H109*Multipliers!E19 -> 0.1978099827 | N109: =$H109*Multipliers!F19 -> 0.1692428626 | O109: 1.288364284 | P109: =$H109*Multipliers!G19 -> 0.04682954216 | Q109: =$H109*Multipliers!H19 -> 0.01158344257 | R109: =$H109*Multipliers!I19 -> 0.008476795616 | S109: 0.06688978035 | T109: =$H109*Multipliers!J19 -> 0.1354530712 | U109: =$H109*Multipliers!K19 -> 0.03538767272 | V109: =$H109*Multipliers!L19 -> 0.03319621577 | W109: 0.2040369597 | X109: =$H109*Multipliers!M19 -> 0.09648264684 | Y109: =$H109*Multipliers!N19 -> 0.01953801163 | Z109: =$H109*Multipliers!O19 -> 0.02061919778 | AA109: 0.1366398563
C110: Professional Services | D110: =MMULT(TRANSPOSE(DemandOM),MarginsPRO) -> 0 | E110: =H$90*Multipliers!D37*E$94 -> 2675.835371 | F110: =H$87*Multipliers!D37*F$94 -> 0 | G110: 2675.835371 | H110: 0.002539113856 | L110: =$H110*Multipliers!D20 -> 0.01273564736 | M110: =$H110*Multipliers!E20 -> 0.004420685773 | N110: =$H110*Multipliers!F20 -> 0.00397158389 | O110: 0.02112791702 | P110: =$H110*Multipliers!G20 -> 0.001060172583 | Q110: =$H110*Multipliers!H20 -> 0.0002721807067 | R110: =$H110*Multipliers!I20 -> 0.0001983433801 | S110: 0.00153069667 | T110: =$H110*Multipliers!J20 -> 0.002539113856 | U110: =$H110*Multipliers!K20 -> 0.0008540710855 | V110: =$H110*Multipliers!L20 -> 0.000778940996 | W110: 0.004172125938 | X110: =$H110*Multipliers!M20 -> 0.001593123411 | Y110: =$H110*Multipliers!N20 -> 0.0004907243639 | Z110: =$H110*Multipliers!O20 -> 0.0004848248268 | AA110: 0.002568672602
C111: Government | D111: =MMULT(TRANSPOSE(DemandOM),MarginsGOV) -> 717768.4997 | E111: =H$90*Multipliers!D38*E$94 -> 5636.645354 | F111: =H$87*Multipliers!D38*F$94 -> 0 | G111: 723405.1451 | H111: 0.6864428384 | L111: =$H111*Multipliers!D21 -> 2.480634528 | M111: =$H111*Multipliers!E21 -> 1.954595656 | N111: =$H111*Multipliers!F21 -> 1.013549832 | O111: 5.448780016 | P111: =$H111*Multipliers!G21 -> 0.2336821693 | Q111: =$H111*Multipliers!H21 -> 0.1266456471 | R111: =$H111*Multipliers!I21 -> 0.05038296248 | S111: 0.4107107788 | T111: =$H111*Multipliers!J21 -> 0.6864428384 | U111: =$H111*Multipliers!K21 -> 0.3492525834 | V111: =$H111*Multipliers!L21 -> 0.1987771527 | W111: 1.234472575 | X111: =$H111*Multipliers!M21 -> 0.3543020526 | Y111: =$H111*Multipliers!N21 -> 0.218165975 | Z111: =$H111*Multipliers!O21 -> 0.1234407997 | AA111: 0.6959088273
C112: Total | D112: =SUM(D98:D111) -> 1058598.566 | E112: =SUM(E98:E111) -> 330000 | F112: =SUM(F98:F111) -> 0 | G112: =SUM(G98:G111) -> 1388598.566 | H112: =SUM(H98:H111) -> 1.317648274 | K112: Total | L112: =SUM(L98:L111) -> 5.942357667 | M112: =SUM(M98:M111) -> 3.050866772 | N112: 1.82472044 | O112: 10.81794488 | P112: 0.4343686188 | Q112: 0.1989447078 | R112: 0.09093512928 | S112: 0.724248456 | T112: 1.317648274 | U112: 0.6123158989 | V112: 0.3579374422 | W112: 2.287901616 | X112: 0.7315720305 | Y112: 0.3553024736 | Z112: 0.2223185952 | AA112: 1.309193099
C114: Plant Employees | E114: Earnings - Gross | G114: =K69 -> 560988.8167 | H114: =G114*G32/10^6 -> 0
C115: Plant Employees | E115: Employee - (SSI, Medicare, etc.) | F115: =DefaultData!N106 -> 0.27 | G115: =F115*G$114 -> 151466.9805 | H115: 0 | P115: Inflate to | Q115: =D39 -> 2020 | R115: Dollars
C116: Field Salaries/Technicians | D116: =IF(ProjectData!$B$20="y",DefaultData!I115,DefaultData!J115) -> 4 | E116: Other benefits | F116: =DefaultData!N107 -> 0.0683 | G116: =F116*G$114 -> 38315.53618 | H116: =IF(ProjectData!B9="MyCounty",0,IF(ProjectData!B9="MyRegion",0,1)) -> 1 | J116: Without Plant Employees | L116: =L112 -> 5.942357667 | M116: =M112 -> 3.050866772 | N116: =N112 -> 1.82472044 | O116: =O112 -> 10.81794488 | P116: =P112*$G60 -> 0.4577576983 | Q116: =Q112*$G60 -> 0.2096571152 | R116: 0.09583163624 | S116: =P116+Q116+R116 -> 0.7632464497 | T116: 1.388598566 | U116: 0.645286755 | V116: 0.3772109968 | W116: 2.411096318 | X116: 0.7709643706 | Y116: 0.3744341453 | Z116: 0.2342895965 | AA116: 1.379688112
C117: Administrative/Secretarial | D117: =IF(ProjectData!$B$20="y",DefaultData!I116,DefaultData!J116) -> 1 | E117: Earnings (minus taxes, benefits, etc) | G117: =G114-G115-G116 -> 371206.3 | J117: With Plant Employees | L117: =L116+L137 -> 11.94235767 | M117: =M116+M137 -> 3.766783189 | N117: =N116+N137 -> 2.277296459 | O117: =O116+O137 -> 17.98643732 | P117: =(P112+P137)*$G60 -> 0.8672795345 | Q117: =(Q112+Q137)*$G60 -> 0.2583252994 | R117: 0.1196859027 | S117: 1.245290737 | T117: 1.798120402 | U117: 0.8245701601 | V117: 0.4708070081 | W117: 3.093497571 | X117: 1.180486207 | Y117: 0.4662308996 | Z117: 0.292441317 | AA117: 1.939158423
C118: Site Management | D118: =IF(ProjectData!$B$20="y",DefaultData!I117,DefaultData!J117) -> 1
C119: Total | D119: =SUM(D116:D118) -> 6
L120: Plant Employees Only
C121: Plant Employee Spending | F121: PCE | H121: Adj Demand - Million | L121: Jobs | P121: Earnings | T121: Output | X121: Value Added
F122: Plant Emp | H122: =H97 -> 2017 | I122: Dollars | L122: Direct | M122: Indirect | N122: Induced | O122: Total | P122: Direct | Q122: Indirect | R122: Induced | S122: Total | T122: Direct | U122: Indirect | V122: Induced | W122: Total | X122: Direct | Y122: Indirect | Z122: Induced | AA122: Total
C123: Agriculture | F123: =G$117*Multipliers!D25 -> 4761.37093 | H123: =F123*G$39/10^6 -> 0.004518089203 | M123: =$H123*Multipliers!E8 -> 0.008923418628 | N123: =$H123*Multipliers!F8 -> 0.002331059053 | O123: =M123+N123 -> 0.01125447768 | Q123: =$H123*Multipliers!H8 -> 0.0005365681653 | R123: =$H123*Multipliers!I8 -> 0.0001182548762 | S123: =Q123+R123 -> 0.0006548230416 | T123: =$H123*Multipliers!J8 -> 0.004518089203 | U123: =$H123*Multipliers!K8 -> 0.002654465577 | V123: =$H123*Multipliers!L8 -> 0.0004610538139 | W123: =T123+U123+V123 -> 0.007633608595 | Y123: =$H123*Multipliers!N8 -> 0.001173142618 | Z123: =$H123*Multipliers!O8 -> 0.0002851841676 | AA123: =Y123+Z123 -> 0.001458326785
C124: Mining | F124: =G$117*Multipliers!D26 -> 1186.193949 | H124: =F124*G$39/10^6 -> 0.001125585499 | M124: =$H124*Multipliers!E9 -> 0.001869580274 | N124: =$H124*Multipliers!F9 -> 0.0009063644335 | O124: =M124+N124 -> 0.002775944708 | Q124: =$H124*Multipliers!H9 -> 0.0001544527295 | R124: =$H124*Multipliers!I9 -> 4.529173759e-05 | S124: =Q124+R124 -> 0.000199744467 | T124: =$H124*Multipliers!J9 -> 0.001125585499 | U124: =$H124*Multipliers!K9 -> 0.000469975134 | V124: =$H124*Multipliers!L9 -> 0.0001785500549 | W124: =T124+U124+V124 -> 0.001774110688 | Y124: =$H124*Multipliers!N9 -> 0.0002629720318 | Z124: =$H124*Multipliers!O9 -> 0.0001104615283 | AA124: =Y124+Z124 -> 0.0003734335601
C125: Construction | F125: =G$117*Multipliers!D27 -> 202.9384273 | H125: 0.0001925693106 | M125: =$H125*Multipliers!E10 -> 0.0004003424751 | N125: =$H125*Multipliers!F10 -> 0.0002611884235 | O125: 0.0006615308986 | Q125: =$H125*Multipliers!H10 -> 3.101204008e-05 | R125: =$H125*Multipliers!I10 -> 1.301300586e-05 | S125: 4.402504594e-05 | T125: =$H125*Multipliers!J10 -> 0.0001925693106 | U125: =$H125*Multipliers!K10 -> 9.577931767e-05 | V125: =$H125*Multipliers!L10 -> 5.127818995e-05 | W125: 0.0003396268182 | Y125: =$H125*Multipliers!N10 -> 5.220437321e-05 | Z125: =$H125*Multipliers!O10 -> 3.18634363e-05 | AA125: 8.406780952e-05
C126: Manufacturing | F126: =G$117*Multipliers!D28 -> 70289.27858 | H126: 0.06669785559 | M126: =$H126*Multipliers!E11 -> 0.1475967195 | N126: =$H126*Multipliers!F11 -> 0.04974417904 | O126: 0.1973408985 | Q126: =$H126*Multipliers!H11 -> 0.009841221132 | R126: =$H126*Multipliers!I11 -> 0.002476675405 | S126: 0.01231789654 | T126: =$H126*Multipliers!J11 -> 0.06669785559 | U126: =$H126*Multipliers!K11 -> 0.05452190855 | V126: =$H126*Multipliers!L11 -> 0.009790318863 | W126: 0.131010083 | Y126: =$H126*Multipliers!N11 -> 0.0238077733 | Z126: =$H126*Multipliers!O11 -> 0.006080679327 | AA126: 0.02988845262
C127: Fabricated Metals | F127: =G$117*Multipliers!D29 -> 85.32855203 | H127: 8.0968699e-05 | M127: =$H127*Multipliers!E12 -> 0.0001284404465 | N127: =$H127*Multipliers!F12 -> 9.220339881e-05 | O127: 0.0002206438454 | Q127: =$H127*Multipliers!H12 -> 9.745166166e-06 | R127: =$H127*Multipliers!I12 -> 4.617666275e-06 | S127: 1.436283244e-05 | T127: =$H127*Multipliers!J12 -> 8.0968699e-05 | U127: =$H127*Multipliers!K12 -> 3.21118891e-05 | V127: =$H127*Multipliers!L12 -> 1.811231131e-05 | W127: 0.0001311928994 | Y127: =$H127*Multipliers!N12 -> 1.603670327e-05 | Z127: =$H127*Multipliers!O12 -> 1.124353574e-05 | AA127: 2.728023901e-05
C128: Machinery | F128: =G$117*Multipliers!D30 -> 1075.203647 | H128: 0.001020266234 | M128: =$H128*Multipliers!E13 -> 0.001567383663 | N128: =$H128*Multipliers!F13 -> 0.001137897261 | O128: 0.002705280924 | Q128: =$H128*Multipliers!H13 -> 0.0001213001541 | R128: =$H128*Multipliers!I13 -> 5.704643876e-05 | S128: 0.0001783465929 | T128: =$H128*Multipliers!J13 -> 0.001020266234 | U128: =$H128*Multipliers!K13 -> 0.0003859809642 | V128: =$H128*Multipliers!L13 -> 0.0002236226542 | W128: 0.001629869852 | Y128: =$H128*Multipliers!N13 -> 0.0001995374924 | Z128: =$H128*Multipliers!O13 -> 0.0001386578396 | AA128: 0.000338195332
C129: Electrical Equipment | F129: =G$117*Multipliers!D31 -> 1904.563857 | H129: 0.001807250375 | M129: =$H129*Multipliers!E14 -> 0.001757771709 | N129: =$H129*Multipliers!F14 -> 0.001543169456 | O129: 0.003300941165 | Q129: =$H129*Multipliers!H14 -> 0.0001241015252 | R129: =$H129*Multipliers!I14 -> 7.651510219e-05 | S129: 0.0002006166274 | T129: =$H129*Multipliers!J14 -> 0.001807250375 | U129: =$H129*Multipliers!K14 -> 0.0003939835604 | V129: =$H129*Multipliers!L14 -> 0.0003027984489 | W129: 0.002504032384 | Y129: =$H129*Multipliers!N14 -> 0.0002123045788 | Z129: =$H129*Multipliers!O14 -> 0.0001884330404 | AA129: 0.0004007376193
C130: TCPU | F130: =G$117*Multipliers!D32 -> 17298.16302 | H130: 0.01641431528 | M130: =$H130*Multipliers!E15 -> 0.02687098966 | N130: =$H130*Multipliers!F15 -> 0.0187278679 | O130: 0.04559885755 | Q130: =$H130*Multipliers!H15 -> 0.001959133145 | R130: =$H130*Multipliers!I15 -> 0.0009346954913 | S130: 0.002893828636 | T130: =$H130*Multipliers!J15 -> 0.01641431528 | U130: =$H130*Multipliers!K15 -> 0.007463355858 | V130: =$H130*Multipliers!L15 -> 0.003677175513 | W130: 0.02755484665 | Y130: =$H130*Multipliers!N15 -> 0.003625871289 | Z130: =$H130*Multipliers!O15 -> 0.002280502664 | AA130: 0.005906373953
C131: Wholesale Trade | F131: =G$117*Multipliers!D33 -> 14665.4086 | H131: 0.01391608116 | M131: =$H131*Multipliers!E16 -> 0.02133094093 | N131: =$H131*Multipliers!F16 -> 0.02088093336 | O131: 0.0422118743 | Q131: =$H131*Multipliers!H16 -> 0.001454554296 | R131: =$H131*Multipliers!I16 -> 0.001043698315 | S131: 0.002498252612 | T131: =$H131*Multipliers!J16 -> 0.01391608116 | U131: =$H131*Multipliers!K16 -> 0.004887019181 | V131: =$H131*Multipliers!L16 -> 0.00409584791 | W131: 0.02289894825 | Y131: =$H131*Multipliers!N16 -> 0.002690183604 | Z131: =$H131*Multipliers!O16 -> 0.002544535689 | AA131: 0.005234719294
C132: Retail Trade | F132: =G$117*Multipliers!D34 -> 46776.08283 | H132: 0.044386064 | M132: =$H132*Multipliers!E17 -> 0.07889037635 | N132: =$H132*Multipliers!F17 -> 0.07180075325 | O132: 0.1506911296 | Q132: =$H132*Multipliers!H17 -> 0.00516598278 | R132: =$H132*Multipliers!I17 -> 0.003586852231 | S132: 0.008752835011 | T132: =$H132*Multipliers!J17 -> 0.044386064 | U132: =$H132*Multipliers!K17 -> 0.01818590145 | V132: =$H132*Multipliers!L17 -> 0.01408206077 | W132: 0.07665402621 | Y132: =$H132*Multipliers!N17 -> 0.01033139124 | Z132: =$H132*Multipliers!O17 -> 0.008751179914 | AA132: 0.01908257115
C133: FIRE | F133: =G$117*Multipliers!D35+(G116*H116) -> 91161.33692 | H133: 0.08650345839 | M133: =$H133*Multipliers!E18 -> 0.1955541821 | N133: =$H133*Multipliers!F18 -> 0.09304924716 | O133: 0.2886034293 | Q133: =$H133*Multipliers!H18 -> 0.0131330852 | R133: =$H133*Multipliers!I18 -> 0.004661088348 | S133: 0.01779417355 | T133: =$H133*Multipliers!J18 -> 0.08650345839 | U133: =$H133*Multipliers!K18 -> 0.03963503883 | V133: =$H133*Multipliers!L18 -> 0.01825345257 | W133: 0.1443919498 | Y133: =$H133*Multipliers!N18 -> 0.02163525358 | Z133: =$H133*Multipliers!O18 -> 0.01135294363 | AA133: 0.03298819722
C134: Misc. Services | F134: =G$117*Multipliers!D36 -> 150765.5268 | H134: 0.1430621788 | M134: =$H134*Multipliers!E19 -> 0.2089220041 | N134: =$H134*Multipliers!F19 -> 0.1787501195 | O134: 0.3876721236 | Q134: =$H134*Multipliers!H19 -> 0.01223414513 | R134: =$H134*Multipliers!I19 -> 0.008952981566 | S134: 0.0211871267 | T134: =$H134*Multipliers!J19 -> 0.1430621788 | U134: =$H134*Multipliers!K19 -> 0.03737558341 | V134: =$H134*Multipliers!L19 -> 0.03506102086 | W134: 0.215498783 | Y134: =$H134*Multipliers!N19 -> 0.02063556394 | Z134: =$H134*Multipliers!O19 -> 0.02177748597 | AA134: 0.04241304992
C135: Professional Services | F135: =G$117*Multipliers!D37 -> 3009.960448 | H135: 0.002856166848 | M135: =$H135*Multipliers!E20 -> 0.004972686089 | N135: =$H135*Multipliers!F20 -> 0.004467505943 | O135: 0.009440192032 | Q135: =$H135*Multipliers!H20 -> 0.0003061672518 | R135: =$H135*Multipliers!I20 -> 0.0002231100372 | S135: 0.0005292772889 | T135: =$H135*Multipliers!J20 -> 0.002856166848 | U135: =$H135*Multipliers!K20 -> 0.0009607168715 | V135: =$H135*Multipliers!L20 -> 0.0008762054698 | W135: 0.004693089189 | Y135: =$H135*Multipliers!N20 -> 0.0005519999256 | Z135: =$H135*Multipliers!O20 -> 0.0005453637276 | AA135: 0.001097363653
C136: Government | F136: =G$117*Multipliers!D38 -> 6340.479595 | H136: 0.006016513484 | M136: =$H136*Multipliers!E21 -> 0.01713158105 | N136: =$H136*Multipliers!F21 -> 0.008883530993 | O136: 0.02601511204 | Q136: =$H136*Multipliers!H21 -> 0.001110019947 | R136: =$H136*Multipliers!I21 -> 0.0004415950698 | S136: 0.001551615017 | T136: =$H136*Multipliers!J21 -> 0.006016513484 | U136: =$H136*Multipliers!K21 -> 0.003061118508 | V136: =$H136*Multipliers!L21 -> 0.001742235992 | W136: 0.01081986798 | Y136: =$H136*Multipliers!N21 -> 0.001912174557 | Z136: =$H136*Multipliers!O21 -> 0.001081930197 | AA136: 0.002994104755
C137: Total | F137: =SUM(F123:F136) -> 409521.8362 | H137: =SUM(H123:H136) -> 0.3885973628 | L137: =IF(L139=0,0,D119) -> 6 | M137: =SUM(M123:M136) -> 0.715916417 | N137: =SUM(N123:N136) -> 0.4525760192 | O137: =L137+M137+N137 -> 7.168492436 | P137: =H137 -> 0.3885973628 | Q137: =SUM(Q123:Q136) -> 0.04618148866 | R137: =SUM(R123:R136) -> 0.02263543529 | S137: =R137+Q137+P137 -> 0.4574142868 | T137: =SUM(T123:T136) -> 0.3885973628 | U137: =SUM(U123:U136) -> 0.1701229391 | V137: =SUM(V123:V136) -> 0.08881373342 | W137: =T137+U137+V137 -> 0.6475340353 | X137: =P137 -> 0.3885973628 | Y137: =SUM(Y123:Y136) -> 0.08710640923 | Z137: =SUM(Z123:Z136) -> 0.05518046468 | AA137: =X137+Y137+Z137 -> 0.5308842367
P138: Inflate to | Q138: =Q115 -> 2020 | R138: Dollars
D139: Annual O&M Costs Local Demand | E139: Construction Costs Local Demand | L139: =SUM(M144:M157) -> 3.766783189 | P139: =P137*$G60 -> 0.4095218362 | Q139: 0.04866818421 | R139: 0.02385426642 | S139: 0.4820442868 | T139: 0.4095218362 | U139: 0.179283405 | V139: 0.09359601137 | W139: 0.6824012526 | X139: 0.4095218362 | Y139: 0.09179675434 | Z139: 0.05815172047 | AA139: 0.559470311
D140: Demand | E140: Demand
C141: Agriculture | D141: 0 | E141: 0 | L141: With Plant Employees
C142: Mining | D142: 0 | E142: 0 | L142: Jobs | P142: Earnings | T142: Output | X142: Value Added
C143: Construction | D143: 0 | E143: =+G7+G13+G14+G15+G16+G10+H29 -> 27188497.81 | L143: Direct | M143: Indirect | N143: Induced | O143: Total | P143: Direct | Q143: Indirect | R143: Induced | S143: Total | T143: Direct | U143: Indirect | V143: Induced | W143: Total | X143: Direct | Y143: Indirect | Z143: Induced | AA143: Total
C144: Manufacturing | D144: =0.75*G81 -> 18458.1346 | E144: =G9+G22+(I28) -> 3937930.437 | J144: Agriculture | L144: =L98+L123 -> 0.009214182303 | M144: 0.01685628008 | N144: 0.004403355476 | O144: =L144+M144+N144 -> 0.03047381786 | P144: =P98+P123 -> 0.000293526155 | Q144: 0.001013573794 | R144: 0.0002233826964 | S144: =P144+Q144+R144 -> 0.001530482646 | T144: =T98+T123 -> 0.008534641285 | U144: 0.005014268308 | V144: 0.0008709276726 | W144: =T144+U144+V144 -> 0.01441983727 | X144: =X98+X123 -> 0.001856092822 | Y144: 0.002216058818 | Z144: 0.0005387110482 | AA144: =X144+Y144+Z144 -> 0.004610862688
C145: Fabricated Metals | D145: 0 | E145: =G23 -> 0 | J145: Mining | L145: 0.000714399821 | M145: 0.003531625047 | N145: 0.001712116553 | O145: =L145+M145+N145 -> 0.005958141421 | P145: 0.000133332044 | Q145: 0.000291760207 | R145: 8.555579938e-05 | S145: =P145+Q145+R145 -> 0.0005106480504 | T145: 0.002126223727 | U145: 0.0008877799887 | V145: 0.000337279899 | W145: =T145+U145+V145 -> 0.003351283615 | X145: 0.000542000457 | Y145: 0.0004967524674 | Z145: 0.0002086611125 | AA145: =X145+Y145+Z145 -> 0.001247414037
C146: Machinery | D146: 0 | E146: =G21 -> 0 | J146: Construction | L146: 0.0005968777883 | M146: 0.0007562443463 | N146: 0.0004933832429 | O146: 0.001846505377 | P146: 5.042829748e-05 | Q146: 5.858154314e-05 | R146: 2.458148391e-05 | S146: 0.0001335913245 | T146: 0.0003637621823 | U146: 0.0001809265116 | V146: 9.686416919e-05 | W146: 0.0006415528631 | X146: 7.022994133e-05 | Y146: 9.861372338e-05 | Z146: 6.01898251e-05 | AA146: 0.0002290334898
C147: Electrical Equipment | D147: =0.25*G81 -> 6152.711532 | E147: =G8 -> 0 | J147: Manufacturing | L147: 0.09784094815 | M147: 0.300452882 | N147: 0.1012609359 | O147: 0.499554766 | P147: 0.007972070293 | Q147: 0.02003312311 | R147: 0.005041604351 | S147: 0.03304679775 | T147: 0.1357724142 | U147: 0.110986644 | V147: 0.01992950472 | W147: 0.2666885629 | X147: 0.02225338439 | Y147: 0.04846390981 | Z147: 0.01237803682 | AA147: 0.08309533101
C148: TCPU | D148: =G77 -> 43206.07693 | E148: =G24 -> 0 | J148: Fabricated Metals | L148: 0.0002160287785 | M148: 0.0002426231728 | N148: 0.000174171624 | O148: 0.0006328235754 | P148: 1.874365677e-05 | Q148: 1.840855586e-05 | R148: 8.722741729e-06 | S148: 4.587495436e-05 | T148: 0.0001529493488 | U148: 6.065915083e-05 | V148: 3.421403893e-05 | W148: 0.0002478225385 | X148: 2.58147585e-05 | Y148: 3.029322875e-05 | Z148: 2.12389663e-05 | AA148: 7.734695356e-05
C149: Wholesale Trade | D149: 0 | E149: 0 | J149: Machinery | L149: 0.002533059973 | M149: 0.002960777603 | N149: 0.002149480566 | O149: 0.007643318142 | P149: 0.0002255500366 | Q149: 0.0002291352066 | R149: 0.0001077603539 | S149: 0.000562445597 | T149: 0.001927276318 | U149: 0.0007291155451 | V149: 0.0004224217476 | W149: 0.00307881361 | X149: 0.0003566920455 | Y149: 0.0003769250328 | Z149: 0.0002619237622 | AA149: 0.0009955408405
C150: Retail Trade | D150: =G74+G79+G80 -> 217415.1948 | E150: =G17*0.5 -> 1919000 | J150: Electrical Equipment | L150: 0.0120598902 | M150: 0.006232205581 | N150: 0.005471330121 | O150: 0.0237634259 | P150: 0.0009886685292 | Q150: 0.0004400037923 | R150: 0.000271285426 | S150: 0.001699957747 | T150: 0.006407632923 | U150: 0.001396874538 | V150: 0.001073576377 | W150: 0.008878083838 | X150: 0.001788799929 | Y150: 0.000752729023 | Z150: 0.0006680921306 | AA150: 0.003209621082
C151: FIRE | D151: =J90+G78+H86+H88+IF(E1="MYCOUNTY",0,(D66*E66*DefaultData!N107)+(D67*E67*DefaultData!N107)+(D68*E68*DefaultData!N107)) -> 38315.53618 | E151: =G32 -> 0 | J151: TCPU | L151: 0.1740152259 | M151: 0.1197904184 | N151: 0.083488519 | O151: 0.3772941633 | P151: 0.01549486717 | Q151: 0.008733782495 | R151: 0.004166856725 | S151: 0.02839550639 | T151: 0.07317474046 | U151: 0.03327151445 | V151: 0.01639278638 | W151: 0.1228390413 | X151: 0.03424629186 | Y151: 0.01616407301 | Z151: 0.01016644238 | AA151: 0.06057680726
C152: Misc. Services | D152: =G75 -> 17282.43077 | E152: =G17*0.5 -> 1919000 | J152: Wholesale Trade | L152: 0.7794033131 | M152: 0.2758913969 | N152: 0.2700710621 | O152: 1.325365772 | P152: 0.06475913551 | Q152: 0.01881300117 | R152: 0.01349904756 | S152: 0.09707118424 | T152: 0.179988641 | U152: 0.06320802035 | V152: 0.05297512214 | W152: 0.2961717835 | X152: 0.1047660467 | Y152: 0.03479445725 | Z152: 0.03291066756 | AA152: 0.1724711715
C153: Professional Services | D153: 0 | E153: =G30+G31+J29 -> 1113161.129 | J153: Retail Trade | L153: 1.229414218 | M153: 0.2736916741 | N153: 0.2490958881 | O153: 1.75220178 | P153: 0.04517163787 | Q153: 0.01792216669 | R153: 0.0124437433 | S153: 0.07553754786 | T153: 0.1539870479 | U153: 0.06309172351 | V153: 0.04885440995 | W153: 0.2659331814 | X153: 0.06700989494 | Y153: 0.03584234092 | Z153: 0.03036016802 | AA153: 0.1332124039
C154: Government | D154: =G76+G83+G84+G89+IF(E1="MYCOUNTY",0,(D66*E66*DefaultData!N106)+(D67*E67*DefaultData!N106)+(D68*E68*DefaultData!N106)) -> 717768.4997 | E154: =G33+G36 -> 518576.8094 | J154: FIRE | L154: 0.2216679082 | M154: 0.3785244664 | N154: 0.1801107818 | O154: 0.7803031563 | P154: 0.01768877522 | Q154: 0.02542105729 | R154: 0.009022235988 | S154: 0.05213206849 | T154: 0.1674404253 | U154: 0.07671956568 | V154: 0.03533229675 | W154: 0.2794922877 | X154: 0.04627895983 | Y154: 0.04187828011 | Z154: 0.02197532614 | AA154: 0.1101325661
C155: Total | D155: =SUM(D141:D154) -> 1058598.585 | E155: =SUM(E141:E154) -> 36596166.19 | J155: Misc. Services | L155: 0.9213114387 | M155: 0.4067319868 | N155: 0.3479929822 | O155: 1.676036408 | P155: 0.04682954216 | Q155: 0.0238175877 | R155: 0.01742977718 | S155: 0.08807690705 | T155: 0.27851525 | U155: 0.07276325613 | V155: 0.06825723663 | W155: 0.4195357427 | X155: 0.09648264684 | Y155: 0.04017357557 | Z155: 0.04239668376 | AA155: 0.1790529062
J156: Professional Services | L156: 0.01273564736 | M156: 0.009393371863 | N156: 0.008439089833 | O156: 0.03056810905 | P156: 0.001060172583 | Q156: 0.0005783479585 | R156: 0.0004214534173 | S156: 0.002059973959 | T156: 0.005395280704 | U156: 0.001814787957 | V156: 0.001655146466 | W156: 0.008865215127 | X156: 0.001593123411 | Y156: 0.001042724289 | Z156: 0.001030188554 | AA156: 0.003666036255
J157: Government | L157: 2.480634528 | M157: 1.971727237 | N157: 1.022433363 | O157: 5.474795128 | P157: 0.2336821693 | Q157: 0.127755667 | R157: 0.05082455755 | S157: 0.4122623939 | T157: 0.6924593519 | U157: 0.3523137019 | V157: 0.2005193887 | W157: 1.245292442 | X157: 0.3543020526 | Y157: 0.2200781496 | Z157: 0.1245227298 | AA157: 0.698902932
J158: Plant Employees | L158: =L137 -> 6 | O158: 6 | P158: =P137 -> 0.3885973628 | S158: 0.3885973628 | W158: 0 | X158: =X137 -> 0.3885973628 | AA158: 0.3885973628
J159: Total | L159: =SUM(L144:L158) -> 11.94235767 | M159: =SUM(M144:M157) -> 3.766783189 | N159: =SUM(N144:N157) -> 2.277296459 | O159: =SUM(O144:O158) -> 17.98643732 | P159: 0.8229659817 | Q159: 0.2451261965 | R159: 0.1135705646 | S159: 1.181662743 | T159: 1.706245637 | U159: 0.782438838 | V159: 0.4467511756 | W159: 2.935435651 | X159: 1.120169393 | Y159: 0.4424088828 | Z159: 0.2774990599 | AA159: 1.840077336
J160: Inflate to | K160: =Q138 -> 2020 | L160: Dollars | P160: =P159*$G60 -> 0.8672795345 | Q160: 0.2583252994 | R160: 0.1196859027 | S160: 1.245290737 | T160: 1.798120402 | U160: 0.8245701601 | V160: 0.4708070081 | W160: 3.093497571 | X160: 1.180486207 | Y160: 0.4662308996 | Z160: 0.292441317 | AA160: 1.939158423
C162: Default | H162: Default | M162: Default
C163: From DefaultData | H163: From DefaultData | M163: From DefaultData
C164: Debt - Loan Repayment Schedule | H164: Equity - Individual Investment Repayment Schedule | M164: Equity - Corporate Investment Repayment Schedule
C165: Year | D165: Interest Pmt | E165: Principal Pmt | F165: Total Pmt | H165: Year | I165: Interest Pmt | J165: Principal Pmt | K165: Total Pmt | M165: Year | N165: Interest Pmt | O165: Principal Pmt | P165: Total Pmt
C166: 1 | D166: =IF(C166<=DefaultData!D$85,-IPMT(DefaultData!D$86,C166,DefaultData!D$85,DefaultData!D$48*DefaultData!D$84),0) -> 10505302.23 | E166: =IF(C166<=DefaultData!D$85,-PPMT(DefaultData!D$86,C166,DefaultData!D$85,DefaultData!D$84*DefaultData!D$48),0) -> 4162749.501 | F166: =D166+E166 -> 14668051.73 | H166: 1 | I166: =IF(H166<=DefaultData!$D$93,-IPMT(DefaultData!$D$92,H166,DefaultData!$D$93,DefaultData!$D$48*DefaultData!$D$89*DefaultData!$D$90),0) -> 0 | J166: =IF(H166<=DefaultData!$D$93,-PPMT(DefaultData!$D$92,H166,DefaultData!$D$93,DefaultData!$D$89*DefaultData!$D$48*DefaultData!$D$90),0) -> 0 | K166: =I166+J166 -> 0 | M166: 1 | N166: =IF(M166<=DefaultData!$D$93,-IPMT(DefaultData!$D$92,M166,DefaultData!$D$93,DefaultData!$D$48*DefaultData!$D$89*DefaultData!$D$91),0) -> 4040500.857 | O166: =IF(M166<=DefaultData!$D$93,-PPMT(DefaultData!$D$92,M166,DefaultData!$D$93,DefaultData!$D$89*DefaultData!$D$48*DefaultData!$D$91),0) -> 705456.2886 | P166: =N166+O166 -> 4745957.146
C167: 2 | D167: =IF(C167<=DefaultData!D$85,-IPMT(DefaultData!D$86,C167,DefaultData!D$85,DefaultData!D$48*DefaultData!D$84),0) -> 10234723.51 | E167: =IF(C167<=DefaultData!D$85,-PPMT(DefaultData!D$86,C167,DefaultData!D$85,DefaultData!D$84*DefaultData!D$48),0) -> 4433328.219 | F167: =D167+E167 -> 14668051.73 | H167: 2 | I167: =IF(H167<=DefaultData!$D$93,-IPMT(DefaultData!$D$92,H167,DefaultData!$D$93,DefaultData!$D$48*DefaultData!$D$89*DefaultData!$D$90),0) -> 0 | J167: =IF(H167<=DefaultData!$D$93,-PPMT(DefaultData!$D$92,H167,DefaultData!$D$93,DefaultData!$D$89*DefaultData!$D$48*DefaultData!$D$90),0) -> 0 | K167: =I167+J167 -> 0 | M167: 2 | N167: =IF(M167<=DefaultData!$D$93,-IPMT(DefaultData!$D$92,M167,DefaultData!$D$93,DefaultData!$D$48*DefaultData!$D$89*DefaultData!$D$91),0) -> 3969955.228 | O167: =IF(M167<=DefaultData!$D$93,-PPMT(DefaultData!$D$92,M167,DefaultData!$D$93,DefaultData!$D$89*DefaultData!$D$46*DefaultData!$D$91),0) -> 776001.9175 | P167: =N167+O167 -> 4745957.146
C168: 3 | D168: =IF(C168<=DefaultData!D$85,-IPMT(DefaultData!D$86,C168,DefaultData!D$85,DefaultData!D$48*DefaultData!D$84),0) -> 9946557.177 | E168: =IF(C168<=DefaultData!D$85,-PPMT(DefaultData!D$86,C168,DefaultData!D$85,DefaultData!D$84*DefaultData!D$48),0) -> 4721494.553 | F168: 14668051.73 | H168: 3 | I168: =IF(H168<=DefaultData!$D$93,-IPMT(DefaultData!$D$92,H168,DefaultData!$D$93,DefaultData!$D$48*DefaultData!$D$89*DefaultData!$D$90),0) -> 0 | J168: =IF(H168<=DefaultData!$D$93,-PPMT(DefaultData!$D$92,H168,DefaultData!$D$93,DefaultData!$D$89*DefaultData!$D$48*DefaultData!$D$90),0) -> 0 | K168: 0 | M168: 3 | N168: =IF(M168<=DefaultData!$D$93,-IPMT(DefaultData!$D$92,M168,DefaultData!$D$93,DefaultData!$D$48*DefaultData!$D$89*DefaultData!$D$91),0) -> 3892355.037 | O168: =IF(M168<=DefaultData!$D$93,-PPMT(DefaultData!$D$92,M168,DefaultData!$D$93,DefaultData!$D$89*DefaultData!$D$46*DefaultData!$D$91),0) -> 853602.1092 | P168: 4745957.146
C169: 4 | D169: =IF(C169<=DefaultData!D$85,-IPMT(DefaultData!D$86,C169,DefaultData!D$85,DefaultData!D$48*DefaultData!D$84),0) -> 9639660.031 | E169: =IF(C169<=DefaultData!D$85,-PPMT(DefaultData!D$86,C169,DefaultData!D$85,DefaultData!D$84*DefaultData!D$48),0) -> 5028391.699 | F169: 14668051.73 | H169: 4 | I169: =IF(H169<=DefaultData!$D$93,-IPMT(DefaultData!$D$92,H169,DefaultData!$D$93,DefaultData!$D$48*DefaultData!$D$89*DefaultData!$D$90),0) -> 0 | J169: =IF(H169<=DefaultData!$D$93,-PPMT(DefaultData!$D$92,H169,DefaultData!$D$93,DefaultData!$D$89*DefaultData!$D$48*DefaultData!$D$90),0) -> 0 | K169: 0 | M169: 4 | N169: =IF(M169<=DefaultData!$D$93,-IPMT(DefaultData!$D$92,M169,DefaultData!$D$93,DefaultData!$D$48*DefaultData!$D$89*DefaultData!$D$91),0) -> 3806994.826 | O169: =IF(M169<=DefaultData!$D$93,-PPMT(DefaultData!$D$92,M169,DefaultData!$D$93,DefaultData!$D$89*DefaultData!$D$46*DefaultData!$D$91),0) -> 938962.3201 | P169: 4745957.146
C170: 5 | D170: =IF(C170<=DefaultData!D$85,-IPMT(DefaultData!D$86,C170,DefaultData!D$85,DefaultData!D$48*DefaultData!D$84),0) -> 9312814.571 | E170: =IF(C170<=DefaultData!D$85,-PPMT(DefaultData!D$86,C170,DefaultData!D$85,DefaultData!D$84*DefaultData!D$48),0) -> 5355237.159 | F170: 14668051.73 | H170: 5 | I170: =IF(H170<=DefaultData!$D$93,-IPMT(DefaultData!$D$92,H170,DefaultData!$D$93,DefaultData!$D$48*DefaultData!$D$89*DefaultData!$D$90),0) -> 0 | J170: =IF(H170<=DefaultData!$D$93,-PPMT(DefaultData!$D$92,H170,DefaultData!$D$93,DefaultData!$D$89*DefaultData!$D$48*DefaultData!$D$90),0) -> 0 | K170: 0 | M170: 5 | N170: =IF(M170<=DefaultData!$D$93,-IPMT(DefaultData!$D$92,M170,DefaultData!$D$93,DefaultData!$D$48*DefaultData!$D$89*DefaultData!$D$91),0) -> 3713098.594 | O170: =IF(M170<=DefaultData!$D$93,-PPMT(DefaultData!$D$92,M170,DefaultData!$D$93,DefaultData!$D$89*DefaultData!$D$46*DefaultData!$D$91),0) -> 1032858.552 | P170: 4745957.146
C171: 6 | D171: =IF(C171<=DefaultData!D$85,-IPMT(DefaultData!D$86,C171,DefaultData!D$85,DefaultData!D$48*DefaultData!D$84),0) -> 8964724.155 | E171: =IF(C171<=DefaultData!D$85,-PPMT(DefaultData!D$86,C171,DefaultData!D$85,DefaultData!D$84*DefaultData!D$48),0) -> 5703327.574 | F171: 14668051.73 | H171: 6 | I171: =IF(H171<=DefaultData!$D$93,-IPMT(DefaultData!$D$92,H171,DefaultData!$D$93,DefaultData!$D$48*DefaultData!$D$89*DefaultData!$D$90),0) -> 0 | J171: =IF(H171<=DefaultData!$D$93,-PPMT(DefaultData!$D$92,H171,DefaultData!$D$93,DefaultData!$D$89*DefaultData!$D$48*DefaultData!$D$90),0) -> 0 | K171: 0 | M171: 6 | N171: =IF(M171<=DefaultData!$D$93,-IPMT(DefaultData!$D$92,M171,DefaultData!$D$93,DefaultData!$D$48*DefaultData!$D$89*DefaultData!$D$91),0) -> 3609812.738 | O171: =IF(M171<=DefaultData!$D$93,-PPMT(DefaultData!$D$92,M171,DefaultData!$D$93,DefaultData!$D$89*DefaultData!$D$46*DefaultData!$D$91),0) -> 1136144.407 | P171: 4745957.146
C172: 7 | D172: =IF(C172<=DefaultData!D$85,-IPMT(DefaultData!D$86,C172,DefaultData!D$85,DefaultData!D$48*DefaultData!D$84),0) -> 8594007.863 | E172: =IF(C172<=DefaultData!D$85,-PPMT(DefaultData!D$86,C172,DefaultData!D$85,DefaultData!D$84*DefaultData!D$48),0) -> 6074043.867 | F172: 14668051.73 | H172: 7 | I172: =IF(H172<=DefaultData!$D$93,-IPMT(DefaultData!$D$92,H172,DefaultData!$D$93,DefaultData!$D$48*DefaultData!$D$89*DefaultData!$D$90),0) -> 0 | J172: =IF(H172<=DefaultData!$D$93,-PPMT(DefaultData!$D$92,H172,DefaultData!$D$93,DefaultData!$D$89*DefaultData!$D$48*DefaultData!$D$90),0) -> 0 | K172: 0 | M172: 7 | N172: =IF(M172<=DefaultData!$D$93,-IPMT(DefaultData!$D$92,M172,DefaultData!$D$93,DefaultData!$D$48*DefaultData!$D$89*DefaultData!$D$91),0) -> 3496198.298 | O172: =IF(M172<=DefaultData!$D$93,-PPMT(DefaultData!$D$92,M172,DefaultData!$D$93,DefaultData!$D$89*DefaultData!$D$46*DefaultData!$D$91),0) -> 1249758.848 | P172: 4745957.146
C173: 8 | D173: =IF(C173<=DefaultData!D$85,-IPMT(DefaultData!D$86,C173,DefaultData!D$85,DefaultData!D$48*DefaultData!D$84),0) -> 8199195.012 | E173: =IF(C173<=DefaultData!D$85,-PPMT(DefaultData!D$86,C173,DefaultData!D$85,DefaultData!D$84*DefaultData!D$48),0) -> 6468856.718 | F173: 14668051.73 | H173: 8 | I173: =IF(H173<=DefaultData!$D$93,-IPMT(DefaultData!$D$92,H173,DefaultData!$D$93,DefaultData!$D$48*DefaultData!$D$89*DefaultData!$D$90),0) -> 0 | J173: =IF(H173<=DefaultData!$D$93,-PPMT(DefaultData!$D$92,H173,DefaultData!$D$93,DefaultData!$D$89*DefaultData!$D$48*DefaultData!$D$90),0) -> 0 | K173: 0 | M173: 8 | N173: =IF(M173<=DefaultData!$D$93,-IPMT(DefaultData!$D$92,M173,DefaultData!$D$93,DefaultData!$D$48*DefaultData!$D$89*DefaultData!$D$91),0) -> 3371222.413 | O173: =IF(M173<=DefaultData!$D$93,-PPMT(DefaultData!$D$92,M173,DefaultData!$D$93,DefaultData!$D$89*DefaultData!$D$46*DefaultData!$D$91),0) -> 1374734.733 | P173: 4745957.146
C174: 9 | D174: =IF(C174<=DefaultData!D$85,-IPMT(DefaultData!D$86,C174,DefaultData!D$85,DefaultData!D$48*DefaultData!D$84),0) -> 7778719.325 | E174: =IF(C174<=DefaultData!D$85,-PPMT(DefaultData!D$86,C174,DefaultData!D$85,DefaultData!D$84*DefaultData!D$48),0) -> 6889332.405 | F174: 14668051.73 | H174: 9 | I174: =IF(H174<=DefaultData!$D$93,-IPMT(DefaultData!$D$92,H174,DefaultData!$D$93,DefaultData!$D$48*DefaultData!$D$89*DefaultData!$D$90),0) -> 0 | J174: =IF(H174<=DefaultData!$D$93,-PPMT(DefaultData!$D$92,H174,DefaultData!$D$93,DefaultData!$D$89*DefaultData!$D$48*DefaultData!$D$90),0) -> 0 | K174: 0 | M174: 9 | N174: =IF(M174<=DefaultData!$D$93,-IPMT(DefaultData!$D$92,M174,DefaultData!$D$93,DefaultData!$D$48*DefaultData!$D$89*DefaultData!$D$91),0) -> 3233748.94 | O174: =IF(M174<=DefaultData!$D$93,-PPMT(DefaultData!$D$92,M174,DefaultData!$D$93,DefaultData!$D$89*DefaultData!$D$46*DefaultData!$D$91),0) -> 1512208.206 | P174: 4745957.146
C175: 10 | D175: =IF(C175<=DefaultData!D$85,-IPMT(DefaultData!D$86,C175,DefaultData!D$85,DefaultData!D$48*DefaultData!D$84),0) -> 7330912.719 | E175: =IF(C175<=DefaultData!D$85,-PPMT(DefaultData!D$86,C175,DefaultData!D$85,DefaultData!D$84*DefaultData!D$48),0) -> 7337139.011 | F175: 14668051.73 | H175: 10 | I175: =IF(H175<=DefaultData!$D$93,-IPMT(DefaultData!$D$92,H175,DefaultData!$D$93,DefaultData!$D$48*DefaultData!$D$89*DefaultData!$D$90),0) -> 0 | J175: =IF(H175<=DefaultData!$D$93,-PPMT(DefaultData!$D$92,H175,DefaultData!$D$93,DefaultData!$D$89*DefaultData!$D$48*DefaultData!$D$90),0) -> 0 | K175: 0 | M175: 10 | N175: =IF(M175<=DefaultData!$D$93,-IPMT(DefaultData!$D$92,M175,DefaultData!$D$93,DefaultData!$D$48*DefaultData!$D$89*DefaultData!$D$91),0) -> 3082528.119 | O175: =IF(M175<=DefaultData!$D$93,-PPMT(DefaultData!$D$92,M175,DefaultData!$D$93,DefaultData!$D$89*DefaultData!$D$46*DefaultData!$D$91),0) -> 1663429.027 | P175: 4745957.146
C176: 11 | D176: =IF(C176<=DefaultData!D$85,-IPMT(DefaultData!D$86,C176,DefaultData!D$85,DefaultData!D$48*DefaultData!D$84),0) -> 6853998.683 | E176: =IF(C176<=DefaultData!D$85,-PPMT(DefaultData!D$86,C176,DefaultData!D$85,DefaultData!D$84*DefaultData!D$48),0) -> 7814053.047 | F176: 14668051.73 | H176: 11 | I176: =IF(H176<=DefaultData!$D$93,-IPMT(DefaultData!$D$92,H176,DefaultData!$D$93,DefaultData!$D$48*DefaultData!$D$89*DefaultData!$D$90),0) -> 0 | J176: =IF(H176<=DefaultData!$D$93,-PPMT(DefaultData!$D$92,H176,DefaultData!$D$93,DefaultData!$D$89*DefaultData!$D$48*DefaultData!$D$90),0) -> 0 | K176: 0 | M176: 11 | N176: =IF(M176<=DefaultData!$D$93,-IPMT(DefaultData!$D$92,M176,DefaultData!$D$93,DefaultData!$D$48*DefaultData!$D$89*DefaultData!$D$91),0) -> 2916185.216 | O176: =IF(M176<=DefaultData!$D$93,-PPMT(DefaultData!$D$92,M176,DefaultData!$D$93,DefaultData!$D$89*DefaultData!$D$48*DefaultData!$D$91),0) -> 1829771.929 | P176: 4745957.146
C177: 12 | D177: =IF(C177<=DefaultData!D$85,-IPMT(DefaultData!D$86,C177,DefaultData!D$85,DefaultData!D$48*DefaultData!D$84),0) -> 6346085.235 | E177: =IF(C177<=DefaultData!D$85,-PPMT(DefaultData!D$86,C177,DefaultData!D$85,DefaultData!D$84*DefaultData!D$48),0) -> 8321966.495 | F177: 14668051.73 | H177: 12 | I177: =IF(H177<=DefaultData!$D$93,-IPMT(DefaultData!$D$92,H177,DefaultData!$D$93,DefaultData!$D$48*DefaultData!$D$89*DefaultData!$D$90),0) -> 0 | J177: =IF(H177<=DefaultData!$D$93,-PPMT(DefaultData!$D$92,H177,DefaultData!$D$93,DefaultData!$D$89*DefaultData!$D$48*DefaultData!$D$90),0) -> 0 | K177: 0 | M177: 12 | N177: =IF(M177<=DefaultData!$D$93,-IPMT(DefaultData!$D$92,M177,DefaultData!$D$93,DefaultData!$D$48*DefaultData!$D$89*DefaultData!$D$91),0) -> 2733208.023 | O177: =IF(M177<=DefaultData!$D$93,-PPMT(DefaultData!$D$92,M177,DefaultData!$D$93,DefaultData!$D$89*DefaultData!$D$48*DefaultData!$D$91),0) -> 2012749.122 | P177: 4745957.146
C178: 13 | D178: =IF(C178<=DefaultData!D$85,-IPMT(DefaultData!D$86,C178,DefaultData!D$85,DefaultData!D$48*DefaultData!D$84),0) -> 5805157.413 | E178: =IF(C178<=DefaultData!D$85,-PPMT(DefaultData!D$86,C178,DefaultData!D$85,DefaultData!D$84*DefaultData!D$48),0) -> 8862894.317 | F178: 14668051.73 | H178: 13 | I178: =IF(H178<=DefaultData!$D$93,-IPMT(DefaultData!$D$92,H178,DefaultData!$D$93,DefaultData!$D$48*DefaultData!$D$89*DefaultData!$D$90),0) -> 0 | J178: =IF(H178<=DefaultData!$D$93,-PPMT(DefaultData!$D$92,H178,DefaultData!$D$93,DefaultData!$D$89*DefaultData!$D$48*DefaultData!$D$90),0) -> 0 | K178: 0 | M178: 13 | N178: =IF(M178<=DefaultData!$D$93,-IPMT(DefaultData!$D$92,M178,DefaultData!$D$93,DefaultData!$D$48*DefaultData!$D$89*DefaultData!$D$91),0) -> 2531933.111 | O178: =IF(M178<=DefaultData!$D$93,-PPMT(DefaultData!$D$92,M178,DefaultData!$D$93,DefaultData!$D$89*DefaultData!$D$48*DefaultData!$D$91),0) -> 2214024.035 | P178: 4745957.146
C179: 14 | D179: =IF(C179<=DefaultData!D$85,-IPMT(DefaultData!D$86,C179,DefaultData!D$85,DefaultData!D$48*DefaultData!D$84),0) -> 5229069.282 | E179: =IF(C179<=DefaultData!D$85,-PPMT(DefaultData!D$86,C179,DefaultData!D$85,DefaultData!D$84*DefaultData!D$48),0) -> 9438982.448 | F179: 14668051.73 | H179: 14 | I179: =IF(H179<=DefaultData!$D$93,-IPMT(DefaultData!$D$92,H179,DefaultData!$D$93,DefaultData!$D$48*DefaultData!$D$89*DefaultData!$D$90),0) -> 0 | J179: =IF(H179<=DefaultData!$D$93,-PPMT(DefaultData!$D$92,H179,DefaultData!$D$93,DefaultData!$D$89*DefaultData!$D$48*DefaultData!$D$90),0) -> 0 | K179: 0 | M179: 14 | N179: =IF(M179<=DefaultData!$D$93,-IPMT(DefaultData!$D$92,M179,DefaultData!$D$93,DefaultData!$D$48*DefaultData!$D$89*DefaultData!$D$91),0) -> 2310530.708 | O179: =IF(M179<=DefaultData!$D$93,-PPMT(DefaultData!$D$92,M179,DefaultData!$D$93,DefaultData!$D$89*DefaultData!$D$48*DefaultData!$D$91),0) -> 2435426.438 | P179: 4745957.146
C180: 15 | D180: =IF(C180<=DefaultData!D$85,-IPMT(DefaultData!D$86,C180,DefaultData!D$85,DefaultData!D$48*DefaultData!D$84),0) -> 4615535.423 | E180: =IF(C180<=DefaultData!D$85,-PPMT(DefaultData!D$86,C180,DefaultData!D$85,DefaultData!D$84*DefaultData!D$48),0) -> 10052516.31 | F180: 14668051.73 | H180: 15 | I180: =IF(H180<=DefaultData!$D$93,-IPMT(DefaultData!$D$92,H180,DefaultData!$D$93,DefaultData!$D$48*DefaultData!$D$89*DefaultData!$D$90),0) -> 0 | J180: =IF(H180<=DefaultData!$D$93,-PPMT(DefaultData!$D$92,H180,DefaultData!$D$93,DefaultData!$D$89*DefaultData!$D$48*DefaultData!$D$90),0) -> 0 | K180: 0 | M180: 15 | N180: =IF(M180<=DefaultData!$D$93,-IPMT(DefaultData!$D$92,M180,DefaultData!$D$93,DefaultData!$D$48*DefaultData!$D$89*DefaultData!$D$91),0) -> 2066988.064 | O180: =IF(M180<=DefaultData!$D$93,-PPMT(DefaultData!$D$92,M180,DefaultData!$D$93,DefaultData!$D$89*DefaultData!$D$48*DefaultData!$D$91),0) -> 2678969.082 | P180: 4745957.146
C181: 16 | D181: =IF(C181<=DefaultData!D$85,-IPMT(DefaultData!D$86,C181,DefaultData!D$85,DefaultData!D$48*DefaultData!D$84),0) -> 3962121.863 | E181: =IF(C181<=DefaultData!D$85,-PPMT(DefaultData!D$86,C181,DefaultData!D$85,DefaultData!D$84*DefaultData!D$48),0) -> 10705929.87 | F181: 14668051.73 | H181: 16 | I181: =IF(H181<=DefaultData!$D$93,-IPMT(DefaultData!$D$92,H181,DefaultData!$D$93,DefaultData!$D$48*DefaultData!$D$89*DefaultData!$D$90),0) -> 0 | J181: =IF(H181<=DefaultData!$D$93,-PPMT(DefaultData!$D$92,H181,DefaultData!$D$93,DefaultData!$D$89*DefaultData!$D$48*DefaultData!$D$90),0) -> 0 | K181: 0 | M181: 16 | N181: =IF(M181<=DefaultData!$D$93,-IPMT(DefaultData!$D$92,M181,DefaultData!$D$93,DefaultData!$D$48*DefaultData!$D$89*DefaultData!$D$91),0) -> 1799091.156 | O181: =IF(M181<=DefaultData!$D$93,-PPMT(DefaultData!$D$92,M181,DefaultData!$D$93,DefaultData!$D$89*DefaultData!$D$48*DefaultData!$D$91),0) -> 2946865.99 | P181: 4745957.146
C182: 17 | D182: =IF(C182<=DefaultData!D$85,-IPMT(DefaultData!D$86,C182,DefaultData!D$85,DefaultData!D$48*DefaultData!D$84),0) -> 3266236.422 | E182: =IF(C182<=DefaultData!D$85,-PPMT(DefaultData!D$86,C182,DefaultData!D$85,DefaultData!D$84*DefaultData!D$48),0) -> 11401815.31 | F182: 14668051.73 | H182: 17 | I182: =IF(H182<=DefaultData!$D$93,-IPMT(DefaultData!$D$92,H182,DefaultData!$D$93,DefaultData!$D$48*DefaultData!$D$89*DefaultData!$D$90),0) -> 0 | J182: =IF(H182<=DefaultData!$D$93,-PPMT(DefaultData!$D$92,H182,DefaultData!$D$93,DefaultData!$D$89*DefaultData!$D$48*DefaultData!$D$90),0) -> 0 | K182: 0 | M182: 17 | N182: =IF(M182<=DefaultData!$D$93,-IPMT(DefaultData!$D$92,M182,DefaultData!$D$93,DefaultData!$D$48*DefaultData!$D$89*DefaultData!$D$91),0) -> 1504404.557 | O182: =IF(M182<=DefaultData!$D$93,-PPMT(DefaultData!$D$92,M182,DefaultData!$D$93,DefaultData!$D$89*DefaultData!$D$48*DefaultData!$D$91),0) -> 3241552.589 | P182: 4745957.146
C183: 18 | D183: =IF(C183<=DefaultData!D$85,-IPMT(DefaultData!D$86,C183,DefaultData!D$85,DefaultData!D$48*DefaultData!D$84),0) -> 2525118.427 | E183: =IF(C183<=DefaultData!D$85,-PPMT(DefaultData!D$86,C183,DefaultData!D$85,DefaultData!D$84*DefaultData!D$48),0) -> 12142933.3 | F183: 14668051.73 | H183: 18 | I183: =IF(H183<=DefaultData!$D$93,-IPMT(DefaultData!$D$92,H183,DefaultData!$D$93,DefaultData!$D$48*DefaultData!$D$89*DefaultData!$D$90),0) -> 0 | J183: =IF(H183<=DefaultData!$D$93,-PPMT(DefaultData!$D$92,H183,DefaultData!$D$93,DefaultData!$D$89*DefaultData!$D$48*DefaultData!$D$90),0) -> 0 | K183: 0 | M183: 18 | N183: =IF(M183<=DefaultData!$D$93,-IPMT(DefaultData!$D$92,M183,DefaultData!$D$93,DefaultData!$D$48*DefaultData!$D$89*DefaultData!$D$91),0) -> 1180249.298 | O183: =IF(M183<=DefaultData!$D$93,-PPMT(DefaultData!$D$92,M183,DefaultData!$D$93,DefaultData!$D$89*DefaultData!$D$48*DefaultData!$D$91),0) -> 3565707.848 | P183: 4745957.146
C184: 19 | D184: =IF(C184<=DefaultData!D$85,-IPMT(DefaultData!D$86,C184,DefaultData!D$85,DefaultData!D$48*DefaultData!D$84),0) -> 1735827.762 | E184: =IF(C184<=DefaultData!D$85,-PPMT(DefaultData!D$86,C184,DefaultData!D$85,DefaultData!D$84*DefaultData!D$48),0) -> 12932223.97 | F184: 14668051.73 | H184: 19 | I184: =IF(H184<=DefaultData!$D$93,-IPMT(DefaultData!$D$92,H184,DefaultData!$D$93,DefaultData!$D$48*DefaultData!$D$89*DefaultData!$D$90),0) -> 0 | J184: =IF(H184<=DefaultData!$D$93,-PPMT(DefaultData!$D$92,H184,DefaultData!$D$93,DefaultData!$D$89*DefaultData!$D$48*DefaultData!$D$90),0) -> 0 | K184: 0 | M184: 19 | N184: =IF(M184<=DefaultData!$D$93,-IPMT(DefaultData!$D$92,M184,DefaultData!$D$93,DefaultData!$D$48*DefaultData!$D$89*DefaultData!$D$91),0) -> 823678.5129 | O184: =IF(M184<=DefaultData!$D$93,-PPMT(DefaultData!$D$92,M184,DefaultData!$D$93,DefaultData!$D$89*DefaultData!$D$48*DefaultData!$D$91),0) -> 3922278.633 | P184: 4745957.146
C185: 20 | D185: =IF(C185<=DefaultData!D$85,-IPMT(DefaultData!D$86,C185,DefaultData!D$85,DefaultData!D$48*DefaultData!D$84),0) -> 895233.2042 | E185: =IF(C185<=DefaultData!D$85,-PPMT(DefaultData!D$86,C185,DefaultData!D$85,DefaultData!D$84*DefaultData!D$48),0) -> 13772818.53 | F185: 14668051.73 | H185: 20 | I185: =IF(H185<=DefaultData!$D$93,-IPMT(DefaultData!$D$92,H185,DefaultData!$D$93,DefaultData!$D$48*DefaultData!$D$89*DefaultData!$D$90),0) -> 0 | J185: =IF(H185<=DefaultData!$D$93,-PPMT(DefaultData!$D$92,H185,DefaultData!$D$93,DefaultData!$D$89*DefaultData!$D$48*DefaultData!$D$90),0) -> 0 | K185: 0 | M185: 20 | N185: =IF(M185<=DefaultData!$D$93,-IPMT(DefaultData!$D$92,M185,DefaultData!$D$93,DefaultData!$D$48*DefaultData!$D$89*DefaultData!$D$91),0) -> 431450.6496 | O185: =IF(M185<=DefaultData!$D$93,-PPMT(DefaultData!$D$92,M185,DefaultData!$D$93,DefaultData!$D$89*DefaultData!$D$48*DefaultData!$D$91),0) -> 4314506.496 | P185: 4745957.146
C186: 21 | D186: =IF(C186<=DefaultData!D$85,-IPMT(DefaultData!D$86,C186,DefaultData!D$85,DefaultData!D$48*DefaultData!D$84),0) -> 0 | E186: =IF(C186<=DefaultData!D$85,-PPMT(DefaultData!D$86,C186,DefaultData!D$85,DefaultData!D$84*DefaultData!D$48),0) -> 0 | F186: 0 | H186: 21 | I186: =IF(H186<=DefaultData!$D$93,-IPMT(DefaultData!$D$92,H186,DefaultData!$D$93,DefaultData!$D$48*DefaultData!$D$89*DefaultData!$D$90),0) -> 0 | J186: =IF(H186<=DefaultData!$D$93,-PPMT(DefaultData!$D$92,H186,DefaultData!$D$93,DefaultData!$D$89*DefaultData!$D$48*DefaultData!$D$90),0) -> 0 | K186: 0 | M186: 21 | N186: =IF(M186<=DefaultData!$D$93,-IPMT(DefaultData!$D$92,M186,DefaultData!$D$93,DefaultData!$D$48*DefaultData!$D$89*DefaultData!$D$91),0) -> 0 | O186: =IF(M186<=DefaultData!$D$93,-PPMT(DefaultData!$D$92,M186,DefaultData!$D$93,DefaultData!$D$89*DefaultData!$D$48*DefaultData!$D$91),0) -> 0 | P186: 0
C187: 22 | D187: =IF(C187<=DefaultData!D$85,-IPMT(DefaultData!D$86,C187,DefaultData!D$85,DefaultData!D$48*DefaultData!D$84),0) -> 0 | E187: =IF(C187<=DefaultData!D$85,-PPMT(DefaultData!D$86,C187,DefaultData!D$85,DefaultData!D$84*DefaultData!D$48),0) -> 0 | F187: 0 | H187: 22 | I187: =IF(H187<=DefaultData!$D$93,-IPMT(DefaultData!$D$92,H187,DefaultData!$D$93,DefaultData!$D$48*DefaultData!$D$89*DefaultData!$D$90),0) -> 0 | J187: =IF(H187<=DefaultData!$D$93,-PPMT(DefaultData!$D$92,H187,DefaultData!$D$93,DefaultData!$D$89*DefaultData!$D$48*DefaultData!$D$90),0) -> 0 | K187: 0 | M187: 22 | N187: =IF(M187<=DefaultData!$D$93,-IPMT(DefaultData!$D$92,M187,DefaultData!$D$93,DefaultData!$D$48*DefaultData!$D$89*DefaultData!$D$91),0) -> 0 | O187: =IF(M187<=DefaultData!$D$93,-PPMT(DefaultData!$D$92,M187,DefaultData!$D$93,DefaultData!$D$89*DefaultData!$D$48*DefaultData!$D$91),0) -> 0 | P187: 0
C188: 23 | D188: =IF(C188<=DefaultData!D$85,-IPMT(DefaultData!D$86,C188,DefaultData!D$85,DefaultData!D$48*DefaultData!D$84),0) -> 0 | E188: =IF(C188<=DefaultData!D$85,-PPMT(DefaultData!D$86,C188,DefaultData!D$85,DefaultData!D$84*DefaultData!D$48),0) -> 0 | F188: 0 | H188: 23 | I188: =IF(H188<=DefaultData!$D$93,-IPMT(DefaultData!$D$92,H188,DefaultData!$D$93,DefaultData!$D$48*DefaultData!$D$89*DefaultData!$D$90),0) -> 0 | J188: =IF(H188<=DefaultData!$D$93,-PPMT(DefaultData!$D$92,H188,DefaultData!$D$93,DefaultData!$D$89*DefaultData!$D$48*DefaultData!$D$90),0) -> 0 | K188: 0 | M188: 23 | N188: =IF(M188<=DefaultData!$D$93,-IPMT(DefaultData!$D$92,M188,DefaultData!$D$93,DefaultData!$D$48*DefaultData!$D$89*DefaultData!$D$91),0) -> 0 | O188: =IF(M188<=DefaultData!$D$93,-PPMT(DefaultData!$D$92,M188,DefaultData!$D$93,DefaultData!$D$89*DefaultData!$D$48*DefaultData!$D$91),0) -> 0 | P188: 0
C189: 24 | D189: =IF(C189<=DefaultData!D$85,-IPMT(DefaultData!D$86,C189,DefaultData!D$85,DefaultData!D$48*DefaultData!D$84),0) -> 0 | E189: =IF(C189<=DefaultData!D$85,-PPMT(DefaultData!D$86,C189,DefaultData!D$85,DefaultData!D$84*DefaultData!D$48),0) -> 0 | F189: 0 | H189: 24 | I189: =IF(H189<=DefaultData!$D$93,-IPMT(DefaultData!$D$92,H189,DefaultData!$D$93,DefaultData!$D$48*DefaultData!$D$89*DefaultData!$D$90),0) -> 0 | J189: =IF(H189<=DefaultData!$D$93,-PPMT(DefaultData!$D$92,H189,DefaultData!$D$93,DefaultData!$D$89*DefaultData!$D$48*DefaultData!$D$90),0) -> 0 | K189: 0 | M189: 24 | N189: =IF(M189<=DefaultData!$D$93,-IPMT(DefaultData!$D$92,M189,DefaultData!$D$93,DefaultData!$D$48*DefaultData!$D$89*DefaultData!$D$91),0) -> 0 | O189: =IF(M189<=DefaultData!$D$93,-PPMT(DefaultData!$D$92,M189,DefaultData!$D$93,DefaultData!$D$89*DefaultData!$D$48*DefaultData!$D$91),0) -> 0 | P189: 0
C190: 25 | D190: =IF(C190<=DefaultData!D$85,-IPMT(DefaultData!D$86,C190,DefaultData!D$85,DefaultData!D$48*DefaultData!D$84),0) -> 0 | E190: =IF(C190<=DefaultData!D$85,-PPMT(DefaultData!D$86,C190,DefaultData!D$85,DefaultData!D$84*DefaultData!D$48),0) -> 0 | F190: 0 | H190: 25 | I190: =IF(H190<=DefaultData!$D$93,-IPMT(DefaultData!$D$92,H190,DefaultData!$D$93,DefaultData!$D$48*DefaultData!$D$89*DefaultData!$D$90),0) -> 0 | J190: =IF(H190<=DefaultData!$D$93,-PPMT(DefaultData!$D$92,H190,DefaultData!$D$93,DefaultData!$D$89*DefaultData!$D$48*DefaultData!$D$90),0) -> 0 | K190: 0 | M190: 25 | N190: =IF(M190<=DefaultData!$D$93,-IPMT(DefaultData!$D$92,M190,DefaultData!$D$93,DefaultData!$D$48*DefaultData!$D$89*DefaultData!$D$91),0) -> 0 | O190: =IF(M190<=DefaultData!$D$93,-PPMT(DefaultData!$D$92,M190,DefaultData!$D$93,DefaultData!$D$89*DefaultData!$D$48*DefaultData!$D$91),0) -> 0 | P190: 0
C191: 26 | D191: =IF(C191<=DefaultData!D$85,-IPMT(DefaultData!D$86,C191,DefaultData!D$85,DefaultData!D$48*DefaultData!D$84),0) -> 0 | E191: =IF(C191<=DefaultData!D$85,-PPMT(DefaultData!D$86,C191,DefaultData!D$85,DefaultData!D$84*DefaultData!D$48),0) -> 0 | F191: 0 | H191: 26 | I191: =IF(H191<=DefaultData!$D$93,-IPMT(DefaultData!$D$92,H191,DefaultData!$D$93,DefaultData!$D$48*DefaultData!$D$89*DefaultData!$D$90),0) -> 0 | J191: =IF(H191<=DefaultData!$D$93,-PPMT(DefaultData!$D$92,H191,DefaultData!$D$93,DefaultData!$D$89*DefaultData!$D$48*DefaultData!$D$90),0) -> 0 | K191: 0 | M191: 26 | N191: =IF(M191<=DefaultData!$D$93,-IPMT(DefaultData!$D$92,M191,DefaultData!$D$93,DefaultData!$D$48*DefaultData!$D$89*DefaultData!$D$91),0) -> 0 | O191: =IF(M191<=DefaultData!$D$93,-PPMT(DefaultData!$D$92,M191,DefaultData!$D$93,DefaultData!$D$89*DefaultData!$D$48*DefaultData!$D$91),0) -> 0 | P191: 0
C192: 27 | D192: =IF(C192<=DefaultData!D$85,-IPMT(DefaultData!D$86,C192,DefaultData!D$85,DefaultData!D$48*DefaultData!D$84),0) -> 0 | E192: =IF(C192<=DefaultData!D$85,-PPMT(DefaultData!D$86,C192,DefaultData!D$85,DefaultData!D$84*DefaultData!D$48),0) -> 0 | F192: 0 | H192: 27 | I192: =IF(H192<=DefaultData!$D$93,-IPMT(DefaultData!$D$92,H192,DefaultData!$D$93,DefaultData!$D$48*DefaultData!$D$89*DefaultData!$D$90),0) -> 0 | J192: =IF(H192<=DefaultData!$D$93,-PPMT(DefaultData!$D$92,H192,DefaultData!$D$93,DefaultData!$D$89*DefaultData!$D$48*DefaultData!$D$90),0) -> 0 | K192: 0 | M192: 27 | N192: =IF(M192<=DefaultData!$D$93,-IPMT(DefaultData!$D$92,M192,DefaultData!$D$93,DefaultData!$D$48*DefaultData!$D$89*DefaultData!$D$91),0) -> 0 | O192: =IF(M192<=DefaultData!$D$93,-PPMT(DefaultData!$D$92,M192,DefaultData!$D$93,DefaultData!$D$89*DefaultData!$D$48*DefaultData!$D$91),0) -> 0 | P192: 0
C193: 28 | D193: =IF(C193<=DefaultData!D$85,-IPMT(DefaultData!D$86,C193,DefaultData!D$85,DefaultData!D$48*DefaultData!D$84),0) -> 0 | E193: =IF(C193<=DefaultData!D$85,-PPMT(DefaultData!D$86,C193,DefaultData!D$85,DefaultData!D$84*DefaultData!D$48),0) -> 0 | F193: 0 | H193: 28 | I193: =IF(H193<=DefaultData!$D$93,-IPMT(DefaultData!$D$92,H193,DefaultData!$D$93,DefaultData!$D$48*DefaultData!$D$89*DefaultData!$D$90),0) -> 0 | J193: =IF(H193<=DefaultData!$D$93,-PPMT(DefaultData!$D$92,H193,DefaultData!$D$93,DefaultData!$D$89*DefaultData!$D$48*DefaultData!$D$90),0) -> 0 | K193: 0 | M193: 28 | N193: =IF(M193<=DefaultData!$D$93,-IPMT(DefaultData!$D$92,M193,DefaultData!$D$93,DefaultData!$D$48*DefaultData!$D$89*DefaultData!$D$91),0) -> 0 | O193: =IF(M193<=DefaultData!$D$93,-PPMT(DefaultData!$D$92,M193,DefaultData!$D$93,DefaultData!$D$89*DefaultData!$D$48*DefaultData!$D$91),0) -> 0 | P193: 0
C194: 29 | D194: =IF(C194<=DefaultData!D$85,-IPMT(DefaultData!D$86,C194,DefaultData!D$85,DefaultData!D$48*DefaultData!D$84),0) -> 0 | E194: =IF(C194<=DefaultData!D$85,-PPMT(DefaultData!D$86,C194,DefaultData!D$85,DefaultData!D$84*DefaultData!D$48),0) -> 0 | F194: 0 | H194: 29 | I194: =IF(H194<=DefaultData!$D$93,-IPMT(DefaultData!$D$92,H194,DefaultData!$D$93,DefaultData!$D$48*DefaultData!$D$89*DefaultData!$D$90),0) -> 0 | J194: =IF(H194<=DefaultData!$D$93,-PPMT(DefaultData!$D$92,H194,DefaultData!$D$93,DefaultData!$D$89*DefaultData!$D$48*DefaultData!$D$90),0) -> 0 | K194: 0 | M194: 29 | N194: =IF(M194<=DefaultData!$D$93,-IPMT(DefaultData!$D$92,M194,DefaultData!$D$93,DefaultData!$D$48*DefaultData!$D$89*DefaultData!$D$91),0) -> 0 | O194: =IF(M194<=DefaultData!$D$93,-PPMT(DefaultData!$D$92,M194,DefaultData!$D$93,DefaultData!$D$89*DefaultData!$D$48*DefaultData!$D$91),0) -> 0 | P194: 0
C195: 30 | D195: =IF(C195<=DefaultData!D$85,-IPMT(DefaultData!D$86,C195,DefaultData!D$85,DefaultData!D$48*DefaultData!D$84),0) -> 0 | E195: =IF(C195<=DefaultData!D$85,-PPMT(DefaultData!D$86,C195,DefaultData!D$85,DefaultData!D$84*DefaultData!D$48),0) -> 0 | F195: 0 | H195: 30 | I195: =IF(H195<=DefaultData!$D$93,-IPMT(DefaultData!$D$92,H195,DefaultData!$D$93,DefaultData!$D$48*DefaultData!$D$89*DefaultData!$D$90),0) -> 0 | J195: =IF(H195<=DefaultData!$D$93,-PPMT(DefaultData!$D$92,H195,DefaultData!$D$93,DefaultData!$D$89*DefaultData!$D$48*DefaultData!$D$90),0) -> 0 | K195: 0 | M195: 30 | N195: =IF(M195<=DefaultData!$D$93,-IPMT(DefaultData!$D$92,M195,DefaultData!$D$93,DefaultData!$D$48*DefaultData!$D$89*DefaultData!$D$91),0) -> 0 | O195: =IF(M195<=DefaultData!$D$93,-PPMT(DefaultData!$D$92,M195,DefaultData!$D$93,DefaultData!$D$89*DefaultData!$D$48*DefaultData!$D$91),0) -> 0 | P195: 0
C196: Total | D196: =SUM(D166:D195) -> 131741000.3 | E196: =SUM(E166:E195) -> 161620034.3 | F196: =E196+D196 -> 293361034.6 | H196: Total | I196: =SUM(I166:I195) -> 0 | J196: =SUM(J166:J195) -> 0 | K196: =J196+I196 -> 0 | M196: Total | N196: =SUM(N166:N195) -> 54514134.34 | O196: =SUM(O166:O195) -> 40405008.57 | P196: =O196+N196 -> 94919142.92
C197: AvgAnn | D197: 13872409.23 | E197: 36694018.78 | F197: =E197+D197 -> 50566428.01 | H197: AvgAnn | I197: 0 | J197: 0 | K197: =J197+I197 -> 0 | M197: AvgAnn | N197: 7062145.913 | O197: 8745709.91 | P197: =O197+N197 -> 15807855.82
C199: User Modified (from Project Data worksheet - based on loan parameters) | H199: User Modified (from Project Data worksheet - based on equity investment parameters) | M199: User Modified (from Project Data worksheet - based on equity investment parameters)
C200: Loan Repayment Schedule | H200: Equity - Individual Investment Repayment Schedule | M200: Equity - Corporate Investment Repayment Schedule
D201: Interest Pmt | E201: Principal Pmt | F201: Total Pmt | I201: Interest Pmt | J201: Principal Pmt | K201: Total Pmt | N201: Interest Pmt | O201: Principal Pmt | P201: Total Pmt
C202: 1 | D202: =IF(C202<=ProjectData!B$89,-IPMT(ProjectData!B$90,C202,ProjectData!B$89,ProjectData!B$88*ProjectData!B$59),0) -> 10505302.23 | E202: =IF(C202<=ProjectData!B$89,-PPMT(ProjectData!B$90,C202,ProjectData!B$89,ProjectData!B$59*ProjectData!B$88),0) -> 4162749.501 | F202: =D202+E202 -> 14668051.73 | H202: 1 | I202: =IF(H202<=ProjectData!B$96,-ISPMT(ProjectData!B$95,H202,ProjectData!B$96,ProjectData!B$59*ProjectData!B$92*ProjectData!B$93),0) -> 0 | J202: =IF(H202<=ProjectData!B$96,-PPMT(ProjectData!B$95,H202,ProjectData!B$96,ProjectData!B$92*ProjectData!B$59*ProjectData!B$93),0) -> 0 | K202: =I202+J202 -> 0 | M202: 1 | N202: =IF(M202<=ProjectData!$B$96,-IPMT(ProjectData!$B$95,M202,ProjectData!$B$96,ProjectData!$B$59*ProjectData!$B$92*ProjectData!$B$94),0) -> 4040500.857 | O202: =IF(M202<=ProjectData!$B$96,-PPMT(ProjectData!$B$95,M202,ProjectData!$B$96,ProjectData!$B$92*ProjectData!$B$59*ProjectData!$B$94),0) -> 705456.2886 | P202: =N202+O202 -> 4745957.146
C203: 2 | D203: =IF(C203<=ProjectData!B$89,-IPMT(ProjectData!B$90,C203,ProjectData!B$89,ProjectData!B$88*ProjectData!B$59),0) -> 10234723.51 | E203: =IF(C203<=ProjectData!B$89,-PPMT(ProjectData!B$90,C203,ProjectData!B$89,ProjectData!B$59*ProjectData!B$88),0) -> 4433328.219 | F203: =D203+E203 -> 14668051.73 | H203: 2 | I203: =IF(H203<=ProjectData!B$96,-ISPMT(ProjectData!B$95,H203,ProjectData!B$96,ProjectData!B$59*ProjectData!B$92*ProjectData!B$93),0) -> 0 | J203: =IF(H203<=ProjectData!B$96,-PPMT(ProjectData!B$95,H203,ProjectData!B$96,ProjectData!B$92*ProjectData!B$59*ProjectData!B$93),0) -> 0 | K203: =I203+J203 -> 0 | M203: 2 | N203: =IF(M203<=ProjectData!$B$96,-IPMT(ProjectData!$B$95,M203,ProjectData!$B$96,ProjectData!$B$59*ProjectData!$B$92*ProjectData!$B$94),0) -> 3969955.228 | O203: =IF(M203<=ProjectData!$B$96,-PPMT(ProjectData!$B$95,M203,ProjectData!$B$96,ProjectData!$B$92*ProjectData!$B$59*ProjectData!$B$94),0) -> 776001.9175 | P203: =N203+O203 -> 4745957.146
C204: 3 | D204: =IF(C204<=ProjectData!B$89,-IPMT(ProjectData!B$90,C204,ProjectData!B$89,ProjectData!B$88*ProjectData!B$59),0) -> 9946557.177 | E204: =IF(C204<=ProjectData!B$89,-PPMT(ProjectData!B$90,C204,ProjectData!B$89,ProjectData!B$59*ProjectData!B$88),0) -> 4721494.553 | F204: 14668051.73 | H204: 3 | I204: =IF(H204<=ProjectData!B$96,-ISPMT(ProjectData!B$95,H204,ProjectData!B$96,ProjectData!B$59*ProjectData!B$92*ProjectData!B$93),0) -> 0 | J204: =IF(H204<=ProjectData!B$96,-PPMT(ProjectData!B$95,H204,ProjectData!B$96,ProjectData!B$92*ProjectData!B$59*ProjectData!B$93),0) -> 0 | K204: 0 | M204: 3 | N204: =IF(M204<=ProjectData!$B$96,-IPMT(ProjectData!$B$95,M204,ProjectData!$B$96,ProjectData!$B$59*ProjectData!$B$92*ProjectData!$B$94),0) -> 3892355.037 | O204: =IF(M204<=ProjectData!$B$96,-PPMT(ProjectData!$B$95,M204,ProjectData!$B$96,ProjectData!$B$92*ProjectData!$B$59*ProjectData!$B$94),0) -> 853602.1092 | P204: 4745957.146
... 29 more rows

Sheet Deflators
A1: *** WARNING *** This Worksheet contains Data and Formulas that are an integral part of the EI2 model. Although the data and formulas are available for review they must not be changed. Any changes to the data or formulas will impact the analysis and may invalidate the model results. To view the data and formulas simply scroll over to the adjacent columns to the right. | C1: Deflators / Inflators
C2: To assure consistency with multiplier data and project data
C4: Year of Multiplier Data | E4: 2017 | I4: Deflator | J4: =HLOOKUP($E$5,D9:AW51,$D$60) -> 0.9489051095
C5: Dollar Year $ | E5: =ProjectData!B16 -> 2020 | I5: Inflator | J5: =HLOOKUP($E$5,D9:AW51,$D$59) -> 1.053846154
D9: 2005 | E9: 2006 | F9: 2007 | G9: 2008 | H9: 2009 | I9: 2010 | J9: 2011 | K9: 2012 | L9: 2013 | M9: 2014 | N9: 2015 | O9: 2016 | P9: 2017 | Q9: 2018 | R9: 2019 | S9: 2020 | T9: 2021 | U9: 2022 | V9: 2023 | W9: 2024 | X9: 2025 | Y9: 2026 | Z9: 2027 | AA9: 2028 | AB9: 2029 | AC9: 2030 | AD9: 2031 | AE9: 2032 | AF9: 2033 | AG9: 2034 | AH9: 2035 | AI9: 2036 | AJ9: 2037 | AK9: 2038 | AL9: 2039 | AM9: 2040 | AN9: 2041 | AO9: 2042 | AP9: 2043 | AQ9: 2044 | AR9: 2045 | AS9: 2046 | AT9: 2047 | AU9: 2048 | AV9: 2049 | AW9: 2050
C10: 2005 | D10: 1 | E10: 1.018691589 | F10: 1.046728972 | G10: 1.065420561 | H10: 1.065420561 | I10: 1.093457944 | J10: 1.121495327 | K10: 1.140186916 | L10: 1.14953271 | M10: 1.168224299 | N10: 1.186915888 | O10: 1.196261682 | P10: 1.214953271 | Q10: 1.242990654 | R10: 1.271028037 | S10: 1.280373832 | T10: 1.299065421 | U10: 1.327102804 | V10: 1.345794393 | W10: 1.373831776 | X10: 1.392523364 | Y10: 1.420560748 | Z10: 1.448598131 | AA10: 1.485981308 | AB10: 1.514018692 | AC10: 1.551401869 | AD10: 1.579439252 | AE10: 1.61682243 | AF10: 1.654205607 | AG10: 1.682242991 | AH10: 1.719626168 | AI10: 1.757009346 | AJ10: 1.794392523 | AK10: 1.822429907 | AL10: 1.859813084 | AM10: 1.897196262 | AN10: 1.934579439 | AO10: 1.981308411 | AP10: 2.018691589 | AQ10: 2.056074766 | AR10: 2.102803738 | AS10: 2.14953271 | AT10: 2.186915888 | AU10: 2.23364486 | AV10: 2.280373832 | AW10: 2.336448598
D11: 1 | E11: 0.9816513761 | F11: 0.9553571429 | G11: 0.9385964912 | H11: 0.9385964912 | I11: 0.9145299145 | J11: 0.8916666667 | K11: 0.8770491803 | L11: 0.8699186992 | M11: 0.856 | N11: 0.842519685 | O11: 0.8359375 | P11: 0.8230769231 | Q11: 0.8045112782 | R11: 0.7867647059 | S11: 0.7810218978 | T11: 0.7697841727 | U11: 0.7535211268 | V11: 0.7430555556 | W11: 0.7278911565 | X11: 0.7181208054 | Y11: 0.7039473684 | Z11: 0.6903225806 | AA11: 0.6729559748 | AB11: 0.6604938272 | AC11: 0.6445783133 | AD11: 0.6331360947 | AE11: 0.6184971098 | AF11: 0.604519774 | AG11: 0.5944444444 | AH11: 0.5815217391 | AI11: 0.5691489362 | AJ11: 0.5572916667 | AK11: 0.5487179487 | AL11: 0.5376884422 | AM11: 0.5270935961 | AN11: 0.5169082126 | AO11: 0.5047169811 | AP11: 0.4953703704 | AQ11: 0.4863636364 | AR11: 0.4755555556 | AS11: 0.4652173913 | AT11: 0.4572649573 | AU11: 0.4476987448 | AV11: 0.4385245902 | AW11: 0.428
C12: 2006 | D12: 0.9816513761 | E12: 1 | F12: 1.027522936 | G12: 1.04587156 | H12: 1.04587156 | I12: 1.073394495 | J12: 1.100917431 | K12: 1.119266055 | L12: 1.128440367 | M12: 1.146788991 | N12: 1.165137615 | O12: 1.174311927 | P12: 1.19266055 | Q12: 1.220183486 | R12: 1.247706422 | S12: 1.256880734 | T12: 1.275229358 | U12: 1.302752294 | V12: 1.321100917 | W12: 1.348623853 | X12: 1.366972477 | Y12: 1.394495413 | Z12: 1.422018349 | AA12: 1.458715596 | AB12: 1.486238532 | AC12: 1.52293578 | AD12: 1.550458716 | AE12: 1.587155963 | AF12: 1.623853211 | AG12: 1.651376147 | AH12: 1.688073394 | AI12: 1.724770642 | AJ12: 1.76146789 | AK12: 1.788990826 | AL12: 1.825688073 | AM12: 1.862385321 | AN12: 1.899082569 | AO12: 1.944954128 | AP12: 1.981651376 | AQ12: 2.018348624 | AR12: 2.064220183 | AS12: 2.110091743 | AT12: 2.146788991 | AU12: 2.19266055 | AV12: 2.23853211 | AW12: 2.293577982
D13: 1.018691589 | E13: 1 | F13: 0.9732142857 | G13: 0.9561403509 | H13: 0.9561403509 | I13: 0.9316239316 | J13: 0.9083333333 | K13: 0.893442623 | L13: 0.8861788618 | M13: 0.872 | N13: 0.8582677165 | O13: 0.8515625 | P13: 0.8384615385 | Q13: 0.8195488722 | R13: 0.8014705882 | S13: 0.795620438 | T13: 0.7841726619 | U13: 0.7676056338 | V13: 0.7569444444 | W13: 0.7414965986 | X13: 0.7315436242 | Y13: 0.7171052632 | Z13: 0.7032258065 | AA13: 0.6855345912 | AB13: 0.6728395062 | AC13: 0.656626506 | AD13: 0.6449704142 | AE13: 0.6300578035 | AF13: 0.615819209 | AG13: 0.6055555556 | AH13: 0.5923913043 | AI13: 0.579787234 | AJ13: 0.5677083333 | AK13: 0.558974359 | AL13: 0.5477386935 | AM13: 0.5369458128 | AN13: 0.5265700483 | AO13: 0.5141509434 | AP13: 0.5046296296 | AQ13: 0.4954545455 | AR13: 0.4844444444 | AS13: 0.4739130435 | AT13: 0.4658119658 | AU13: 0.4560669456 | AV13: 0.4467213115 | AW13: 0.436
C14: 2007 | D14: 0.9553571429 | E14: 0.9732142857 | F14: 1 | G14: 1.017857143 | H14: 1.017857143 | I14: 1.044642857 | J14: 1.071428571 | K14: 1.089285714 | L14: 1.098214286 | M14: 1.116071429 | N14: 1.133928571 | O14: 1.142857143 | P14: 1.160714286 | Q14: 1.1875 | R14: 1.214285714 | S14: 1.223214286 | T14: 1.241071429 | U14: 1.267857143 | V14: 1.285714286 | W14: 1.3125 | X14: 1.330357143 | Y14: 1.357142857 | Z14: 1.383928571 | AA14: 1.419642857 | AB14: 1.446428571 | AC14: 1.482142857 | AD14: 1.508928571 | AE14: 1.544642857 | AF14: 1.580357143 | AG14: 1.607142857 | AH14: 1.642857143 | AI14: 1.678571429 | AJ14: 1.714285714 | AK14: 1.741071429 | AL14: 1.776785714 | AM14: 1.8125 | AN14: 1.848214286 | AO14: 1.892857143 | AP14: 1.928571429 | AQ14: 1.964285714 | AR14: 2.008928571 | AS14: 2.053571429 | AT14: 2.089285714 | AU14: 2.133928571 | AV14: 2.178571429 | AW14: 2.232142857
D15: 1.046728972 | E15: 1.027522936 | F15: 1 | G15: 0.9824561404 | H15: 0.9824561404 | I15: 0.9572649573 | J15: 0.9333333333 | K15: 0.9180327869 | L15: 0.9105691057 | M15: 0.896 | N15: 0.8818897638 | O15: 0.875 | P15: 0.8615384615 | Q15: 0.8421052632 | R15: 0.8235294118 | S15: 0.8175182482 | T15: 0.8057553957 | U15: 0.7887323944 | V15: 0.7777777778 | W15: 0.7619047619 | X15: 0.7516778523 | Y15: 0.7368421053 | Z15: 0.7225806452 | AA15: 0.7044025157 | AB15: 0.6913580247 | AC15: 0.6746987952 | AD15: 0.6627218935 | AE15: 0.6473988439 | AF15: 0.6327683616 | AG15: 0.6222222222 | AH15: 0.6086956522 | AI15: 0.5957446809 | AJ15: 0.5833333333 | AK15: 0.5743589744 | AL15: 0.5628140704 | AM15: 0.5517241379 | AN15: 0.5410628019 | AO15: 0.5283018868 | AP15: 0.5185185185 | AQ15: 0.5090909091 | AR15: 0.4977777778 | AS15: 0.4869565217 | AT15: 0.4786324786 | AU15: 0.4686192469 | AV15: 0.4590163934 | AW15: 0.448
C16: 2008 | D16: 0.9385964912 | E16: 0.9561403509 | F16: 0.9824561404 | G16: 1 | H16: 1 | I16: 1.026315789 | J16: 1.052631579 | K16: 1.070175439 | L16: 1.078947368 | M16: 1.096491228 | N16: 1.114035088 | O16: 1.122807018 | P16: 1.140350877 | Q16: 1.166666667 | R16: 1.192982456 | S16: 1.201754386 | T16: 1.219298246 | U16: 1.245614035 | V16: 1.263157895 | W16: 1.289473684 | X16: 1.307017544 | Y16: 1.333333333 | Z16: 1.359649123 | AA16: 1.394736842 | AB16: 1.421052632 | AC16: 1.456140351 | AD16: 1.48245614 | AE16: 1.51754386 | AF16: 1.552631579 | AG16: 1.578947368 | AH16: 1.614035088 | AI16: 1.649122807 | AJ16: 1.684210526 | AK16: 1.710526316 | AL16: 1.745614035 | AM16: 1.780701754 | AN16: 1.815789474 | AO16: 1.859649123 | AP16: 1.894736842 | AQ16: 1.929824561 | AR16: 1.973684211 | AS16: 2.01754386 | AT16: 2.052631579 | AU16: 2.096491228 | AV16: 2.140350877 | AW16: 2.192982456
D17: 1.065420561 | E17: 1.04587156 | F17: 1.017857143 | G17: 1 | H17: 1 | I17: 0.9743589744 | J17: 0.95 | K17: 0.9344262295 | L17: 0.9268292683 | M17: 0.912 | N17: 0.8976377953 | O17: 0.890625 | P17: 0.8769230769 | Q17: 0.8571428571 | R17: 0.8382352941 | S17: 0.8321167883 | T17: 0.8201438849 | U17: 0.8028169014 | V17: 0.7916666667 | W17: 0.7755102041 | X17: 0.7651006711 | Y17: 0.75 | Z17: 0.735483871 | AA17: 0.7169811321 | AB17: 0.7037037037 | AC17: 0.686746988 | AD17: 0.674556213 | AE17: 0.6589595376 | AF17: 0.6440677966 | AG17: 0.6333333333 | AH17: 0.6195652174 | AI17: 0.6063829787 | AJ17: 0.59375 | AK17: 0.5846153846 | AL17: 0.5728643216 | AM17: 0.5615763547 | AN17: 0.5507246377 | AO17: 0.5377358491 | AP17: 0.5277777778 | AQ17: 0.5181818182 | AR17: 0.5066666667 | AS17: 0.4956521739 | AT17: 0.4871794872 | AU17: 0.4769874477 | AV17: 0.4672131148 | AW17: 0.456
C18: 2009 | D18: 0.9385964912 | E18: 0.9561403509 | F18: 0.9824561404 | G18: 1 | H18: 1 | I18: 1.026315789 | J18: 1.052631579 | K18: 1.070175439 | L18: 1.078947368 | M18: 1.096491228 | N18: 1.114035088 | O18: 1.122807018 | P18: 1.140350877 | Q18: 1.166666667 | R18: 1.192982456 | S18: 1.201754386 | T18: 1.219298246 | U18: 1.245614035 | V18: 1.263157895 | W18: 1.289473684 | X18: 1.307017544 | Y18: 1.333333333 | Z18: 1.359649123 | AA18: 1.394736842 | AB18: 1.421052632 | AC18: 1.456140351 | AD18: 1.48245614 | AE18: 1.51754386 | AF18: 1.552631579 | AG18: 1.578947368 | AH18: 1.614035088 | AI18: 1.649122807 | AJ18: 1.684210526 | AK18: 1.710526316 | AL18: 1.745614035 | AM18: 1.780701754 | AN18: 1.815789474 | AO18: 1.859649123 | AP18: 1.894736842 | AQ18: 1.929824561 | AR18: 1.973684211 | AS18: 2.01754386 | AT18: 2.052631579 | AU18: 2.096491228 | AV18: 2.140350877 | AW18: 2.192982456
D19: 1.065420561 | E19: 1.04587156 | F19: 1.017857143 | G19: 1 | H19: 1 | I19: 0.9743589744 | J19: 0.95 | K19: 0.9344262295 | L19: 0.9268292683 | M19: 0.912 | N19: 0.8976377953 | O19: 0.890625 | P19: 0.8769230769 | Q19: 0.8571428571 | R19: 0.8382352941 | S19: 0.8321167883 | T19: 0.8201438849 | U19: 0.8028169014 | V19: 0.7916666667 | W19: 0.7755102041 | X19: 0.7651006711 | Y19: 0.75 | Z19: 0.735483871 | AA19: 0.7169811321 | AB19: 0.7037037037 | AC19: 0.686746988 | AD19: 0.674556213 | AE19: 0.6589595376 | AF19: 0.6440677966 | AG19: 0.6333333333 | AH19: 0.6195652174 | AI19: 0.6063829787 | AJ19: 0.59375 | AK19: 0.5846153846 | AL19: 0.5728643216 | AM19: 0.5615763547 | AN19: 0.5507246377 | AO19: 0.5377358491 | AP19: 0.5277777778 | AQ19: 0.5181818182 | AR19: 0.5066666667 | AS19: 0.4956521739 | AT19: 0.4871794872 | AU19: 0.4769874477 | AV19: 0.4672131148 | AW19: 0.456
C20: 2010 | D20: 0.9145299145 | E20: 0.9316239316 | F20: 0.9572649573 | G20: 0.9743589744 | H20: 0.9743589744 | I20: 1 | J20: 1.025641026 | K20: 1.042735043 | L20: 1.051282051 | M20: 1.068376068 | N20: 1.085470085 | O20: 1.094017094 | P20: 1.111111111 | Q20: 1.136752137 | R20: 1.162393162 | S20: 1.170940171 | T20: 1.188034188 | U20: 1.213675214 | V20: 1.230769231 | W20: 1.256410256 | X20: 1.273504274 | Y20: 1.299145299 | Z20: 1.324786325 | AA20: 1.358974359 | AB20: 1.384615385 | AC20: 1.418803419 | AD20: 1.444444444 | AE20: 1.478632479 | AF20: 1.512820513 | AG20: 1.538461538 | AH20: 1.572649573 | AI20: 1.606837607 | AJ20: 1.641025641 | AK20: 1.666666667 | AL20: 1.700854701 | AM20: 1.735042735 | AN20: 1.769230769 | AO20: 1.811965812 | AP20: 1.846153846 | AQ20: 1.88034188 | AR20: 1.923076923 | AS20: 1.965811966 | AT20: 2 | AU20: 2.042735043 | AV20: 2.085470085 | AW20: 2.136752137
D21: 1.093457944 | E21: 1.073394495 | F21: 1.044642857 | G21: 1.026315789 | H21: 1.026315789 | I21: 1 | J21: 0.975 | K21: 0.9590163934 | L21: 0.9512195122 | M21: 0.936 | N21: 0.9212598425 | O21: 0.9140625 | P21: 0.9 | Q21: 0.8796992481 | R21: 0.8602941176 | S21: 0.8540145985 | T21: 0.8417266187 | U21: 0.823943662 | V21: 0.8125 | W21: 0.7959183673 | X21: 0.7852348993 | Y21: 0.7697368421 | Z21: 0.7548387097 | AA21: 0.7358490566 | AB21: 0.7222222222 | AC21: 0.7048192771 | AD21: 0.6923076923 | AE21: 0.676300578 | AF21: 0.6610169492 | AG21: 0.65 | AH21: 0.6358695652 | AI21: 0.6223404255 | AJ21: 0.609375 | AK21: 0.6 | AL21: 0.5879396985 | AM21: 0.5763546798 | AN21: 0.5652173913 | AO21: 0.5518867925 | AP21: 0.5416666667 | AQ21: 0.5318181818 | AR21: 0.52 | AS21: 0.5086956522 | AT21: 0.5 | AU21: 0.489539749 | AV21: 0.4795081967 | AW21: 0.468
C22: 2011 | D22: 0.8916666667 | E22: 0.9083333333 | F22: 0.9333333333 | G22: 0.95 | H22: 0.95 | I22: 0.975 | J22: 1 | K22: 1.016666667 | L22: 1.025 | M22: 1.041666667 | N22: 1.058333333 | O22: 1.066666667 | P22: 1.083333333 | Q22: 1.108333333 | R22: 1.133333333 | S22: 1.141666667 | T22: 1.158333333 | U22: 1.183333333 | V22: 1.2 | W22: 1.225 | X22: 1.241666667 | Y22: 1.266666667 | Z22: 1.291666667 | AA22: 1.325 | AB22: 1.35 | AC22: 1.383333333 | AD22: 1.408333333 | AE22: 1.441666667 | AF22: 1.475 | AG22: 1.5 | AH22: 1.533333333 | AI22: 1.566666667 | AJ22: 1.6 | AK22: 1.625 | AL22: 1.658333333 | AM22: 1.691666667 | AN22: 1.725 | AO22: 1.766666667 | AP22: 1.8 | AQ22: 1.833333333 | AR22: 1.875 | AS22: 1.916666667 | AT22: 1.95 | AU22: 1.991666667 | AV22: 2.033333333 | AW22: 2.083333333
D23: 1.121495327 | E23: 1.100917431 | F23: 1.071428571 | G23: 1.052631579 | H23: 1.052631579 | I23: 1.025641026 | J23: 1 | K23: 0.9836065574 | L23: 0.9756097561 | M23: 0.96 | N23: 0.9448818898 | O23: 0.9375 | P23: 0.9230769231 | Q23: 0.9022556391 | R23: 0.8823529412 | S23: 0.8759124088 | T23: 0.8633093525 | U23: 0.8450704225 | V23: 0.8333333333 | W23: 0.8163265306 | X23: 0.8053691275 | Y23: 0.7894736842 | Z23: 0.7741935484 | AA23: 0.7547169811 | AB23: 0.7407407407 | AC23: 0.7228915663 | AD23: 0.7100591716 | AE23: 0.6936416185 | AF23: 0.6779661017 | AG23: 0.6666666667 | AH23: 0.652173913 | AI23: 0.6382978723 | AJ23: 0.625 | AK23: 0.6153846154 | AL23: 0.6030150754 | AM23: 0.5911330049 | AN23: 0.5797101449 | AO23: 0.5660377358 | AP23: 0.5555555556 | AQ23: 0.5454545455 | AR23: 0.5333333333 | AS23: 0.5217391304 | AT23: 0.5128205128 | AU23: 0.5020920502 | AV23: 0.4918032787 | AW23: 0.48
C24: 2012 | D24: 0.8770491803 | E24: 0.893442623 | F24: 0.9180327869 | G24: 0.9344262295 | H24: 0.9344262295 | I24: 0.9590163934 | J24: 0.9836065574 | K24: 1 | L24: 1.008196721 | M24: 1.024590164 | N24: 1.040983607 | O24: 1.049180328 | P24: 1.06557377 | Q24: 1.090163934 | R24: 1.114754098 | S24: 1.12295082 | T24: 1.139344262 | U24: 1.163934426 | V24: 1.180327869 | W24: 1.204918033 | X24: 1.221311475 | Y24: 1.245901639 | Z24: 1.270491803 | AA24: 1.303278689 | AB24: 1.327868852 | AC24: 1.360655738 | AD24: 1.385245902 | AE24: 1.418032787 | AF24: 1.450819672 | AG24: 1.475409836 | AH24: 1.508196721 | AI24: 1.540983607 | AJ24: 1.573770492 | AK24: 1.598360656 | AL24: 1.631147541 | AM24: 1.663934426 | AN24: 1.696721311 | AO24: 1.737704918 | AP24: 1.770491803 | AQ24: 1.803278689 | AR24: 1.844262295 | AS24: 1.885245902 | AT24: 1.918032787 | AU24: 1.959016393 | AV24: 2 | AW24: 2.049180328
D25: 1.140186916 | E25: 1.119266055 | F25: 1.089285714 | G25: 1.070175439 | H25: 1.070175439 | I25: 1.042735043 | J25: 1.016666667 | K25: 1 | L25: 0.9918699187 | M25: 0.976 | N25: 0.9606299213 | O25: 0.953125 | P25: 0.9384615385 | Q25: 0.9172932331 | R25: 0.8970588235 | S25: 0.8905109489 | T25: 0.8776978417 | U25: 0.8591549296 | V25: 0.8472222222 | W25: 0.8299319728 | X25: 0.8187919463 | Y25: 0.8026315789 | Z25: 0.7870967742 | AA25: 0.7672955975 | AB25: 0.7530864198 | AC25: 0.734939759 | AD25: 0.7218934911 | AE25: 0.7052023121 | AF25: 0.6892655367 | AG25: 0.6777777778 | AH25: 0.6630434783 | AI25: 0.6489361702 | AJ25: 0.6354166667 | AK25: 0.6256410256 | AL25: 0.6130653266 | AM25: 0.6009852217 | AN25: 0.5893719807 | AO25: 0.5754716981 | AP25: 0.5648148148 | AQ25: 0.5545454545 | AR25: 0.5422222222 | AS25: 0.5304347826 | AT25: 0.5213675214 | AU25: 0.510460251 | AV25: 0.5 | AW25: 0.488
C26: 2013 | D26: 0.8699186992 | E26: 0.8861788618 | F26: 0.9105691057 | G26: 0.9268292683 | H26: 0.9268292683 | I26: 0.9512195122 | J26: 0.9756097561 | K26: 0.9918699187 | L26: 1 | M26: 1.016260163 | N26: 1.032520325 | O26: 1.040650407 | P26: 1.056910569 | Q26: 1.081300813 | R26: 1.105691057 | S26: 1.113821138 | T26: 1.130081301 | U26: 1.154471545 | V26: 1.170731707 | W26: 1.195121951 | X26: 1.211382114 | Y26: 1.235772358 | Z26: 1.260162602 | AA26: 1.292682927 | AB26: 1.317073171 | AC26: 1.349593496 | AD26: 1.37398374 | AE26: 1.406504065 | AF26: 1.43902439 | AG26: 1.463414634 | AH26: 1.495934959 | AI26: 1.528455285 | AJ26: 1.56097561 | AK26: 1.585365854 | AL26: 1.617886179 | AM26: 1.650406504 | AN26: 1.682926829 | AO26: 1.723577236 | AP26: 1.756097561 | AQ26: 1.788617886 | AR26: 1.829268293 | AS26: 1.869918699 | AT26: 1.902439024 | AU26: 1.943089431 | AV26: 1.983739837 | AW26: 2.032520325
D27: 1.14953271 | E27: 1.128440367 | F27: 1.098214286 | G27: 1.078947368 | H27: 1.078947368 | I27: 1.051282051 | J27: 1.025 | K27: 1.008196721 | L27: 1 | M27: 0.984 | N27: 0.968503937 | O27: 0.9609375 | P27: 0.9461538462 | Q27: 0.9248120301 | R27: 0.9044117647 | S27: 0.897810219 | T27: 0.8848920863 | U27: 0.8661971831 | V27: 0.8541666667 | W27: 0.8367346939 | X27: 0.8255033557 | Y27: 0.8092105263 | Z27: 0.7935483871 | AA27: 0.7735849057 | AB27: 0.7592592593 | AC27: 0.7409638554 | AD27: 0.7278106509 | AE27: 0.710982659 | AF27: 0.6949152542 | AG27: 0.6833333333 | AH27: 0.6684782609 | AI27: 0.6542553191 | AJ27: 0.640625 | AK27: 0.6307692308 | AL27: 0.6180904523 | AM27: 0.60591133 | AN27: 0.5942028986 | AO27: 0.5801886792 | AP27: 0.5694444444 | AQ27: 0.5590909091 | AR27: 0.5466666667 | AS27: 0.5347826087 | AT27: 0.5256410256 | AU27: 0.5146443515 | AV27: 0.5040983607 | AW27: 0.492
C28: 2014 | D28: 0.856 | E28: 0.872 | F28: 0.896 | G28: 0.912 | H28: 0.912 | I28: 0.936 | J28: 0.96 | K28: 0.976 | L28: 0.984 | M28: 1 | N28: 1.016 | O28: 1.024 | P28: 1.04 | Q28: 1.064 | R28: 1.088 | S28: 1.096 | T28: 1.112 | U28: 1.136 | V28: 1.152 | W28: 1.176 | X28: 1.192 | Y28: 1.216 | Z28: 1.24 | AA28: 1.272 | AB28: 1.296 | AC28: 1.328 | AD28: 1.352 | AE28: 1.384 | AF28: 1.416 | AG28: 1.44 | AH28: 1.472 | AI28: 1.504 | AJ28: 1.536 | AK28: 1.56 | AL28: 1.592 | AM28: 1.624 | AN28: 1.656 | AO28: 1.696 | AP28: 1.728 | AQ28: 1.76 | AR28: 1.8 | AS28: 1.84 | AT28: 1.872 | AU28: 1.912 | AV28: 1.952 | AW28: 2
D29: 1.168224299 | E29: 1.146788991 | F29: 1.116071429 | G29: 1.096491228 | H29: 1.096491228 | I29: 1.068376068 | J29: 1.041666667 | K29: 1.024590164 | L29: 1.016260163 | M29: 1 | N29: 0.9842519685 | O29: 0.9765625 | P29: 0.9615384615 | Q29: 0.9398496241 | R29: 0.9191176471 | S29: 0.9124087591 | T29: 0.8992805755 | U29: 0.8802816901 | V29: 0.8680555556 | W29: 0.8503401361 | X29: 0.8389261745 | Y29: 0.8223684211 | Z29: 0.8064516129 | AA29: 0.786163522 | AB29: 0.7716049383 | AC29: 0.7530120482 | AD29: 0.7396449704 | AE29: 0.7225433526 | AF29: 0.7062146893 | AG29: 0.6944444444 | AH29: 0.6793478261 | AI29: 0.664893617 | AJ29: 0.6510416667 | AK29: 0.641025641 | AL29: 0.6281407035 | AM29: 0.6157635468 | AN29: 0.6038647343 | AO29: 0.5896226415 | AP29: 0.5787037037 | AQ29: 0.5681818182 | AR29: 0.5555555556 | AS29: 0.5434782609 | AT29: 0.5341880342 | AU29: 0.5230125523 | AV29: 0.512295082 | AW29: 0.5
C30: 2015 | D30: 0.842519685 | E30: 0.8582677165 | F30: 0.8818897638 | G30: 0.8976377953 | H30: 0.8976377953 | I30: 0.9212598425 | J30: 0.9448818898 | K30: 0.9606299213 | L30: 0.968503937 | M30: 0.9842519685 | N30: 1 | O30: 1.007874016 | P30: 1.023622047 | Q30: 1.047244094 | R30: 1.070866142 | S30: 1.078740157 | T30: 1.094488189 | U30: 1.118110236 | V30: 1.133858268 | W30: 1.157480315 | X30: 1.173228346 | Y30: 1.196850394 | Z30: 1.220472441 | AA30: 1.251968504 | AB30: 1.275590551 | AC30: 1.307086614 | AD30: 1.330708661 | AE30: 1.362204724 | AF30: 1.393700787 | AG30: 1.417322835 | AH30: 1.448818898 | AI30: 1.480314961 | AJ30: 1.511811024 | AK30: 1.535433071 | AL30: 1.566929134 | AM30: 1.598425197 | AN30: 1.62992126 | AO30: 1.669291339 | AP30: 1.700787402 | AQ30: 1.732283465 | AR30: 1.771653543 | AS30: 1.811023622 | AT30: 1.842519685 | AU30: 1.881889764 | AV30: 1.921259843 | AW30: 1.968503937
D31: 1.186915888 | E31: 1.165137615 | F31: 1.133928571 | G31: 1.114035088 | H31: 1.114035088 | I31: 1.085470085 | J31: 1.058333333 | K31: 1.040983607 | L31: 1.032520325 | M31: 1.016 | N31: 1 | O31: 0.9921875 | P31: 0.9769230769 | Q31: 0.954887218 | R31: 0.9338235294 | S31: 0.9270072993 | T31: 0.9136690647 | U31: 0.8943661972 | V31: 0.8819444444 | W31: 0.8639455782 | X31: 0.8523489933 | Y31: 0.8355263158 | Z31: 0.8193548387 | AA31: 0.7987421384 | AB31: 0.7839506173 | AC31: 0.765060241 | AD31: 0.7514792899 | AE31: 0.7341040462 | AF31: 0.7175141243 | AG31: 0.7055555556 | AH31: 0.6902173913 | AI31: 0.6755319149 | AJ31: 0.6614583333 | AK31: 0.6512820513 | AL31: 0.6381909548 | AM31: 0.6256157635 | AN31: 0.61352657 | AO31: 0.5990566038 | AP31: 0.587962963 | AQ31: 0.5772727273 | AR31: 0.5644444444 | AS31: 0.552173913 | AT31: 0.5427350427 | AU31: 0.5313807531 | AV31: 0.5204918033 | AW31: 0.508
C32: 2016 | D32: 0.8359375 | E32: 0.8515625 | F32: 0.875 | G32: 0.890625 | H32: 0.890625 | I32: 0.9140625 | J32: 0.9375 | K32: 0.953125 | L32: 0.9609375 | M32: 0.9765625 | N32: 0.9921875 | O32: 1 | P32: 1.015625 | Q32: 1.0390625 | R32: 1.0625 | S32: 1.0703125 | T32: 1.0859375 | U32: 1.109375 | V32: 1.125 | W32: 1.1484375 | X32: 1.1640625 | Y32: 1.1875 | Z32: 1.2109375 | AA32: 1.2421875 | AB32: 1.265625 | AC32: 1.296875 | AD32: 1.3203125 | AE32: 1.3515625 | AF32: 1.3828125 | AG32: 1.40625 | AH32: 1.4375 | AI32: 1.46875 | AJ32: 1.5 | AK32: 1.5234375 | AL32: 1.5546875 | AM32: 1.5859375 | AN32: 1.6171875 | AO32: 1.65625 | AP32: 1.6875 | AQ32: 1.71875 | AR32: 1.7578125 | AS32: 1.796875 | AT32: 1.828125 | AU32: 1.8671875 | AV32: 1.90625 | AW32: 1.953125
D33: 1.196261682 | E33: 1.174311927 | F33: 1.142857143 | G33: 1.122807018 | H33: 1.122807018 | I33: 1.094017094 | J33: 1.066666667 | K33: 1.049180328 | L33: 1.040650407 | M33: 1.024 | N33: 1.007874016 | O33: 1 | P33: 0.9846153846 | Q33: 0.962406015 | R33: 0.9411764706 | S33: 0.9343065693 | T33: 0.9208633094 | U33: 0.9014084507 | V33: 0.8888888889 | W33: 0.8707482993 | X33: 0.8590604027 | Y33: 0.8421052632 | Z33: 0.8258064516 | AA33: 0.8050314465 | AB33: 0.7901234568 | AC33: 0.7710843373 | AD33: 0.7573964497 | AE33: 0.7398843931 | AF33: 0.7231638418 | AG33: 0.7111111111 | AH33: 0.6956521739 | AI33: 0.6808510638 | AJ33: 0.6666666667 | AK33: 0.6564102564 | AL33: 0.6432160804 | AM33: 0.6305418719 | AN33: 0.6183574879 | AO33: 0.6037735849 | AP33: 0.5925925926 | AQ33: 0.5818181818 | AR33: 0.5688888889 | AS33: 0.5565217391 | AT33: 0.547008547 | AU33: 0.5355648536 | AV33: 0.5245901639 | AW33: 0.512
C34: 2017 | D34: 0.8230769231 | E34: 0.8384615385 | F34: 0.8615384615 | G34: 0.8769230769 | H34: 0.8769230769 | I34: 0.9 | J34: 0.9230769231 | K34: 0.9384615385 | L34: 0.9461538462 | M34: 0.9615384615 | N34: 0.9769230769 | O34: 0.9846153846 | P34: 1 | Q34: 1.023076923 | R34: 1.046153846 | S34: 1.053846154 | T34: 1.069230769 | U34: 1.092307692 | V34: 1.107692308 | W34: 1.130769231 | X34: 1.146153846 | Y34: 1.169230769 | Z34: 1.192307692 | AA34: 1.223076923 | AB34: 1.246153846 | AC34: 1.276923077 | AD34: 1.3 | AE34: 1.330769231 | AF34: 1.361538462 | AG34: 1.384615385 | AH34: 1.415384615 | AI34: 1.446153846 | AJ34: 1.476923077 | AK34: 1.5 | AL34: 1.530769231 | AM34: 1.561538462 | AN34: 1.592307692 | AO34: 1.630769231 | AP34: 1.661538462 | AQ34: 1.692307692 | AR34: 1.730769231 | AS34: 1.769230769 | AT34: 1.8 | AU34: 1.838461538 | AV34: 1.876923077 | AW34: 1.923076923
D35: 1.214953271 | E35: 1.19266055 | F35: 1.160714286 | G35: 1.140350877 | H35: 1.140350877 | I35: 1.111111111 | J35: 1.083333333 | K35: 1.06557377 | L35: 1.056910569 | M35: 1.04 | N35: 1.023622047 | O35: 1.015625 | P35: 1 | Q35: 0.977443609 | R35: 0.9558823529 | S35: 0.9489051095 | T35: 0.9352517986 | U35: 0.9154929577 | V35: 0.9027777778 | W35: 0.8843537415 | X35: 0.8724832215 | Y35: 0.8552631579 | Z35: 0.8387096774 | AA35: 0.8176100629 | AB35: 0.8024691358 | AC35: 0.7831325301 | AD35: 0.7692307692 | AE35: 0.7514450867 | AF35: 0.7344632768 | AG35: 0.7222222222 | AH35: 0.7065217391 | AI35: 0.6914893617 | AJ35: 0.6770833333 | AK35: 0.6666666667 | AL35: 0.6532663317 | AM35: 0.6403940887 | AN35: 0.6280193237 | AO35: 0.6132075472 | AP35: 0.6018518519 | AQ35: 0.5909090909 | AR35: 0.5777777778 | AS35: 0.5652173913 | AT35: 0.5555555556 | AU35: 0.5439330544 | AV35: 0.5327868852 | AW35: 0.52
C36: 2018 | D36: 0.8045112782 | E36: 0.8195488722 | F36: 0.8421052632 | G36: 0.8571428571 | H36: 0.8571428571 | I36: 0.8796992481 | J36: 0.9022556391 | K36: 0.9172932331 | L36: 0.9248120301 | M36: 0.9398496241 | N36: 0.954887218 | O36: 0.962406015 | P36: 0.977443609 | Q36: 1 | R36: 1.022556391 | S36: 1.030075188 | T36: 1.045112782 | U36: 1.067669173 | V36: 1.082706767 | W36: 1.105263158 | X36: 1.120300752 | Y36: 1.142857143 | Z36: 1.165413534 | AA36: 1.195488722 | AB36: 1.218045113 | AC36: 1.248120301 | AD36: 1.270676692 | AE36: 1.30075188 | AF36: 1.330827068 | AG36: 1.353383459 | AH36: 1.383458647 | AI36: 1.413533835 | AJ36: 1.443609023 | AK36: 1.466165414 | AL36: 1.496240602 | AM36: 1.526315789 | AN36: 1.556390977 | AO36: 1.593984962 | AP36: 1.62406015 | AQ36: 1.654135338 | AR36: 1.691729323 | AS36: 1.729323308 | AT36: 1.759398496 | AU36: 1.796992481 | AV36: 1.834586466 | AW36: 1.879699248
D37: 1.242990654 | E37: 1.220183486 | F37: 1.1875 | G37: 1.166666667 | H37: 1.166666667 | I37: 1.136752137 | J37: 1.108333333 | K37: 1.090163934 | L37: 1.081300813 | M37: 1.064 | N37: 1.047244094 | O37: 1.0390625 | P37: 1.023076923 | Q37: 1 | R37: 0.9779411765 | S37: 0.9708029197 | T37: 0.9568345324 | U37: 0.9366197183 | V37: 0.9236111111 | W37: 0.9047619048 | X37: 0.8926174497 | Y37: 0.875 | Z37: 0.8580645161 | AA37: 0.8364779874 | AB37: 0.8209876543 | AC37: 0.8012048193 | AD37: 0.7869822485 | AE37: 0.7687861272 | AF37: 0.7514124294 | AG37: 0.7388888889 | AH37: 0.722826087 | AI37: 0.7074468085 | AJ37: 0.6927083333 | AK37: 0.6820512821 | AL37: 0.6683417085 | AM37: 0.6551724138 | AN37: 0.6425120773 | AO37: 0.6273584906 | AP37: 0.6157407407 | AQ37: 0.6045454545 | AR37: 0.5911111111 | AS37: 0.5782608696 | AT37: 0.5683760684 | AU37: 0.5564853556 | AV37: 0.5450819672 | AW37: 0.532
C38: 2019 | D38: 0.7867647059 | E38: 0.8014705882 | F38: 0.8235294118 | G38: 0.8382352941 | H38: 0.8382352941 | I38: 0.8602941176 | J38: 0.8823529412 | K38: 0.8970588235 | L38: 0.9044117647 | M38: 0.9191176471 | N38: 0.9338235294 | O38: 0.9411764706 | P38: 0.9558823529 | Q38: 0.9779411765 | R38: 1 | S38: 1.007352941 | T38: 1.022058824 | U38: 1.044117647 | V38: 1.058823529 | W38: 1.080882353 | X38: 1.095588235 | Y38: 1.117647059 | Z38: 1.139705882 | AA38: 1.169117647 | AB38: 1.191176471 | AC38: 1.220588235 | AD38: 1.242647059 | AE38: 1.272058824 | AF38: 1.301470588 | AG38: 1.323529412 | AH38: 1.352941176 | AI38: 1.382352941 | AJ38: 1.411764706 | AK38: 1.433823529 | AL38: 1.463235294 | AM38: 1.492647059 | AN38: 1.522058824 | AO38: 1.558823529 | AP38: 1.588235294 | AQ38: 1.617647059 | AR38: 1.654411765 | AS38: 1.691176471 | AT38: 1.720588235 | AU38: 1.757352941 | AV38: 1.794117647 | AW38: 1.838235294
D39: 1.271028037 | E39: 1.247706422 | F39: 1.214285714 | G39: 1.192982456 | H39: 1.192982456 | I39: 1.162393162 | J39: 1.133333333 | K39: 1.114754098 | L39: 1.105691057 | M39: 1.088 | N39: 1.070866142 | O39: 1.0625 | P39: 1.046153846 | Q39: 1.022556391 | R39: 1 | S39: 0.9927007299 | T39: 0.9784172662 | U39: 0.9577464789 | V39: 0.9444444444 | W39: 0.925170068 | X39: 0.9127516779 | Y39: 0.8947368421 | Z39: 0.8774193548 | AA39: 0.8553459119 | AB39: 0.8395061728 | AC39: 0.8192771084 | AD39: 0.8047337278 | AE39: 0.7861271676 | AF39: 0.7683615819 | AG39: 0.7555555556 | AH39: 0.7391304348 | AI39: 0.7234042553 | AJ39: 0.7083333333 | AK39: 0.6974358974 | AL39: 0.6834170854 | AM39: 0.6699507389 | AN39: 0.6570048309 | AO39: 0.641509434 | AP39: 0.6296296296 | AQ39: 0.6181818182 | AR39: 0.6044444444 | AS39: 0.5913043478 | AT39: 0.5811965812 | AU39: 0.5690376569 | AV39: 0.5573770492 | AW39: 0.544
C40: 2020 | D40: 0.7810218978 | E40: 0.795620438 | F40: 0.8175182482 | G40: 0.8321167883 | H40: 0.8321167883 | I40: 0.8540145985 | J40: 0.8759124088 | K40: 0.8905109489 | L40: 0.897810219 | M40: 0.9124087591 | N40: 0.9270072993 | O40: 0.9343065693 | P40: 0.9489051095 | Q40: 0.9708029197 | R40: 0.9927007299 | S40: 1 | T40: 1.01459854 | U40: 1.03649635 | V40: 1.051094891 | W40: 1.072992701 | X40: 1.087591241 | Y40: 1.109489051 | Z40: 1.131386861 | AA40: 1.160583942 | AB40: 1.182481752 | AC40: 1.211678832 | AD40: 1.233576642 | AE40: 1.262773723 | AF40: 1.291970803 | AG40: 1.313868613 | AH40: 1.343065693 | AI40: 1.372262774 | AJ40: 1.401459854 | AK40: 1.423357664 | AL40: 1.452554745 | AM40: 1.481751825 | AN40: 1.510948905 | AO40: 1.547445255 | AP40: 1.576642336 | AQ40: 1.605839416 | AR40: 1.642335766 | AS40: 1.678832117 | AT40: 1.708029197 | AU40: 1.744525547 | AV40: 1.781021898 | AW40: 1.824817518
D41: 1.280373832 | E41: 1.256880734 | F41: 1.223214286 | G41: 1.201754386 | H41: 1.201754386 | I41: 1.170940171 | J41: 1.141666667 | K41: 1.12295082 | L41: 1.113821138 | M41: 1.096 | N41: 1.078740157 | O41: 1.0703125 | P41: 1.053846154 | Q41: 1.030075188 | R41: 1.007352941 | S41: 1 | T41: 0.9856115108 | U41: 0.9647887324 | V41: 0.9513888889 | W41: 0.9319727891 | X41: 0.9194630872 | Y41: 0.9013157895 | Z41: 0.8838709677 | AA41: 0.8616352201 | AB41: 0.8456790123 | AC41: 0.8253012048 | AD41: 0.8106508876 | AE41: 0.7919075145 | AF41: 0.7740112994 | AG41: 0.7611111111 | AH41: 0.7445652174 | AI41: 0.7287234043 | AJ41: 0.7135416667 | AK41: 0.7025641026 | AL41: 0.6884422111 | AM41: 0.6748768473 | AN41: 0.6618357488 | AO41: 0.6462264151 | AP41: 0.6342592593 | AQ41: 0.6227272727 | AR41: 0.6088888889 | AS41: 0.5956521739 | AT41: 0.5854700855 | AU41: 0.5732217573 | AV41: 0.5614754098 | AW41: 0.548
C42: 2021 | D42: 0.7697841727 | E42: 0.7841726619 | F42: 0.8057553957 | G42: 0.8201438849 | H42: 0.8201438849 | I42: 0.8417266187 | J42: 0.8633093525 | K42: 0.8776978417 | L42: 0.8848920863 | M42: 0.8992805755 | N42: 0.9136690647 | O42: 0.9208633094 | P42: 0.9352517986 | Q42: 0.9568345324 | R42: 0.9784172662 | S42: 0.9856115108 | T42: 1 | U42: 1.021582734 | V42: 1.035971223 | W42: 1.057553957 | X42: 1.071942446 | Y42: 1.09352518 | Z42: 1.115107914 | AA42: 1.143884892 | AB42: 1.165467626 | AC42: 1.194244604 | AD42: 1.215827338 | AE42: 1.244604317 | AF42: 1.273381295 | AG42: 1.294964029 | AH42: 1.323741007 | AI42: 1.352517986 | AJ42: 1.381294964 | AK42: 1.402877698 | AL42: 1.431654676 | AM42: 1.460431655 | AN42: 1.489208633 | AO42: 1.525179856 | AP42: 1.553956835 | AQ42: 1.582733813 | AR42: 1.618705036 | AS42: 1.654676259 | AT42: 1.683453237 | AU42: 1.71942446 | AV42: 1.755395683 | AW42: 1.798561151
D43: 1.299065421 | E43: 1.275229358 | F43: 1.241071429 | G43: 1.219298246 | H43: 1.219298246 | I43: 1.188034188 | J43: 1.158333333 | K43: 1.139344262 | L43: 1.130081301 | M43: 1.112 | N43: 1.094488189 | O43: 1.0859375 | P43: 1.069230769 | Q43: 1.045112782 | R43: 1.022058824 | S43: 1.01459854 | T43: 1 | U43: 0.9788732394 | V43: 0.9652777778 | W43: 0.9455782313 | X43: 0.932885906 | Y43: 0.9144736842 | Z43: 0.8967741935 | AA43: 0.8742138365 | AB43: 0.8580246914 | AC43: 0.8373493976 | AD43: 0.8224852071 | AE43: 0.8034682081 | AF43: 0.7853107345 | AG43: 0.7722222222 | AH43: 0.7554347826 | AI43: 0.7393617021 | AJ43: 0.7239583333 | AK43: 0.7128205128 | AL43: 0.6984924623 | AM43: 0.684729064 | AN43: 0.6714975845 | AO43: 0.6556603774 | AP43: 0.6435185185 | AQ43: 0.6318181818 | AR43: 0.6177777778 | AS43: 0.6043478261 | AT43: 0.594017094 | AU43: 0.5815899582 | AV43: 0.5696721311 | AW43: 0.556
C44: 2022 | D44: 0.7535211268 | E44: 0.7676056338 | F44: 0.7887323944 | G44: 0.8028169014 | H44: 0.8028169014 | I44: 0.823943662 | J44: 0.8450704225 | K44: 0.8591549296 | L44: 0.8661971831 | M44: 0.8802816901 | N44: 0.8943661972 | O44: 0.9014084507 | P44: 0.9154929577 | Q44: 0.9366197183 | R44: 0.9577464789 | S44: 0.9647887324 | T44: 0.9788732394 | U44: 1 | V44: 1.014084507 | W44: 1.035211268 | X44: 1.049295775 | Y44: 1.070422535 | Z44: 1.091549296 | AA44: 1.11971831 | AB44: 1.14084507 | AC44: 1.169014085 | AD44: 1.190140845 | AE44: 1.218309859 | AF44: 1.246478873 | AG44: 1.267605634 | AH44: 1.295774648 | AI44: 1.323943662 | AJ44: 1.352112676 | AK44: 1.373239437 | AL44: 1.401408451 | AM44: 1.429577465 | AN44: 1.457746479 | AO44: 1.492957746 | AP44: 1.521126761 | AQ44: 1.549295775 | AR44: 1.584507042 | AS44: 1.61971831 | AT44: 1.647887324 | AU44: 1.683098592 | AV44: 1.718309859 | AW44: 1.76056338
D45: 1.327102804 | E45: 1.302752294 | F45: 1.267857143 | G45: 1.245614035 | H45: 1.245614035 | I45: 1.213675214 | J45: 1.183333333 | K45: 1.163934426 | L45: 1.154471545 | M45: 1.136 | N45: 1.118110236 | O45: 1.109375 | P45: 1.092307692 | Q45: 1.067669173 | R45: 1.044117647 | S45: 1.03649635 | T45: 1.021582734 | U45: 1 | V45: 0.9861111111 | W45: 0.9659863946 | X45: 0.9530201342 | Y45: 0.9342105263 | Z45: 0.9161290323 | AA45: 0.893081761 | AB45: 0.8765432099 | AC45: 0.8554216867 | AD45: 0.8402366864 | AE45: 0.8208092486 | AF45: 0.802259887 | AG45: 0.7888888889 | AH45: 0.7717391304 | AI45: 0.7553191489 | AJ45: 0.7395833333 | AK45: 0.7282051282 | AL45: 0.7135678392 | AM45: 0.6995073892 | AN45: 0.6859903382 | AO45: 0.6698113208 | AP45: 0.6574074074 | AQ45: 0.6454545455 | AR45: 0.6311111111 | AS45: 0.6173913043 | AT45: 0.6068376068 | AU45: 0.5941422594 | AV45: 0.5819672131 | AW45: 0.568
C46: 2023 | D46: 0.7430555556 | E46: 0.7569444444 | F46: 0.7777777778 | G46: 0.7916666667 | H46: 0.7916666667 | I46: 0.8125 | J46: 0.8333333333 | K46: 0.8472222222 | L46: 0.8541666667 | M46: 0.8680555556 | N46: 0.8819444444 | O46: 0.8888888889 | P46: 0.9027777778 | Q46: 0.9236111111 | R46: 0.9444444444 | S46: 0.9513888889 | T46: 0.9652777778 | U46: 0.9861111111 | V46: 1 | W46: 1.020833333 | X46: 1.034722222 | Y46: 1.055555556 | Z46: 1.076388889 | AA46: 1.104166667 | AB46: 1.125 | AC46: 1.152777778 | AD46: 1.173611111 | AE46: 1.201388889 | AF46: 1.229166667 | AG46: 1.25 | AH46: 1.277777778 | AI46: 1.305555556 | AJ46: 1.333333333 | AK46: 1.354166667 | AL46: 1.381944444 | AM46: 1.409722222 | AN46: 1.4375 | AO46: 1.472222222 | AP46: 1.5 | AQ46: 1.527777778 | AR46: 1.5625 | AS46: 1.597222222 | AT46: 1.625 | AU46: 1.659722222 | AV46: 1.694444444 | AW46: 1.736111111
D47: 1.345794393 | E47: 1.321100917 | F47: 1.285714286 | G47: 1.263157895 | H47: 1.263157895 | I47: 1.230769231 | J47: 1.2 | K47: 1.180327869 | L47: 1.170731707 | M47: 1.152 | N47: 1.133858268 | O47: 1.125 | P47: 1.107692308 | Q47: 1.082706767 | R47: 1.058823529 | S47: 1.051094891 | T47: 1.035971223 | U47: 1.014084507 | V47: 1 | W47: 0.9795918367 | X47: 0.966442953 | Y47: 0.9473684211 | Z47: 0.9290322581 | AA47: 0.9056603774 | AB47: 0.8888888889 | AC47: 0.8674698795 | AD47: 0.8520710059 | AE47: 0.8323699422 | AF47: 0.813559322 | AG47: 0.8 | AH47: 0.7826086957 | AI47: 0.7659574468 | AJ47: 0.75 | AK47: 0.7384615385 | AL47: 0.7236180905 | AM47: 0.7093596059 | AN47: 0.6956521739 | AO47: 0.679245283 | AP47: 0.6666666667 | AQ47: 0.6545454545 | AR47: 0.64 | AS47: 0.6260869565 | AT47: 0.6153846154 | AU47: 0.6025104603 | AV47: 0.5901639344 | AW47: 0.576
C48: 2024 | D48: 0.7278911565 | E48: 0.7414965986 | F48: 0.7619047619 | G48: 0.7755102041 | H48: 0.7755102041 | I48: 0.7959183673 | J48: 0.8163265306 | K48: 0.8299319728 | L48: 0.8367346939 | M48: 0.8503401361 | N48: 0.8639455782 | O48: 0.8707482993 | P48: 0.8843537415 | Q48: 0.9047619048 | R48: 0.925170068 | S48: 0.9319727891 | T48: 0.9455782313 | U48: 0.9659863946 | V48: 0.9795918367 | W48: 1 | X48: 1.013605442 | Y48: 1.034013605 | Z48: 1.054421769 | AA48: 1.081632653 | AB48: 1.102040816 | AC48: 1.129251701 | AD48: 1.149659864 | AE48: 1.176870748 | AF48: 1.204081633 | AG48: 1.224489796 | AH48: 1.25170068 | AI48: 1.278911565 | AJ48: 1.306122449 | AK48: 1.326530612 | AL48: 1.353741497 | AM48: 1.380952381 | AN48: 1.408163265 | AO48: 1.442176871 | AP48: 1.469387755 | AQ48: 1.496598639 | AR48: 1.530612245 | AS48: 1.56462585 | AT48: 1.591836735 | AU48: 1.62585034 | AV48: 1.659863946 | AW48: 1.700680272
D49: 1.373831776 | E49: 1.348623853 | F49: 1.3125 | G49: 1.289473684 | H49: 1.289473684 | I49: 1.256410256 | J49: 1.225 | K49: 1.204918033 | L49: 1.195121951 | M49: 1.176 | N49: 1.157480315 | O49: 1.1484375 | P49: 1.130769231 | Q49: 1.105263158 | R49: 1.080882353 | S49: 1.072992701 | T49: 1.057553957 | U49: 1.035211268 | V49: 1.020833333 | W49: 1 | X49: 0.9865771812 | Y49: 0.9671052632 | Z49: 0.9483870968 | AA49: 0.9245283019 | AB49: 0.9074074074 | AC49: 0.8855421687 | AD49: 0.8698224852 | AE49: 0.8497109827 | AF49: 0.8305084746 | AG49: 0.8166666667 | AH49: 0.7989130435 | AI49: 0.7819148936 | AJ49: 0.765625 | AK49: 0.7538461538 | AL49: 0.7386934673 | AM49: 0.724137931 | AN49: 0.7101449275 | AO49: 0.6933962264 | AP49: 0.6805555556 | AQ49: 0.6681818182 | AR49: 0.6533333333 | AS49: 0.6391304348 | AT49: 0.6282051282 | AU49: 0.6150627615 | AV49: 0.6024590164 | AW49: 0.588
C50: 2025 | D50: 0.7181208054 | E50: 0.7315436242 | F50: 0.7516778523 | G50: 0.7651006711 | H50: 0.7651006711 | I50: 0.7852348993 | J50: 0.8053691275 | K50: 0.8187919463 | L50: 0.8255033557 | M50: 0.8389261745 | N50: 0.8523489933 | O50: 0.8590604027 | P50: 0.8724832215 | Q50: 0.8926174497 | R50: 0.9127516779 | S50: 0.9194630872 | T50: 0.932885906 | U50: 0.9530201342 | V50: 0.966442953 | W50: 0.9865771812 | X50: 1 | Y50: 1.020134228 | Z50: 1.040268456 | AA50: 1.067114094 | AB50: 1.087248322 | AC50: 1.11409396 | AD50: 1.134228188 | AE50: 1.161073826 | AF50: 1.187919463 | AG50: 1.208053691 | AH50: 1.234899329 | AI50: 1.261744966 | AJ50: 1.288590604 | AK50: 1.308724832 | AL50: 1.33557047 | AM50: 1.362416107 | AN50: 1.389261745 | AO50: 1.422818792 | AP50: 1.44966443 | AQ50: 1.476510067 | AR50: 1.510067114 | AS50: 1.543624161 | AT50: 1.570469799 | AU50: 1.604026846 | AV50: 1.637583893 | AW50: 1.677852349
D51: 1.392523364 | E51: 1.366972477 | F51: 1.330357143 | G51: 1.307017544 | H51: 1.307017544 | I51: 1.273504274 | J51: 1.241666667 | K51: 1.221311475 | L51: 1.211382114 | M51: 1.192 | N51: 1.173228346 | O51: 1.1640625 | P51: 1.146153846 | Q51: 1.120300752 | R51: 1.095588235 | S51: 1.087591241 | T51: 1.071942446 | U51: 1.049295775 | V51: 1.034722222 | W51: 1.013605442 | X51: 1 | Y51: 0.9802631579 | Z51: 0.9612903226 | AA51: 0.9371069182 | AB51: 0.9197530864 | AC51: 0.8975903614 | AD51: 0.8816568047 | AE51: 0.8612716763 | AF51: 0.8418079096 | AG51: 0.8277777778 | AH51: 0.8097826087 | AI51: 0.7925531915 | AJ51: 0.7760416667 | AK51: 0.7641025641 | AL51: 0.7487437186 | AM51: 0.7339901478 | AN51: 0.7198067633 | AO51: 0.7028301887 | AP51: 0.6898148148 | AQ51: 0.6772727273 | AR51: 0.6622222222 | AS51: 0.647826087 | AT51: 0.6367521368 | AU51: 0.6234309623 | AV51: 0.6106557377 | AW51: 0.596
C54: Source : Macro Indicators from Canada's Energy Future 2020: Energy Supply and Demand Projections to 2050
C55: https://apps.cer-rec.gc.ca/ftrppndc/dflt.aspx?GoCTemplateCulture=en-CA
C56: (CPI)
E58: 2005 | F58: 2006 | G58: 2007 | H58: 2008 | I58: 2009 | J58: 2010 | K58: 2011 | L58: 2012 | M58: 2013 | N58: 2014 | O58: 2015 | P58: 2016 | Q58: 2017 | R58: 2018 | S58: 2019 | T58: 2020 | U58: 2021 | V58: 2022 | W58: 2023 | X58: 2024 | Y58: 2025
C59: Inf. line | D59: =HLOOKUP($E$4,E58:Y60,2) -> 26 | E59: 2 | F59: 4 | G59: 6 | H59: 8 | I59: 10 | J59: 12 | K59: 14 | L59: 16 | M59: 18 | N59: 20 | O59: 22 | P59: 24 | Q59: 26 | R59: 28 | S59: 30 | T59: 32 | U59: 34 | V59: 36 | W59: 38 | X59: 40 | Y59: 42
C60: Def. line | D60: =HLOOKUP($E$4,E58:Y60,3) -> 27 | E60: 3 | F60: 5 | G60: 7 | H60: 9 | I60: 11 | J60: 13 | K60: 15 | L60: 17 | M60: 19 | N60: 21 | O60: 23 | P60: 25 | Q60: 27 | R60: 29 | S60: 31 | T60: 33 | U60: 35 | V60: 37 | W60: 39 | X60: 41 | Y60: 43

Sheet Multipliers
A1: *** WARNING *** This Worksheet contains Data and Formulas that are an integral part of the EI2 model. Although the data and formulas are available for review they must not be changed. Any changes to the data or formulas will impact the analysis and may invalidate the model results. To view the data and formulas simply scroll over to the adjacent columns to the right. | C1: =ProjectData!B9 -> Alberta
C5: Multipliers
D6: Jobs | G6: Earnings | J6: Output | M6: Value Added
D7: Direct | E7: Indirect | F7: Induced | G7: Direct | H7: Indirect | I7: Induced | J7: Direct | K7: Indirect | L7: Induced | M7: Direct | N7: Indirect | O7: Induced | T7: wage factor | U7: Income tax | X7: CPP + EI | Y7: 0.0683
C8: Agriculture | D8: =IF(C1=D44,M_CA,IF(C1=E44,M_AB,IF(C1=F44,M_BC,IF(C1=G44,M_MB,IF(C1=H44,M_NB,IF(C1=I44,M_NL,IF(C1=J44,M_NT,IF(C1=K44,M_NS,IF(C1=L44,M_NU,IF(C1=M44,M_ON,IF(C1=N44,M_PE,IF(C1=O44,M_QC,IF(C1=P44,M_SK,IF(C1=Q44,M_YK,IF(C1=R44,M_MR,M_0))))))))))))))) -> 2.294052739 | E8: 1.975042596 | F8: 0.5159391389 | G8: 0.07307913579 | H8: 0.118759976 | I8: 0.02617364795 | J8: 1 | K8: 0.5875195149 | L8: 0.1020461954 | M8: 0.4621109809 | N8: 0.259654594 | O8: 0.06312052612 | S8: Canada | T8: 1 | U8: 0.16 | X8: QPP + EI | Y8: 0.0748 | Z8: Quebec
C9: Mining | D9: 0.7139441613 | E9: 1.660984685 | F9: 0.8052381934 | G9: 0.1332470019 | H9: 0.1372198999 | I9: 0.0402383805 | J9: 1 | K9: 0.4175383697 | L9: 0.1586286027 | M9: 0.5416547573 | N9: 0.2336313253 | O9: 0.09813695042 | S9: Alberta | T9: 1.09795111 | U9: 0.27
C10: Construction | D10: 3.486580851 | E10: 2.078952632 | F10: 1.356334624 | G10: 0.2945700775 | H10: 0.1610435224 | I10: 0.06757569946 | J10: 1 | K10: 0.4973758143 | L10: 0.2662843305 | M10: 0.4102387011 | N10: 0.2710939404 | O10: 0.165464768 | S10: British Columbia | T10: 0.9846916378 | U10: 0.22
C11: Manufacturing | D11: 1.416454192 | E11: 2.212915515 | F11: 0.7458137686 | G11: 0.1154125405 | H11: 0.1475492884 | I11: 0.03713275911 | J11: 1 | K11: 0.8174461993 | L11: 0.1467861114 | M11: 0.322164699 | N11: 0.3569496064 | O11: 0.09116753865 | S11: Manitoba | T11: 0.9255820408 | U11: 0.28
C12: Fabricated Metals | D12: 3.001206285 | E12: 1.586297521 | F12: 1.138753616 | G12: 0.2603985492 | H12: 0.1203572033 | I12: 0.05703026394 | J12: 1 | K12: 0.3965963328 | L12: 0.2236952246 | M12: 0.3586346967 | N12: 0.1980605279 | O12: 0.1388627443 | S12: New Brunswick | T12: 0.763982393 | U12: 0.26
C13: Machinery | D13: 2.792758337 | E13: 1.536249668 | F13: 1.115294443 | G13: 0.2486742327 | H13: 0.1188906876 | I13: 0.055913287 | J13: 1 | K13: 0.3783139648 | L13: 0.2191806871 | M13: 0.3932613892 | N13: 0.1955739451 | O13: 0.1359035857 | S13: Newfoundland and Labrador | T13: 0.925210213 | U13: 0.28
C14: Electrical Equipment | D14: 2.621497251 | E14: 0.9726221298 | F14: 0.8538769599 | G14: 0.2149100686 | H14: 0.06866869522 | I14: 0.04233785381 | J14: 1 | K14: 0.2180016481 | L14: 0.1675464856 | M14: 0.388837213 | N14: 0.1174738054 | O14: 0.1042650443 | S14: Northwest Territories | T14: 1.088791209 | U14: 0.22
C15: TCPU | D15: 3.065784397 | E15: 1.63704603 | F15: 1.140947251 | G15: 0.2729871582 | H15: 0.1193551551 | I15: 0.05694392216 | J15: 1 | K15: 0.4546857869 | L15: 0.2240224738 | M15: 0.6033480502 | N15: 0.2208968957 | O15: 0.1389337676 | S15: Nova Scotia | T15: 0.7986504917 | U15: 0.28
C16: Wholesale Trade | D16: 4.69314927 | E16: 1.532826713 | F16: 1.500489479 | G16: 0.3899448264 | H16: 0.1045232692 | I16: 0.07499944155 | J16: 1 | K16: 0.3511778299 | L16: 0.2943248077 | M16: 0.6308450161 | N16: 0.1933147395 | O16: 0.1828485807 | S16: Nunavut | T16: 1.172161172 | U16: 0.2
C17: Retail Trade | D17: 11.21718231 | E17: 1.777368148 | F17: 1.617641818 | G17: 0.4121462806 | H17: 0.1163874945 | I17: 0.0808103244 | J17: 1 | K17: 0.4097209757 | L17: 0.3172631115 | M17: 0.6113986622 | N17: 0.2327620499 | O17: 0.1971605303 | S17: Ontario | T17: 1.019205177 | U17: 0.23
C18: FIRE | D18: 2.738772117 | E18: 2.260651606 | F18: 1.075670833 | G18: 0.2185500136 | H18: 0.1518215045 | I18: 0.05388326011 | J18: 1 | K18: 0.4581902223 | L18: 0.2110141364 | M18: 0.5717901424 | N18: 0.2501085388 | O18: 0.131242656 | S18: Prince Edward Island | T18: 0.79998251 | U18: 0.27
C19: Misc. Services | D19: 6.801702098 | E19: 1.460358048 | F19: 1.249457551 | G19: 0.3457252149 | H19: 0.08551627856 | I19: 0.06258105143 | J19: 1 | K19: 0.2612541185 | L19: 0.2450754012 | M19: 0.7122957491 | N19: 0.1442419242 | O19: 0.1522239222 | S19: Quebec | T19: 0.8952733548 | U19: 0.33
C20: Professional Services | D20: 5.015784277 | E20: 1.741034874 | F20: 1.564161403 | G20: 0.4175364491 | H20: 0.1071951563 | I20: 0.07811519741 | J20: 1 | K20: 0.3363658087 | L20: 0.3067767103 | M20: 0.6274328375 | N20: 0.1932659942 | O20: 0.1909425312 | S20: Saskatchewan | T20: 1.057780419 | U20: 0.28
C21: Government | D21: 3.613752507 | E21: 2.847426685 | F21: 1.476524737 | G21: 0.3404248049 | H21: 0.1844955471 | I21: 0.07339717112 | J21: 1 | K21: 0.5087861128 | L21: 0.2895756814 | M21: 0.5161421065 | N21: 0.3178210374 | O21: 0.1798267718 | S21: Yukon | T21: 1.12543956 | U21: 0.22
S22: MYREGION | T22: =VLOOKUP('User Add-in Location'!B4,Multipliers!S9:T21,2,FALSE) ->  | U22: =VLOOKUP('User Add-in Location'!B4,Multipliers!S9:U21,3,FALSE) -> 
C24: PCE Farm / House
C25: Agriculture | D25: =IF(C1=D44,HFCE_CA,IF(C1=E44,HFCE_AB,IF(C1=F44,HFCE_BC,IF(C1=G44,HFCE_MB,IF(C1=H44,HFCE_NB,IF(C1=I44,HFCE_NL,IF(C1=J44,HFCE_NT,IF(C1=K44,HFCE_NS,IF(C1=L44,HFCE_NU,IF(C1=M44,HFCE_ON,IF(C1=N44,HFCE_PE,IF(C1=O44,HFCE_QC,IF(C1=P44,HFCE_SK,IF(C1=Q44,HFCE_YK,IF(C1=R44,HFCE_MR,HFCE_0))))))))))))))) -> 0.0128267514
C26: Mining | D26: 0.00319551136
C27: Construction | D27: 0.0005466998467
C28: Manufacturing | D28: 0.189353679
C29: Fabricated Metals | D29: 0.0002298682755
C30: Machinery | D30: 0.002896512388
C31: Electrical Equipment | D31: 0.005130742277
C32: TCPU | D32: 0.0465998638
C33: Wholesale Trade | D33: 0.03950743456
C34: Retail Trade | D34: 0.1260110155
C35: FIRE | D35: 0.1423623487
C36: Misc. Services | D36: 0.4061502373
C37: Professional Services | D37: 0.008108592035
C38: Government | D38: 0.0170807435
C41: Households Final Consumption Expenditure
C42: National, Provincial and Territorial
C43: 2017
D44: Canada | E44: Alberta | F44: British Columbia | G44: Manitoba | H44: New Brunswick | I44: Newfoundland and Labrador | J44: Northwest Territories | K44: Nova Scotia | L44: Nunavut | M44: Ontario | N44: Prince Edward Island | O44: Quebec | P44: Saskatchewan | Q44: Yukon | R44: MYREGION
C45: Agriculture | D45: 0.014435171 | E45: 0.0128267514 | F45: 0.01313641116 | G45: 0.01328299111 | H45: 0.01551098449 | I45: 0.01192369149 | J45: 0.01453487123 | K45: 0.01521097334 | L45: 0.01263646045 | M45: 0.01535089254 | N45: 0.01512345904 | O45: 0.01498308955 | P45: 0.0118115328 | Q45: 0.01064339943 | R45: =U_PCE -> 0 | S45: 0
C46: Mining | D46: 0.002455430148 | E46: 0.00319551136 | F46: 0.00113078951 | G46: 0.002202024175 | H46: 0.001059979488 | I46: 0.0004080837514 | J46: 0.001350900137 | K46: 0.0005280505065 | L46: 0.0005520890902 | M46: 0.003795096132 | N46: 0.000614766595 | O46: 0.0006500363006 | P46: 0.004045092916 | Q46: 0.0003082767043 | R46: 0 | S46: 0
C47: Construction | D47: 0.0004602745268 | E47: 0.0005466998467 | F47: 0.0004654106184 | G47: 0.000554384163 | H47: 0.0005273812129 | I47: 0.0005732207689 | J47: 0.001732043376 | K47: 0.0005608536326 | L47: 0.0004196789792 | M47: 0.0004261931217 | N47: 0.000442517893 | O47: 0.0004003981502 | P47: 0.0004966839008 | Q47: 0.000476346593 | R47: 0 | S47: 0
C48: Manufacturing | D48: 0.1968340806 | E48: 0.189353679 | F48: 0.1701309876 | G48: 0.1964085219 | H48: 0.2296258299 | I48: 0.2212949171 | J48: 0.1898766248 | K48: 0.2044617747 | L48: 0.1807769151 | M48: 0.1963944716 | N48: 0.2219463794 | O48: 0.2182650549 | P48: 0.1919390772 | Q48: 0.1480863002 | R48: 0 | S48: 0
C49: Fabricated Metals | D49: 0.0001967126048 | E49: 0.0002298682755 | F49: 0.0001564700632 | G49: 0.0002184382968 | H49: 0.0001644221703 | I49: 0.0001974048226 | J49: 0.0001295778748 | K49: 0.0001191437655 | L49: 0.0001199820247 | M49: 0.0001801210795 | N49: 0.0002707208097 | O49: 0.0002413634821 | P49: 0.0001876672792 | Q49: 9.938194966e-05 | R49: 0 | S49: 0
C50: Machinery | D50: 0.002775757945 | E50: 0.002896512388 | F50: 0.002288657956 | G50: 0.002886942138 | H50: 0.003079562588 | I50: 0.002316601273 | J50: 0.002729487096 | K50: 0.002229770341 | L50: 0.004137579609 | M50: 0.002860613939 | N50: 0.002436725791 | O50: 0.002942954253 | P50: 0.003215173207 | Q50: 0.003480967285 | R50: 0 | S50: 0
C51: Electrical Equipment | D51: 0.004746377404 | E51: 0.005130742277 | F51: 0.004763550715 | G51: 0.004488671872 | H51: 0.004686514516 | I51: 0.004006258843 | J51: 0.004633680577 | K51: 0.004305650849 | L51: 0.003636178483 | M51: 0.004763498418 | N51: 0.003976624224 | O51: 0.004688993081 | P51: 0.004855589546 | Q51: 0.002692001091 | R51: 0 | S51: 0
C52: TCPU | D52: 0.04895580805 | E52: 0.0465998638 | F52: 0.04558201188 | G52: 0.05060887244 | H52: 0.05813814514 | I52: 0.06520767237 | J52: 0.07729691798 | K52: 0.05344549416 | L52: 0.06078872351 | M52: 0.04943823309 | N52: 0.04885622478 | O52: 0.04964484045 | P52: 0.04637111355 | Q52: 0.0679966534 | R52: 0 | S52: 0
C53: Wholesale Trade | D53: 0.04130474105 | E53: 0.03950743456 | F53: 0.03717043797 | G53: 0.04226484993 | H53: 0.04990541996 | I53: 0.04833580125 | J53: 0.04263289195 | K53: 0.04590276363 | L53: 0.03918152569 | M53: 0.04006785719 | N53: 0.04806165884 | O53: 0.04571822914 | P53: 0.04233530758 | Q53: 0.03525851378 | R53: 0 | S53: 0
C54: Retail Trade | D54: 0.1252065311 | E54: 0.1260110155 | F54: 0.1211230628 | G54: 0.1277857391 | H54: 0.1308338253 | I54: 0.1383569565 | J54: 0.1207417323 | K54: 0.1256648069 | L54: 0.1533720545 | M54: 0.1195209597 | N54: 0.1264141844 | O54: 0.1361832333 | P54: 0.1304500053 | Q54: 0.1354170008 | R54: 0 | S54: 0
C55: FIRE | D55: 0.1493961492 | E55: 0.1423623487 | F55: 0.1584313385 | G55: 0.1352377405 | H55: 0.1202950468 | I55: 0.1113530359 | J55: 0.192021706 | K55: 0.1252027781 | L55: 0.1975682642 | M55: 0.1517094112 | N55: 0.1232768999 | O55: 0.1559089446 | P55: 0.1337905003 | Q55: 0.1333011902 | R55: 0 | S55: 0
C56: Misc. Services | D56: 0.3912251623 | E56: 0.4061502373 | F56: 0.4242737479 | G56: 0.3985396932 | H56: 0.3651844355 | I56: 0.3802121159 | J56: 0.3238804275 | K56: 0.4009611842 | L56: 0.2638326534 | M56: 0.3912562452 | N56: 0.3872585238 | O56: 0.3560874165 | P56: 0.4006832556 | Q56: 0.4370652619 | R56: 0 | S56: 0
C57: Professional Services | D57: 0.006738984966 | E57: 0.008108592035 | F57: 0.00708735899 | G57: 0.005951307434 | H57: 0.005176311491 | I57: 0.003610887662 | J57: 0.003926226903 | K57: 0.006479154492 | L57: 0.002730345113 | M57: 0.007401538408 | N57: 0.004661657275 | O57: 0.005050637231 | P57: 0.005405048446 | Q57: 0.005456965116 | R57: 0 | S57: 0
C58: Government | D58: 0.01526881905 | E58: 0.0170807435 | F58: 0.01425976428 | G58: 0.01956982368 | H58: 0.01581214142 | I58: 0.01220335243 | J58: 0.02451291232 | K58: 0.01492760138 | L58: 0.08024754982 | M58: 0.01683486838 | N58: 0.01665965727 | O58: 0.009234809168 | P58: 0.02441395236 | Q58: 0.01971774158 | R58: 0 | S58: 0
D59: 1 | E59: 1 | F59: 1 | G59: 1 | H59: 1 | I59: 1 | J59: 1 | K59: 1 | L59: 1 | M59: 1 | N59: 1 | O59: 1 | P59: 1 | Q59: 1
C61: Multipliers
C62: National, Provincial and Territorial
C63: 2017
E64: Jobs | H64: Labour income | K64: Output | N64: GDP
E65: Direct | F65: Indirect | G65: Induced | H65: Direct | I65: Indirect | J65: Induced | K65: Direct | L65: Indirect | M65: Induced | N65: Direct | O65: Indirect | P65: Induced
C66: Canada | D66: Agriculture | E66: 3.408185773 | F66: 2.731663937 | G66: 1.160459726 | H66: 0.1615207104 | I66: 0.1610368018 | J66: 0.05673959542 | K66: 1 | L66: 0.6919326675 | M66: 0.2103154809 | N66: 0.4872287518 | O66: 0.3349492763 | P66: 0.1219152553
D67: Mining | E67: 0.8291715357 | F67: 2.37458453 | G67: 1.373433504 | H67: 0.1328265275 | I67: 0.167348453 | J67: 0.06693690177 | K67: 1 | L67: 0.5162231021 | M67: 0.2492728645 | N67: 0.5758765376 | O67: 0.2837518172 | P67: 0.1444905213
D68: Construction | E68: 3.937854252 | F68: 3.319654044 | G68: 2.249441499 | H68: 0.2916492249 | I68: 0.2192296302 | J68: 0.1094665348 | K68: 1 | L68: 0.6900082569 | M68: 0.4079510788 | N68: 0.4296123562 | O68: 0.3485399759 | P68: 0.2365151381
D69: Manufacturing | E69: 1.93055415 | F69: 2.747206909 | G69: 1.374430425 | H69: 0.1489483704 | I69: 0.1740841207 | J69: 0.06680591685 | K69: 1 | L69: 0.7500397632 | M69: 0.249262357 | N69: 0.2658419279 | O69: 0.3365932256 | P69: 0.1445156068
D70: Fabricated Metals | E70: 3.652640669 | F70: 2.789415964 | G70: 2.030932867 | H70: 0.2745502295 | I70: 0.1890621831 | J70: 0.09883252841 | K70: 1 | L70: 0.704263101 | M70: 0.3682535621 | N70: 0.3788468968 | O70: 0.3152152863 | P70: 0.2133444821
D71: Machinery | E71: 3.533287849 | F71: 2.372886303 | G71: 1.971763365 | H71: 0.2783076408 | I71: 0.160382059 | J71: 0.09609051114 | K71: 1 | L71: 0.54098785 | M71: 0.3576932627 | N71: 0.4036630666 | O71: 0.261163207 | P71: 0.2075509469
D72: Electrical Equipment | E72: 3.382385706 | F72: 1.796127137 | G72: 1.718084554 | H72: 0.270144921 | I72: 0.1171004419 | J72: 0.08362581907 | K72: 1 | L72: 0.3896962667 | M72: 0.3114429725 | N72: 0.4087014392 | O72: 0.1937550982 | P72: 0.1806935841
D73: TCPU | E73: 3.725952584 | F73: 2.882326609 | G73: 1.993962215 | H73: 0.2771423165 | I73: 0.1768975167 | J73: 0.09699029604 | K73: 1 | L73: 0.6410191402 | M73: 0.3617657725 | N73: 0.5738359249 | O73: 0.3106612336 | P73: 0.2096260718
D74: Wholesale Trade | E74: 4.735695263 | F74: 2.88792407 | G74: 2.403216557 | H74: 0.3490379845 | I74: 0.1687584229 | J74: 0.116882671 | K74: 1 | L74: 0.5302342114 | M74: 0.4361460563 | N74: 0.6117613274 | O74: 0.2817770797 | P74: 0.2528497263
D75: Retail Trade | E75: 12.34275518 | F75: 2.97163242 | G75: 2.818033032 | H75: 0.4335869438 | I75: 0.1726203499 | J75: 0.1370563863 | K75: 1 | L75: 0.567046704 | M75: 0.5112823469 | N75: 0.6042239674 | O75: 0.3123781153 | P75: 0.2964121196
D76: FIRE | E76: 2.933191343 | F76: 3.5762317 | G76: 1.931354986 | H76: 0.2186029238 | I76: 0.2192049969 | J76: 0.09396817269 | K76: 1 | L76: 0.6298037001 | M76: 0.3504925193 | N76: 0.5461109125 | O76: 0.3494508356 | P76: 0.2031682645
D77: Misc. Services | E77: 7.590265496 | F77: 2.205735648 | G77: 2.145721468 | H77: 0.4073568098 | I77: 0.1257357699 | J77: 0.1043310117 | K77: 1 | L77: 0.3795169412 | M77: 0.3893628576 | N77: 0.7006922892 | O77: 0.2055441677 | P77: 0.2258110733
D78: Professional Services | E78: 5.881054255 | F78: 2.929058373 | G78: 2.831692029 | H78: 0.4567688844 | I78: 0.1708756684 | J78: 0.1379538942 | K78: 1 | L78: 0.4888608975 | M78: 0.5136548608 | N78: 0.6313187944 | O78: 0.2761039488 | P78: 0.2976950858
D79: Government | E79: 4.474281446 | F79: 3.429871637 | G79: 2.54809559 | H79: 0.3867983074 | I79: 0.208750791 | J79: 0.1241838916 | K79: 1 | L79: 0.5816677903 | M79: 0.46263483 | N79: 0.5389934501 | O79: 0.3471514731 | P79: 0.2679796986
E82: Jobs | H82: Labour income | K82: Output | N82: GDP
E83: Direct | F83: Indirect | G83: Induced | H83: Direct | I83: Indirect | J83: Induced | K83: Direct | L83: Indirect | M83: Induced | N83: Direct | O83: Indirect | P83: Induced
C84: Alberta | D84: Agriculture | E84: 2.294052739 | F84: 1.975042596 | G84: 0.5159391389 | H84: 0.07307913579 | I84: 0.118759976 | J84: 0.02617364795 | K84: 1 | L84: 0.5875195149 | M84: 0.1020461954 | N84: 0.4621109809 | O84: 0.259654594 | P84: 0.06312052612
D85: Mining | E85: 0.7139441613 | F85: 1.660984685 | G85: 0.8052381934 | H85: 0.1332470019 | I85: 0.1372198999 | J85: 0.0402383805 | K85: 1 | L85: 0.4175383697 | M85: 0.1586286027 | N85: 0.5416547573 | O85: 0.2336313253 | P85: 0.09813695042
D86: Construction | E86: 3.486580851 | F86: 2.078952632 | G86: 1.356334624 | H86: 0.2945700775 | I86: 0.1610435224 | J86: 0.06757569946 | K86: 1 | L86: 0.4973758143 | M86: 0.2662843305 | N86: 0.4102387011 | O86: 0.2710939404 | P86: 0.165464768
D87: Manufacturing | E87: 1.416454192 | F87: 2.212915515 | G87: 0.7458137686 | H87: 0.1154125405 | I87: 0.1475492884 | J87: 0.03713275911 | K87: 1 | L87: 0.8174461993 | M87: 0.1467861114 | N87: 0.322164699 | O87: 0.3569496064 | P87: 0.09116753865
D88: Fabricated Metals | E88: 3.001206285 | F88: 1.586297521 | G88: 1.138753616 | H88: 0.2603985492 | I88: 0.1203572033 | J88: 0.05703026394 | K88: 1 | L88: 0.3965963328 | M88: 0.2236952246 | N88: 0.3586346967 | O88: 0.1980605279 | P88: 0.1388627443
D89: Machinery | E89: 2.792758337 | F89: 1.536249668 | G89: 1.115294443 | H89: 0.2486742327 | I89: 0.1188906876 | J89: 0.055913287 | K89: 1 | L89: 0.3783139648 | M89: 0.2191806871 | N89: 0.3932613892 | O89: 0.1955739451 | P89: 0.1359035857
D90: Electrical Equipment | E90: 2.621497251 | F90: 0.9726221298 | G90: 0.8538769599 | H90: 0.2149100686 | I90: 0.06866869522 | J90: 0.04233785381 | K90: 1 | L90: 0.2180016481 | M90: 0.1675464856 | N90: 0.388837213 | O90: 0.1174738054 | P90: 0.1042650443
D91: TCPU | E91: 3.065784397 | F91: 1.63704603 | G91: 1.140947251 | H91: 0.2729871582 | I91: 0.1193551551 | J91: 0.05694392216 | K91: 1 | L91: 0.4546857869 | M91: 0.2240224738 | N91: 0.6033480502 | O91: 0.2208968957 | P91: 0.1389337676
D92: Wholesale Trade | E92: 4.69314927 | F92: 1.532826713 | G92: 1.500489479 | H92: 0.3899448264 | I92: 0.1045232692 | J92: 0.07499944155 | K92: 1 | L92: 0.3511778299 | M92: 0.2943248077 | N92: 0.6308450161 | O92: 0.1933147395 | P92: 0.1828485807
D93: Retail Trade | E93: 11.21718231 | F93: 1.777368148 | G93: 1.617641818 | H93: 0.4121462806 | I93: 0.1163874945 | J93: 0.0808103244 | K93: 1 | L93: 0.4097209757 | M93: 0.3172631115 | N93: 0.6113986622 | O93: 0.2327620499 | P93: 0.1971605303
D94: FIRE | E94: 2.738772117 | F94: 2.260651606 | G94: 1.075670833 | H94: 0.2185500136 | I94: 0.1518215045 | J94: 0.05388326011 | K94: 1 | L94: 0.4581902223 | M94: 0.2110141364 | N94: 0.5717901424 | O94: 0.2501085388 | P94: 0.131242656
D95: Misc. Services | E95: 6.801702098 | F95: 1.460358048 | G95: 1.249457551 | H95: 0.3457252149 | I95: 0.08551627856 | J95: 0.06258105143 | K95: 1 | L95: 0.2612541185 | M95: 0.2450754012 | N95: 0.7122957491 | O95: 0.1442419242 | P95: 0.1522239222
D96: Professional Services | E96: 5.015784277 | F96: 1.741034874 | G96: 1.564161403 | H96: 0.4175364491 | I96: 0.1071951563 | J96: 0.07811519741 | K96: 1 | L96: 0.3363658087 | M96: 0.3067767103 | N96: 0.6274328375 | O96: 0.1932659942 | P96: 0.1909425312
D97: Government | E97: 3.613752507 | F97: 2.847426685 | G97: 1.476524737 | H97: 0.3404248049 | I97: 0.1844955471 | J97: 0.07339717112 | K97: 1 | L97: 0.5087861128 | M97: 0.2895756814 | N97: 0.5161421065 | O97: 0.3178210374 | P97: 0.1798267718
E100: Jobs | H100: Labour income | K100: Output | N100: GDP
E101: Direct | F101: Indirect | G101: Induced | H101: Direct | I101: Indirect | J101: Induced | K101: Direct | L101: Indirect | M101: Induced | N101: Direct | O101: Indirect | P101: Induced
C102: British Columbia | D102: Agriculture | E102: 3.119852041 | F102: 1.927414833 | G102: 0.8416110698 | H102: 0.128776065 | I102: 0.1151140244 | J102: 0.03990498488 | K102: 1 | L102: 0.4414655961 | M102: 0.1538101915 | N102: 0.5480874408 | O102: 0.2458358412 | P102: 0.09873984993
D103: Mining | E103: 0.9712965795 | F103: 1.424456583 | G103: 0.8162560134 | H103: 0.1320318292 | I103: 0.09671775637 | J103: 0.03900255058 | K103: 1 | L103: 0.2916720775 | M103: 0.1492826366 | N103: 0.5967969661 | O103: 0.1643974601 | P103: 0.09575107396
D104: Construction | E104: 3.781447152 | F104: 2.22519904 | G104: 1.412295649 | H104: 0.2624926694 | I104: 0.1501344342 | J104: 0.06740762489 | K104: 1 | L104: 0.4381944351 | M104: 0.2582156488 | N104: 0.4012972966 | O104: 0.2301740584 | P104: 0.165917052
D105: Manufacturing | E105: 2.56874422 | F105: 2.452651495 | G105: 1.222908086 | H105: 0.2022129058 | I105: 0.1628817068 | J105: 0.05820459727 | K105: 1 | L105: 0.6039145929 | M105: 0.2236024928 | N105: 0.3167535935 | O105: 0.2817397881 | P105: 0.1436241741
D106: Fabricated Metals | E106: 3.859411899 | F106: 1.773717705 | G106: 1.420817358 | H106: 0.2843158287 | I106: 0.1124481704 | J106: 0.06771327644 | K106: 1 | L106: 0.3550529367 | M106: 0.2602073185 | N106: 0.4068169357 | O106: 0.1808023832 | P106: 0.1672024677
D107: Machinery | E107: 3.339603673 | F107: 1.631356213 | G107: 1.398605775 | H107: 0.2950847128 | I107: 0.1056115119 | J107: 0.06667720548 | K107: 1 | L107: 0.3073708125 | M107: 0.255762772 | N107: 0.3644643758 | O107: 0.1636707596 | P107: 0.164401881
D108: Electrical Equipment | E108: 4.14211829 | F108: 1.197836245 | G108: 1.514825831 | H108: 0.3462010414 | I108: 0.07527815851 | J108: 0.07242704913 | K108: 1 | L108: 0.220202371 | M108: 0.2770729363 | N108: 0.4644752473 | O108: 0.1212750616 | P108: 0.1779869079
D109: TCPU | E109: 3.276579133 | F109: 2.146907531 | G109: 1.368496235 | H109: 0.2547969654 | I109: 0.134821504 | J109: 0.06511287576 | K109: 1 | L109: 0.4212406235 | M109: 0.250415582 | N109: 0.5478923474 | O109: 0.2186778801 | P109: 0.1609118085
D110: Wholesale Trade | E110: 6.49912182 | F110: 1.905247701 | G110: 2.109465214 | H110: 0.456046223 | I110: 0.1123542282 | J110: 0.1003468285 | K110: 1 | L110: 0.3381339579 | M110: 0.3859119192 | N110: 0.6425615029 | O110: 0.1886700735 | P110: 0.2479651872
D111: Retail Trade | E111: 11.14086676 | F111: 2.118449956 | G111: 2.068985048 | H111: 0.4404023777 | I111: 0.1206939023 | J111: 0.09855226024 | K111: 1 | L111: 0.3959515872 | M111: 0.3784891131 | N111: 0.6142263582 | O111: 0.2277970728 | P111: 0.2433107875
D112: FIRE | E112: 2.496182012 | F112: 2.839888458 | G112: 1.197832278 | H112: 0.1863399577 | I112: 0.1656430429 | J112: 0.05686513682 | K112: 1 | L112: 0.4803078932 | M112: 0.2188749222 | N112: 0.5633766045 | O112: 0.2644423727 | P112: 0.1408150729
D113: Misc. Services | E113: 7.064101571 | F113: 1.746326943 | G113: 1.472611005 | H113: 0.324759734 | I113: 0.09536621281 | J113: 0.06997451034 | K113: 1 | L113: 0.2624238173 | M113: 0.2695431212 | N113: 0.6953980781 | O113: 0.1509027517 | P113: 0.1732515384
D114: Professional Services | E114: 6.00558138 | F114: 1.870399297 | G114: 2.017530199 | H114: 0.4761299019 | I114: 0.1056685956 | J114: 0.09607940897 | K114: 1 | L114: 0.2935211982 | M114: 0.3689966104 | N114: 0.6645019025 | O114: 0.1708605325 | P114: 0.2371261691
D115: Government | E115: 4.569588983 | F115: 3.092877285 | G115: 1.897007417 | H115: 0.3774282006 | I115: 0.1958783712 | J115: 0.0904531444 | K115: 1 | L115: 0.5102064468 | M115: 0.3469979058 | N115: 0.5109612871 | O115: 0.3117727461 | P115: 0.2230600279
E118: Jobs | H118: Labour income | K118: Output | N118: GDP
E119: Direct | F119: Indirect | G119: Induced | H119: Direct | I119: Indirect | J119: Induced | K119: Direct | L119: Indirect | M119: Induced | N119: Direct | O119: Indirect | P119: Induced
C120: Manitoba | D120: Agriculture | E120: 2.565810925 | F120: 1.610601733 | G120: 0.4560240963 | H120: 0.0787300635 | I120: 0.08331969722 | J120: 0.01999317443 | K120: 1 | L120: 0.3608812456 | M120: 0.07490333269 | N120: 0.4587140579 | O120: 0.1849830618 | P120: 0.04918883186
D121: Mining | E121: 0.715626436 | F121: 0.8183876082 | G121: 0.4334435418 | H121: 0.07869309666 | I121: 0.05545085462 | J121: 0.01880421262 | K121: 1 | L121: 0.1481610044 | M121: 0.07140540878 | N121: 0.7542614045 | O121: 0.08902485803 | P121: 0.04726145028
D122: Construction | E122: 3.734328103 | F122: 2.048646606 | G122: 1.185615692 | H122: 0.2632212286 | I122: 0.1213926463 | J122: 0.05164056666 | K122: 1 | L122: 0.3433594099 | M122: 0.1950133242 | N122: 0.3643131644 | O122: 0.1859478329 | P122: 0.1282329575
D123: Manufacturing | E123: 2.879509889 | F123: 1.677550081 | G123: 0.8617683204 | H123: 0.1971608205 | I123: 0.09134663116 | J123: 0.03748432747 | K123: 0.9999800716 | L123: 0.4048188729 | M123: 0.1419067524 | N123: 0.3319691952 | O123: 0.1962828153 | P123: 0.09331333668
D124: Fabricated Metals | E124: 4.02206777 | F124: 1.50276734 | G124: 1.087757954 | H124: 0.2543856188 | I124: 0.0904669106 | J124: 0.04709640471 | K124: 1 | L124: 0.3024971365 | M124: 0.1791115177 | N124: 0.3852665447 | O124: 0.1572003659 | P124: 0.1181039612
D125: Machinery | E125: 3.231688936 | F125: 1.418778306 | G125: 0.9588205654 | H125: 0.2289779711 | I125: 0.08571191765 | J125: 0.04182062911 | K125: 1 | L125: 0.2972684419 | M125: 0.1577974454 | N125: 0.4090715089 | O125: 0.1513301673 | P125: 0.1037349395
D126: Electrical Equipment | E126: 3.98429947 | F126: 1.10851142 | G126: 1.107590409 | H126: 0.2877696143 | I126: 0.06707959102 | J126: 0.04815531396 | K126: 0.9993340459 | L126: 0.2115172733 | M126: 0.182232724 | N126: 0.4237728732 | O126: 0.1130849821 | P126: 0.119788409
D127: TCPU | E127: 3.645829608 | F127: 1.572343909 | G127: 1.093203208 | H127: 0.278417292 | I127: 0.08684812462 | J127: 0.04753086078 | K127: 1 | L127: 0.2636817615 | M127: 0.1798115394 | N127: 0.6304195339 | O127: 0.1360244431 | P127: 0.118385519
D128: Wholesale Trade | E128: 5.20804994 | F128: 1.55638761 | G128: 1.375207031 | H128: 0.3382630697 | I128: 0.08410842561 | J128: 0.0598996756 | K128: 1 | L128: 0.260030156 | M128: 0.2262126996 | N128: 0.639595601 | O128: 0.1483308801 | P128: 0.1491264885
D129: Retail Trade | E129: 11.85451979 | F129: 1.787377965 | G129: 1.595255679 | H129: 0.3988914667 | I129: 0.09286024609 | J129: 0.06952685597 | K129: 1 | L129: 0.3040093374 | M129: 0.2621187681 | N129: 0.6468751417 | O129: 0.1765154775 | P129: 0.1727796255
D130: FIRE | E130: 2.601972641 | F130: 2.579440243 | G130: 1.055898183 | H130: 0.1942995762 | I130: 0.1524012215 | J130: 0.04592622748 | K130: 1 | L130: 0.4189159274 | M130: 0.1737197958 | N130: 0.5259484113 | O130: 0.2417293087 | P130: 0.1143951033
D131: Misc. Services | E131: 8.637872575 | F131: 1.388051227 | G131: 1.449070382 | H131: 0.3943474188 | I131: 0.07237837361 | J131: 0.0631182911 | K131: 1 | L131: 0.1942409704 | M131: 0.2383914996 | N131: 0.720529445 | O131: 0.11661793 | P131: 0.1569087271
D132: Professional Services | E132: 6.698255175 | F132: 1.785530405 | G132: 1.58840132 | H132: 0.4353783993 | I132: 0.08755974612 | J132: 0.06952546849 | K132: 1 | L132: 0.2569072377 | M132: 0.2612909049 | N132: 0.6497898693 | O132: 0.1504062589 | P132: 0.1721120621
D133: Government | E133: 5.614301025 | F133: 2.81827136 | G133: 1.623523725 | H133: 0.3907194355 | I133: 0.1495960783 | J133: 0.07083840202 | K133: 1 | L133: 0.4089234183 | M133: 0.2672214829 | N133: 0.5323085232 | O133: 0.2541165718 | P133: 0.1757416963
E136: Jobs | H136: Labour income | K136: Output | N136: GDP
E137: Direct | F137: Indirect | G137: Induced | H137: Direct | I137: Indirect | J137: Induced | K137: Direct | L137: Indirect | M137: Induced | N137: Direct | O137: Indirect | P137: Induced
C138: New Brunswick | D138: Agriculture | E138: 4.300107413 | F138: 1.469224853 | G138: 0.766978474 | H138: 0.1887085148 | I138: 0.07144954646 | J138: 0.03030381208 | K138: 1 | L138: 0.3080060518 | M138: 0.1219385216 | N138: 0.561281192 | O138: 0.1309608566 | P138: 0.07492657233
D139: Mining | E139: 4.086513076 | F139: 0.7798499026 | G139: 0.9686339872 | H139: 0.2858106567 | I139: 0.04490812093 | J139: 0.03797432826 | K139: 1 | L139: 0.1600152695 | M139: 0.1537247983 | N139: 0.6466873598 | O139: 0.07576304583 | P139: 0.09428811758
D140: Construction | E140: 5.368197981 | F140: 1.940907078 | G140: 1.203325771 | H140: 0.3043333967 | I140: 0.1017340415 | J140: 0.04717957581 | K140: 1 | L140: 0.3165079305 | M140: 0.1908470997 | N140: 0.4547091021 | O140: 0.1565042844 | P140: 0.1174488076
D141: Manufacturing | E141: 1.329392718 | F141: 1.030861693 | G141: 0.4004144506 | H141: 0.07987874796 | I141: 0.05462202381 | J141: 0.0155608509 | K141: 0.9999910892 | L141: 0.2357091536 | M141: 0.06386905662 | N141: 0.1484851181 | O141: 0.104339435 | P141: 0.03910787867
D142: Fabricated Metals | E142: 5.02734991 | F142: 1.531996943 | G142: 1.178267107 | H142: 0.2876179264 | I142: 0.08115448161 | J142: 0.04643632107 | K142: 1 | L142: 0.2827916288 | M142: 0.1867452843 | N142: 0.3467181605 | O142: 0.1398726421 | P142: 0.1149189866
D143: Machinery | E143: 5.308102079 | F143: 0.9428114 | G143: 1.072273866 | H143: 0.2839597329 | I143: 0.04816475677 | J143: 0.04198175227 | K143: 1 | L143: 0.1561957563 | M143: 0.1699947865 | N143: 0.3987392828 | O143: 0.07975684722 | P143: 0.1047276117
D144: Electrical Equipment | E144: 5.983261807 | F144: 0.9336641291 | G144: 1.193862569 | H144: 0.3131936537 | I144: 0.0474149848 | J144: 0.04722584948 | K144: 0.999828038 | L144: 0.1452070182 | M144: 0.1888508474 | N144: 0.462226421 | O144: 0.07551009872 | P144: 0.1163680644
D145: TCPU | E145: 3.007700823 | F145: 1.995608589 | G145: 0.8917234139 | H145: 0.2041192375 | I145: 0.1020410601 | J145: 0.03507232815 | K145: 1 | L145: 0.4279643996 | M145: 0.1412950482 | N145: 0.4756191225 | O145: 0.1795969604 | P145: 0.087215844
D146: Wholesale Trade | E146: 6.253858792 | F146: 1.685121229 | G146: 1.455278905 | H146: 0.3758578934 | I146: 0.08888836944 | J146: 0.05725043454 | K146: 1 | L146: 0.2819255797 | M146: 0.2307902119 | N146: 0.6157906532 | O146: 0.1519701847 | P146: 0.1422604196
D147: Retail Trade | E147: 13.42137969 | F147: 1.877617403 | G147: 1.642972834 | H147: 0.4272472633 | I147: 0.09319622236 | J147: 0.06451620086 | K147: 1 | L147: 0.3182267288 | M147: 0.2604289147 | N147: 0.6152979371 | O147: 0.1758587513 | P147: 0.1605233808
D148: FIRE | E148: 2.702350593 | F148: 2.473619763 | G148: 0.8850460722 | H148: 0.1727138235 | I148: 0.1283827129 | J148: 0.03469840674 | K148: 1 | L148: 0.3900080782 | M148: 0.140237379 | N148: 0.5570574065 | O148: 0.2171661489 | P148: 0.08665174549
D149: Misc. Services | E149: 7.950503292 | F149: 1.505503864 | G149: 1.224066306 | H149: 0.339527403 | I149: 0.07005164289 | J149: 0.04797877226 | K149: 1 | L149: 0.2107387444 | M149: 0.1939123325 | N149: 0.6927204553 | O149: 0.1166214818 | P149: 0.119329193
D150: Professional Services | E150: 8.088355755 | F150: 1.630626079 | G150: 1.772150633 | H150: 0.5151965024 | I150: 0.07390263472 | J150: 0.06967065896 | K150: 1 | L150: 0.2153179 | M150: 0.2808114762 | N150: 0.6821095117 | O150: 0.1244127734 | P150: 0.1729235127
D151: Government | E151: 5.682697354 | F151: 2.114850445 | G151: 1.582047048 | H151: 0.4529609271 | I151: 0.1090250213 | J151: 0.06222712411 | K151: 1 | L151: 0.3130455785 | M151: 0.2509046726 | N151: 0.5901896869 | O151: 0.1819616541 | P151: 0.1546949187
E154: Jobs | H154: Labour income | K154: Output | N154: GDP
E155: Direct | F155: Indirect | G155: Induced | H155: Direct | I155: Indirect | J155: Induced | K155: Direct | L155: Indirect | M155: Induced | N155: Direct | O155: Indirect | P155: Induced
C156: Newfoundland and Labrador | D156: Agriculture | E156: 1.923269322 | F156: 1.383522818 | G156: 0.3692165892 | H156: 0.1079459225 | I156: 0.08585645827 | J156: 0.01781002627 | K156: 1 | L156: 0.3014669044 | M156: 0.06576547734 | N156: 0.4831802958 | O156: 0.1501237194 | P156: 0.04190471869
D157: Mining | E157: 0.4277730001 | F157: 0.6009787554 | G157: 0.2979478929 | H157: 0.07035111336 | I157: 0.05205540953 | J157: 0.01428039038 | K157: 1 | L157: 0.1671702629 | M157: 0.05271385508 | N157: 0.7337815154 | O157: 0.07733256272 | P157: 0.03375867253
D158: Construction | E158: 2.849577369 | F158: 1.514984009 | G158: 0.9022791849 | H158: 0.2442607459 | I158: 0.1205649168 | J158: 0.043392945 | K158: 1 | L158: 0.3303492954 | M158: 0.1603006815 | N158: 0.4055097555 | O158: 0.1739969087 | P158: 0.1025013452
D159: Manufacturing | E159: 1.312337225 | F159: 1.277661449 | G159: 0.4337691334 | H159: 0.1219262626 | I159: 0.08425423057 | J159: 0.02068078391 | K159: 0.999978349 | L159: 0.463256295 | M159: 0.0767825316 | N159: 0.2310281891 | O159: 0.2473798032 | P159: 0.04928854898
D160: Fabricated Metals | E160: 4.833005434 | F160: 1.043784128 | G160: 1.109997898 | H160: 0.4837933628 | I160: 0.06958924846 | J160: 0.05320537577 | K160: 1 | L160: 0.1955073505 | M160: 0.1973968916 | N160: 0.4009848786 | O160: 0.1073427134 | P160: 0.1263011337
D161: Machinery | E161: 4.836451104 | F161: 0.8259264007 | G161: 1.158894279 | H161: 0.4290218088 | I161: 0.05981222803 | J161: 0.05553703509 | K161: 1 | L161: 0.1690850129 | M161: 0.2055110354 | N161: 0.4236748215 | O161: 0.09341581077 | P161: 0.1317958947
D162: Electrical Equipment | E162: 4.961301667 | F162: 1.393703661 | G162: 1.170935347 | H162: 0.413518092 | I162: 0.09317279803 | J162: 0.05611427945 | K162: 1 | L162: 0.2425827758 | M162: 0.207852589 | N162: 0.5512106973 | O162: 0.1392038287 | P162: 0.1334365012
D163: TCPU | E163: 3.480188262 | F163: 1.157281392 | G163: 0.8981228427 | H163: 0.3024211813 | I163: 0.08023946397 | J163: 0.04329499099 | K163: 1 | L163: 0.3152935069 | M163: 0.1592870205 | N163: 0.5285396619 | O163: 0.1408749623 | P163: 0.1023310759
D164: Wholesale Trade | E164: 6.198755501 | F164: 0.9912673651 | G164: 1.274527423 | H164: 0.4494364907 | I164: 0.06886380237 | J164: 0.06151352733 | K164: 1 | L164: 0.1998331558 | M164: 0.2263758314 | N164: 0.7114115848 | O164: 0.1145879711 | P164: 0.1449376463
D165: Retail Trade | E165: 10.86378768 | F165: 1.600723397 | G165: 1.281917676 | H165: 0.4175173702 | I165: 0.09943309918 | J165: 0.06166682843 | K165: 1 | L165: 0.2889866178 | M165: 0.2276278844 | N165: 0.6389319166 | O165: 0.1691344419 | P165: 0.1458054623
D166: FIRE | E166: 2.830654826 | F166: 1.850617428 | G166: 0.8193362804 | H166: 0.2185650376 | I166: 0.1256055008 | J166: 0.03917259013 | K166: 1 | L166: 0.356858985 | M166: 0.1453834466 | N166: 0.5761684546 | O166: 0.1946949383 | P166: 0.09289833795
D167: Misc. Services | E167: 7.084915372 | F167: 1.141783206 | G167: 1.071071179 | H167: 0.3956776714 | I167: 0.06711043619 | J167: 0.05143956838 | K167: 1 | L167: 0.1793688992 | M167: 0.1901002954 | N167: 0.7193637695 | O167: 0.1011817669 | P167: 0.1220572271
D168: Professional Services | E168: 5.014611481 | F168: 1.190790078 | G168: 1.196866511 | H168: 0.4163602629 | I168: 0.07554469107 | J168: 0.05747207224 | K168: 1 | L168: 0.207220848 | M168: 0.2121927657 | N168: 0.7804444178 | O168: 0.1229624853 | P168: 0.1361293495
D169: Government | E169: 4.814778331 | F169: 2.523296143 | G169: 1.27646046 | H169: 0.3908859052 | I169: 0.1607135619 | J169: 0.06105524124 | K169: 1 | L169: 0.415125024 | M169: 0.2266515749 | N169: 0.5376425369 | O169: 0.2498538242 | P169: 0.1449802658
E172: Jobs | H172: Labour income | K172: Output | N172: GDP
E173: Direct | F173: Indirect | G173: Induced | H173: Direct | I173: Indirect | J173: Induced | K173: Direct | L173: Indirect | M173: Induced | N173: Direct | O173: Indirect | P173: Induced
C174: Northwest Territories | D174: Agriculture | E174: 11.1822033 | F174: 0.3695236593 | G174: 0.2862146215 | H174: 0.2661528584 | I174: 0.03165707689 | J174: 0.01833024272 | K174: 1 | L174: 0.0890041522 | M174: 0.07773801408 | N174: 0.5591261134 | O174: 0.05387523983 | P174: 0.05094261189
D175: Mining | E175: 0.987371029 | F175: 0.5056552411 | G175: 0.3515523249 | H175: 0.1880691817 | I175: 0.05070452837 | J175: 0.02243935992 | K175: 1 | L175: 0.1404739311 | M175: 0.0954767671 | N175: 0.4936740282 | O175: 0.07714880852 | P175: 0.06284064592
D176: Construction | E176: 1.279272054 | F176: 0.7198243899 | G176: 0.3314864409 | H176: 0.1585019129 | I176: 0.07507071387 | J176: 0.02113065741 | K176: 1 | L176: 0.1831178529 | M176: 0.08992401764 | N176: 0.2779186804 | O176: 0.1046684778 | P176: 0.05906906169
D177: Manufacturing | E177: 2.012150838 | F177: 1.32499275 | G177: 0.3629194193 | H177: 0.1878542844 | I177: 0.08288018469 | J177: 0.02318892508 | K177: 1 | L177: 0.744181856 | M177: 0.09869470559 | N177: 0.3233275093 | O177: 0.1948592878 | P177: 0.0643432107
D178: Fabricated Metals | E178: 0 | F178: 0 | G178: 0 | H178: 0 | I178: 0 | J178: 0 | K178: 0 | L178: 0 | M178: 0 | N178: 0 | O178: 0 | P178: 0
D179: Machinery | E179: 0 | F179: 0 | G179: 0 | H179: 0 | I179: 0 | J179: 0 | K179: 0 | L179: 0 | M179: 0 | N179: 0 | O179: 0 | P179: 0
D180: Electrical Equipment | E180: 0 | F180: 0 | G180: 0 | H180: 0 | I180: 0 | J180: 0 | K180: 0 | L180: 0 | M180: 0 | N180: 0 | O180: 0 | P180: 0
D181: TCPU | E181: 1.94349908 | F181: 0.7154093455 | G181: 0.4150673347 | H181: 0.2202729643 | I181: 0.05995637877 | J181: 0.02635434389 | K181: 1 | L181: 0.2002223296 | M181: 0.1129012265 | N181: 0.4160614712 | O181: 0.1026271108 | P181: 0.07381404237
D182: Wholesale Trade | E182: 2.833672209 | F182: 0.4341279191 | G182: 0.5236381742 | H182: 0.3117110106 | I182: 0.03902328601 | J182: 0.03333655384 | K182: 1 | L182: 0.1210691948 | M182: 0.1426258912 | N182: 0.8007137322 | O182: 0.06663008723 | P182: 0.09324628035
D183: Retail Trade | E183: 9.206228478 | F183: 0.9201368416 | G183: 0.8287105693 | H183: 0.466800307 | I183: 0.07520223569 | J183: 0.05264522562 | K183: 1 | L183: 0.2586107251 | M183: 0.2256496847 | N183: 0.6463776792 | O183: 0.1413402245 | P183: 0.1475569476
D184: FIRE | E184: 1.133886174 | F184: 0.8678524223 | G184: 0.2690990559 | H184: 0.1046574629 | I184: 0.07764878451 | J184: 0.01749560245 | K184: 1 | L184: 0.2471937251 | M184: 0.0732288381 | N184: 0.6375774391 | O184: 0.1430243427 | P184: 0.04762693779
D185: Misc. Services | E185: 5.580314379 | F185: 0.5420471246 | G185: 0.6192072443 | H185: 0.4087504179 | I185: 0.04271377452 | J185: 0.03943517996 | K185: 1 | L185: 0.1286344696 | M185: 0.1685578633 | N185: 0.7107513755 | O185: 0.07393449994 | P185: 0.1101885721
D186: Professional Services | E186: 6.439118448 | F186: 0.7275152221 | G186: 0.7520443927 | H186: 0.5195478069 | I186: 0.05624229948 | J186: 0.04794703975 | K186: 1 | L186: 0.1853942221 | M186: 0.2044636885 | N186: 0.6423994551 | O186: 0.1016575924 | P186: 0.1336596054
D187: Government | E187: 3.743635963 | F187: 1.232323371 | G187: 0.6423487088 | H187: 0.3806713613 | I187: 0.106195807 | J187: 0.04109242308 | K187: 1 | L187: 0.3209619835 | M187: 0.1750973362 | N187: 0.4920651209 | O187: 0.1760711667 | P187: 0.1143836899
E190: Jobs | H190: Labour income | K190: Output | N190: GDP
E191: Direct | F191: Indirect | G191: Induced | H191: Direct | I191: Indirect | J191: Induced | K191: Direct | L191: Indirect | M191: Induced | N191: Direct | O191: Indirect | P191: Induced
C192: Nova Scotia | D192: Agriculture | E192: 4.518563461 | F192: 1.649812162 | G192: 0.8765130038 | H192: 0.2050685401 | I192: 0.0769191616 | J192: 0.03553172898 | K192: 1 | L192: 0.2559370427 | M192: 0.1364296371 | N192: 0.5595627636 | O192: 0.1306038493 | P192: 0.08704910547
D193: Mining | E193: 1.097485785 | F193: 2.883772311 | G193: 1.305097991 | H193: 0.1721247085 | I193: 0.2600886575 | J193: 0.05314501033 | K193: 1 | L193: 0.6974160048 | M193: 0.2036398143 | N193: 0.3234482547 | O193: 0.3290440889 | P193: 0.1294714574
D194: Construction | E194: 5.241425473 | F194: 2.321844927 | G194: 1.357926448 | H194: 0.3071133895 | I194: 0.1239218715 | J194: 0.0548632937 | K194: 1 | L194: 0.3395008827 | M194: 0.2114711367 | N194: 0.3980876888 | O194: 0.1817127404 | P194: 0.1349773555
D195: Manufacturing | E195: 3.285032754 | F195: 2.052089392 | G195: 0.9941180595 | H195: 0.2148318383 | I195: 0.1024200676 | J195: 0.04029145485 | K195: 0.9999824666 | L195: 0.3701349255 | M195: 0.1551054291 | N195: 0.2992441939 | O195: 0.1833801062 | P195: 0.09883528807
D196: Fabricated Metals | E196: 5.507765204 | F196: 1.331196742 | G196: 1.46034967 | H196: 0.347952644 | I196: 0.07447266288 | J196: 0.05926605288 | K196: 1 | L196: 0.2112921152 | M196: 0.2279335694 | N196: 0.4577981587 | O196: 0.1120807365 | P196: 0.1453610954
D197: Machinery | E197: 4.976914199 | F197: 1.169016986 | G197: 1.430315723 | H197: 0.3561959802 | I197: 0.06608753646 | J197: 0.05804806077 | K197: 1 | L197: 0.1826453797 | M197: 0.2230154749 | N197: 0.4988155136 | O197: 0.09981202766 | P197: 0.1422761648
D198: Electrical Equipment | E198: 4.909670077 | F198: 1.050571792 | G198: 1.324751663 | H198: 0.314791342 | I198: 0.05733733436 | J198: 0.05380144161 | K198: 1 | L198: 0.1618758695 | M198: 0.2068685502 | N198: 0.4719303419 | O198: 0.09108491697 | P198: 0.1321344391
D199: TCPU | E199: 3.863025525 | F199: 1.844966005 | G199: 1.168129664 | H199: 0.2658917658 | I199: 0.0969601482 | J199: 0.0474679205 | K199: 1 | L199: 0.308579043 | M199: 0.1820068744 | N199: 0.5024812682 | O199: 0.1591641637 | P199: 0.1162003409
D200: Wholesale Trade | E200: 7.561730182 | F200: 1.75580251 | G200: 2.006428723 | H200: 0.4920611772 | I200: 0.09044288974 | J200: 0.08120038392 | K200: 1 | L200: 0.2792047534 | M200: 0.3128924512 | N200: 0.6182324241 | O200: 0.1519645312 | P200: 0.1996170719
D201: Retail Trade | E201: 14.03205202 | F201: 1.962800134 | G201: 1.947611759 | H201: 0.4620892615 | I201: 0.09935850712 | J201: 0.07867798033 | K201: 1 | L201: 0.3364434899 | M201: 0.303682948 | N201: 0.6190652119 | O201: 0.1853718617 | P201: 0.1937440375
D202: FIRE | E202: 3.083287667 | F202: 2.71704371 | G202: 1.048861814 | H202: 0.1867074106 | I202: 0.1363237517 | J202: 0.04250798693 | K202: 1 | L202: 0.3952494465 | M202: 0.1635630911 | N202: 0.5396670547 | O202: 0.217770257 | P202: 0.1042691184
D203: Misc. Services | E203: 8.455609059 | F203: 1.49791372 | G203: 1.461686541 | H203: 0.3695404059 | I203: 0.07094170145 | J203: 0.05898327406 | K203: 1 | L203: 0.2007353179 | M203: 0.2278288008 | N203: 0.7257288554 | O203: 0.1109590303 | P203: 0.1456646626
D204: Professional Services | E204: 7.859310558 | F204: 1.544713993 | G204: 1.907044135 | H204: 0.5006554073 | I204: 0.07514240868 | J204: 0.07708496733 | K204: 1 | L204: 0.2059908708 | M204: 0.2975397545 | N204: 0.7081362514 | O204: 0.1190398174 | P204: 0.1900250933
D205: Government | E205: 4.36926869 | F205: 2.88294547 | G205: 1.659764039 | H205: 0.3656183236 | I205: 0.1569957451 | J205: 0.06720932186 | K205: 1 | L205: 0.428420254 | M205: 0.2591854171 | N205: 0.4881240752 | O205: 0.2489840195 | P205: 0.1653068645
E208: Jobs | H208: Labour income | K208: Output | N208: GDP
E209: Direct | F209: Indirect | G209: Induced | H209: Direct | I209: Indirect | J209: Induced | K209: Direct | L209: Indirect | M209: Induced | N209: Direct | O209: Indirect | P209: Induced
C210: Nunavut | D210: Agriculture | E210: 1.072 | F210: 0.428 | G210: 0.106 | H210: 0.061 | I210: 0.023 | J210: 0.006 | K210: 1 | L210: 0.075 | M210: 0.026 | N210: 0.627 | O210: 0.043 | P210: 0.017
D211: Mining | E211: 1.507296782 | F211: 0.2821380662 | G211: 0.3406351093 | H211: 0.2059225944 | I211: 0.02393578531 | J211: 0.01961592889 | K211: 1 | L211: 0.07544615536 | M211: 0.08191829067 | N211: 0.5669434391 | O211: 0.04115125459 | P211: 0.05452079555
D212: Construction | E212: 1.375898072 | F212: 0.6621877418 | G212: 0.2934322765 | H212: 0.1414579744 | I212: 0.06675929702 | J212: 0.0164765111 | K212: 1 | L212: 0.1695595721 | M212: 0.07056959715 | N212: 0.3087410415 | O212: 0.09344712031 | P212: 0.04710751244
D213: Manufacturing | E213: 2.389654558 | F213: 1.776109939 | G213: 0.3633811694 | H213: 0.1928196685 | I213: 0.1057927211 | J213: 0.0204513899 | K213: 0.9989354917 | L213: 0.3469860843 | M213: 0.08742666788 | N213: 0.4216207162 | O213: 0.1906327448 | P213: 0.0583492563
D214: Fabricated Metals | E214: 0 | F214: 0 | G214: 0 | H214: 0 | I214: 0 | J214: 0 | K214: 0 | L214: 0 | M214: 0 | N214: 0 | O214: 0 | P214: 0
D215: Machinery | E215: 0 | F215: 0 | G215: 0 | H215: 0 | I215: 0 | J215: 0 | K215: 0 | L215: 0 | M215: 0 | N215: 0 | O215: 0 | P215: 0
D216: Electrical Equipment | E216: 0 | F216: 0 | G216: 0 | H216: 0 | I216: 0 | J216: 0 | K216: 0 | L216: 0 | M216: 0 | N216: 0 | O216: 0 | P216: 0
D217: TCPU | E217: 3.672356435 | F217: 0.7377406272 | G217: 0.5939366537 | H217: 0.3526515835 | I217: 0.06042189428 | J217: 0.0338733748 | K217: 1 | L217: 0.1742854079 | M217: 0.142527961 | N217: 0.449841966 | O217: 0.09472919063 | P217: 0.09587071618
D218: Wholesale Trade | E218: 2.550460868 | F218: 0.3719106222 | G218: 0.4268730372 | H218: 0.2570153113 | I218: 0.03110965052 | J218: 0.02432130744 | K218: 1 | L218: 0.08746454788 | M218: 0.1026654897 | N218: 0.7649255645 | O218: 0.04667865162 | P218: 0.06893992741
D219: Retail Trade | E219: 9.43669583 | F219: 0.8211008533 | G219: 0.5597014862 | H219: 0.3323353323 | I219: 0.06233779565 | J219: 0.03160193538 | K219: 1 | L219: 0.1920445285 | M219: 0.1344538645 | N219: 0.6506937625 | O219: 0.107375878 | P219: 0.09033598187
D220: FIRE | E220: 1.386986307 | F220: 0.9321203376 | G220: 0.2127942266 | H220: 0.08913266985 | I220: 0.07145702043 | J220: 0.01220577898 | K220: 1 | L220: 0.2107784765 | M220: 0.05160123012 | N220: 0.720639201 | O220: 0.1174781718 | P220: 0.03417145829
D221: Misc. Services | E221: 4.523756183 | F221: 0.6826015466 | G221: 0.5159675416 | H221: 0.3095376552 | I221: 0.05794505491 | J221: 0.02917869034 | K221: 0.9995968745 | L221: 0.1907539067 | M221: 0.1239551136 | N221: 0.675729018 | O221: 0.1005092361 | P221: 0.0831663488
D222: Professional Services | E222: 6.645009786 | F222: 0.6095929438 | G222: 0.7200358199 | H222: 0.4844606227 | I222: 0.04392197092 | J222: 0.0406610275 | K222: 1 | L222: 0.15197154 | M222: 0.1732773113 | N222: 0.7199579359 | O222: 0.09500569345 | P222: 0.1158857894
D223: Government | E223: 3.967747575 | F223: 1.130156858 | G223: 0.6614191057 | H223: 0.4007285894 | I223: 0.08504186524 | J223: 0.03708035254 | K223: 1 | L223: 0.2514500902 | M223: 0.1591507954 | N223: 0.4881870774 | O223: 0.1351358867 | P223: 0.1067393891
... 110 more rows

Sheet Lists
A1: *** WARNING *** This Worksheet contains Data and Formulas that are an integral part of the EI2 model. Although the data and formulas are available for review they must not be changed. Any changes to the data or formulas will impact the analysis and may invalidate the model results. To view the data and formulas simply scroll over to the adjacent columns to the right.
C2: Years | E2: States | G2: Yes / No
C3: 2010 | E3: Canada | G3: Y
C4: 2011 | E4: Alberta | G4: N
C5: 2012 | E5: British Columbia
C6: 2013 | E6: Manitoba
C7: 2014 | E7: New Brunswick
C8: 2015 | E8: Newfoundland and Labrador
C9: 2016 | E9: Northwest Territories
C10: 2017 | E10: Nova Scotia
C11: 2018 | E11: Nunavut
C12: 2019 | E12: Ontario
C13: 2020 | E13: Prince Edward Island
C14: 2021 | E14: Quebec
C15: 2022 | E15: Saskatchewan
C16: 2023 | E16: Yukon
C17: 2024 | E17: MYREGION
C18: 2025
C19: 2026
C20: 2027
C21: 2028
C22: 2029
C23: 2030
C24: 2031
C25: 2032
C26: 2033
C27: 2034
C28: 2035
